Workbook

Sheet 計算表
A1: 追加給付見込み額 簡易計算表
B3: =IF(B4="","↓最初に給付内容を選択してください","") -> ↓最初に給付内容を選択してください
A4: 給付内容
A5: =IF(B4=総合計算!A9,"復帰給付金ﾁｪｯｸ欄","") ->  | E5: =IF(B4=総合計算!A9," ←職場復帰給付金を受給していた場合は○を選択してください。","") -> 
A6: =IF(OR(B4=総合計算!A11,B4=総合計算!A13,B4=総合計算!A15),"再就職日",IF(B4=総合計算!A12,"就業日（初日）",IF(OR(B4=総合計算!A6,B4=総合計算!A7),"退職日","期間（初日）"))) -> 期間（初日） | E6: =IF(B4=総合計算!A4,"",IF(B4=総合計算!A12," ←最初に就業した日付を入力してください。",IF(OR(B4=総合計算!A6,B4=総合計算!A7)," ←退職日を選択してください。（退職日に応じて支給額が決まります）",IF(OR(B4=総合計算!A11,B4=総合計算!A13,B4=総合計算!A15)," ←再就職日を選択してください。",IF(B4=総合計算!A14," ←訓練受講開始日の日付を選択してください。"," ←支給対象期間（初日）の日付を選択してください。"))))) -> 
E7: =IF(OR(B4=総合計算!A5,B4=総合計算!A9,B4=総合計算!A10,B4=総合計算!A8)," ※平成16年8月より前から支給を受けていた方は、平成16年8月1日を選択してください。",IF(OR(B4=総合計算!A11,B4=総合計算!A12,B4=総合計算!A6,B4=総合計算!A13,B4=総合計算!A7)," ※平成16年8月1日より前の日付の場合、追加給付見込み額は0となる見込みです。",IF(OR(B4=総合計算!A14,B4=総合計算!A15)," ※平成26年10月以降を選択してください。",""))) -> 
A8: =IF(OR(B4=総合計算!A11,B4=総合計算!A6,B4=総合計算!A8,B4=総合計算!A12,B4=総合計算!A7,B4=総合計算!A13),"","期間（末日）") -> 期間（末日） | E8: =IF(OR(B4=総合計算!A6,B4=総合計算!A7,B4=総合計算!A8,B4=総合計算!A11,B4=総合計算!A12,B4=総合計算!A13,B4=総合計算!A15,B4=総合計算!A16),""," ←支給対象期間（末日）の日付を選択してください。") -> 
E9: =IF(OR(B4=総合計算!A6,B4=総合計算!A7,B4=総合計算!A8,B4=総合計算!A11,B4=総合計算!A12,B4=総合計算!A13,B4=総合計算!A15,B4=総合計算!A4),""," ※現在、受給中の方は平成31年3月17日を選択してください。") -> 
A10: =IF(OR(B4=総合計算!A9,計算表!B4=総合計算!A10),"","年齢区分") -> 年齢区分 | E10: =IF(B4=総合計算!A8," ←60歳～64歳を選択してください。",IF(B4=総合計算!A6," ～29歳または65歳～を選択してください。",IF(OR(B4=総合計算!A9,B4=総合計算!A10,B4=総合計算!A4),""," ←離職時の年齢を選択してください。"))) -> 
A11: =IF(B4=総合計算!A8,"支給時の給与形態","給与形態") -> 給与形態 | E11: =IF(B4=総合計算!A4,""," ←左欄で給与形態を選択してください。 日給の場合は離職前６ヶ月の給与基礎日数も右側に入力してください。") -> 
A12: =IF(OR(B4=総合計算!A9,B4=総合計算!A10),"休業前賃金",IF(B4=総合計算!A8,"支給時の賃金","離職前賃金")) -> 離職前賃金 | E12: =IF(B4=総合計算!A4,""," ←月給：1ヶ月分の額 日給：離職前６ヶ月の総額を円単位で入力してください。") -> 
A14: =IF(B4=総合計算!A8,"支給月数",IF(B4=総合計算!A12,"就業日数","")) ->  | E14: =IF(B4=総合計算!A8," ←支給月数の合計を入力してください。 例：５年間の場合：60と入力",IF(B4=総合計算!A12," ←就業した日数の合計を入力してください。","")) -> 
A15: =IF(B4=総合計算!A6,"被保険者期間ﾁｪｯｸ欄","") ->  | E15: =IF(B4=総合計算!A6," ←離職前の被保険者期間が一年以上ある場合は○を選択してください。","") -> 
A16: =IF(OR(B4=総合計算!A11,B4=総合計算!A15,B4=総合計算!A13),"所定給付日数",IF(B4=総合計算!A8,"60歳到達時賃金月額","")) ->  | E16: =IF(OR(B4=総合計算!A11,B4=総合計算!A13,B4=総合計算!A15)," ←所定給付日数を入力してください。",IF(B4=総合計算!A8," ←60歳到達時の賃金月額を入力してください。","")) -> 
A17: =IF(B4=総合計算!A15,"再就職後給与形態","") ->  | E17: =IF(B4=総合計算!A15," ←左欄から給与形態を選択してください。 日給の場合は再就職後６ヶ月の給与基礎日数も右側に入力してください。","") -> 
A18: =IF(B4=総合計算!A15,"再就職後賃金",IF(B4=総合計算!A10,"支給日数（一回目）","")) ->  | E18: =IF(B4=総合計算!A15," ←月給：1ヶ月分の額 日給：再就職後６ヶ月の総額を円単位で入力してください。","") -> 
A19: =IF(B4=総合計算!A10,"支給日数（二回目）","") ->  | E19: =IF(B4=総合計算!A10,"例：66日間、介護休業給付の支給を受けた場合 一回目：30 二回目：30 三回目：6と入力してください。","") -> 
A20: =IF(OR(B4=総合計算!A11,B4=総合計算!A15),"支給残日数",IF(B4=総合計算!A13,"常用手当日数",IF(B4=総合計算!A10,"支給日数（三回目）",""))) ->  | E20: =IF(OR(B4=総合計算!A11,B4=総合計算!A15,B4=総合計算!A13)," ←再就職日時点の支給残日数を入力してください。","") -> 
E21: =IFERROR(IF(総合計算!H24-総合計算!J2>0,"入力エラー 期間（初日）・再就職日は3月18日より前の日付を選択してください。",IF(総合計算!L3-総合計算!K3<0,"入力エラー 期間（末日）は期間（初日）より後の日付を選択してください。",IF(総合計算!H29-総合計算!J2>0,"入力エラー 期間（末日）は平成31年3月18日より前を選択してください",IF(総合計算!I2>総合計算!H24,"入力エラー 平成16年8月1日より前の期間は追加給付見込み額はない見込みです。","")))),"") -> 
A22: 追加給付見込み額 | B22: =IF(COUNTIFS(E21,"*エラー*")>0,"-",総合計算!AE36) -> 0 | E22: =IF(COUNTIFS(E21,"*エラー*")>0,"エラー欄が表示されていない場合は、下の「リセット」で全て空欄にして再度入力してください","") -> 
A24: 旧支給額（概算） | B24: =IF(COUNTIFS(E21,"*エラー*")>0,"-",総合計算!AE79) -> 0
A27: ※上記の追加給付見込み額はあくまで目安です。細かな賃金の条件など、各個人の詳細な状況によって、実際の追加給付額は異なりますのでご留意ください。
A28: ※正式な追加給付額については、対象となる方を特定した上で、順次、お知らせいたします。
A29: ※本簡易計算ツール（以下、本ツールという）は無料です。本ツールを第三者に対して再販売、改変、再配布等する行為を禁止します。

Sheet 総合計算 (hidden)
A1: 選択リスト | AF1: 就業促進定着手当計算
I2: 20040801 | J2: 20190317 | K2: 判別式 | Q2: 初日 | R2: 末日 | S2: 給付日数 | T2: =IF(計算表!B4=A6,S23,IF(計算表!B4=A7,S24,IF(計算表!B4=A11,S25,IF(計算表!B4=A13,S28,S26)))) ->  | U2: 基本手当・高齢・短期特例計算式
A3: 給付内容 | B3: 年齢区分 | D3: 年 | E3: 月 | F3: 日 | G3: 基準点 | K3: =H24 ->  | L3: =H29 ->  | M3: 区分別判別式 | Q3: =IF(K3<G5,TEXT(G5,"0000!/00!/00"),TEXT(K3,"0000!/00!/00")) ->  | R3: =IF(L3>H19,TEXT(H19,"0000!/00!/00"),TEXT(L3,"0000!/00!/00")) ->  | S3: =IF(T2>=0,T2,"-") ->  | T3: 給付日数余剰 | V3: 高齢継続 | W3: 育児 | X3: 介護 | Y3: 再手 | Z3: 就業手当 | AA3: 常用 | AB3: 支援給付金 | AC3: 就業促進定着 | AD3: 区分 | AE3: 利率
I4: 始点 | J4: 終点 | K4: =IF(K3<G5,G5,K3) ->  | M4: 初日→終点 | N4: 始点→末日 | O4: 同列判定 | P4: 異列判定 | Q4: A入力 | R4: 雇用継続
A5: 基本手当・延長給付・傷病手当 | B5: ～29歳または65歳～ | D5: 平成16年（2004年） | E5: 1月 | F5: 1日 | G5: 20040801 | H5: 20050731 | I5: 2004-08-01 | J5: 2005-07-31 | K5: =IF(K3<G5,G5,IF(AND($K$3>=G5,$K$3<H5),$K$3,"")) ->  | L5: =IF(AND($L$3>=G5,$L$3<H5),$L$3,"") ->  | M5: =IF(ISERROR(DATEDIF($Q$3,J5,"d")+1),"",DATEDIF($Q$3,J5,"d")+1) ->  | N5: =IF(L5>"1",DATEDIF(I5,$R$3,"d")+1,"") ->  | O5: =IF(AND(K5>"1",L5>"1"),$S$3,0) ->  | P5: =IF(K5>"1",IF(AND($S$3>0,$S$3<=365),$S$3,365),0) ->  | Q5: =IF(AND(K5>"1",L5>"1"),O5,IF(O23="○",$M$20,IF(P23="○",$N$20,IF(OR(O5>0,P5>0),365,0)))) ->  | R5: =IF(計算表!$B$4=総合計算!$A$8,計算BD!AN48,IF(計算表!$B$4=総合計算!$A$9,計算BD!AN69,0)) -> 0 | S5: =IF(S3-Q5<0,0,S3-Q5) ->  | T5: =IF(Q5>=0,S3-Q5,0) ->  | U5: =IF(計算表!$B$10=計算BD!$R$12,計算BD!R13,IF(計算表!$B$10=計算BD!$S$12,計算BD!S13,IF(計算表!$B$10=計算BD!$T$12,計算BD!T13,IF(計算表!$B$10=計算BD!$U$12,計算BD!U13,0)))) -> 0 | V5: =S46 -> 0 | Y5: =IF(計算表!$B$10=計算BD!$AC$12,計算BD!AH16,計算BD!AH13) -> 0 | Z5: =Y5 -> 0 | AA5: =Z5 -> 0 | AD5: 1 | AE5: 0.14
A6: 高年齢求職者給付金 | B6: 30歳～44歳 | D6: 平成17年（2005年） | E6: 2月 | F6: 2日 | G6: 20050801 | H6: 20060731 | I6: 2005-08-01 | J6: 2006-07-31 | K6: =IF(AND($K$3>=G6,$K$3<H6),$K$3,"") ->  | L6: =IF(AND($L$3>=G6,$L$3<H6),$L$3,"") ->  | M6: =IF(ISERROR(DATEDIF($Q$3,J6,"d")+1),"",DATEDIF($Q$3,J6,"d")+1) ->  | N6: =IF(L6>"1",DATEDIF(I6,$R$3,"d")+1,"") ->  | O6: =IF(AND(K6>"1",L6>"1"),$S$3,0) ->  | P6: =IF(S5=0,0,IF(OR(K5>"1",K6>"1"),IF(AND(S5>0,S5<=365),S5,365),0)) ->  | Q6: =IF(AND(K6>"1",L6>"1"),O6,IF(O24="○",$M$20,IF(P24="○",$N$20,IF(OR(O6>0,P6>0),365,0)))) ->  | R6: =IF(計算表!$B$4=総合計算!$A$8,計算BD!AN49,IF(計算表!$B$4=総合計算!$A$9,計算BD!AO70,0)) -> 0 | S6: =IF(S5-Q6<0,0,S5-Q6) ->  | T6: =IF(Q6>0,S5-Q6,0) ->  | U6: =IF(計算表!$B$10=計算BD!$R$12,計算BD!R17,IF(計算表!$B$10=計算BD!$S$12,計算BD!S17,IF(計算表!$B$10=計算BD!$T$12,計算BD!T17,IF(計算表!$B$10=計算BD!$U$12,計算BD!U17,0)))) -> 0 | V6: =S47 -> 1 | Y6: =IF(計算表!$B$10=計算BD!$AC$12,計算BD!AH20,計算BD!AH17) -> 0 | Z6: =Y6 -> 0 | AA6: 0 | AD6: 2 | AE6: 0.13
A7: 短期雇用特例求職者給付金 | B7: 45歳～59歳 | D7: 平成18年（2006年） | E7: 3月 | F7: 3日 | G7: 20060801 | H7: 20070731 | I7: 2006-08-01 | J7: 2007-07-31 | K7: =IF(AND($K$3>=G7,$K$3<H7),$K$3,"") ->  | L7: =IF(AND($L$3>=G7,$L$3<H7),$L$3,"") ->  | M7: =IF(ISERROR(DATEDIF($Q$3,J7,"d")+1),"",DATEDIF($Q$3,J7,"d")+1) ->  | O7: =IF(AND(K7>"1",L7>"1"),$S$3,0) ->  | P7: =IF(S6=0,0,IF(OR(K5>"1",K6>"1",K7>"1"),IF(AND(S6>0,S6<=365),S6,365),0)) ->  | Q7: =IF(AND(K7>"1",L7>"1"),O7,IF(O25="○",$M$20,IF(P25="○",$N$20,IF(OR(O7>0,P7>0),365,0)))) ->  | R7: =IF(計算表!$B$4=総合計算!$A$8,計算BD!AN50,IF(計算表!$B$4=総合計算!$A$9,計算BD!AO71,0)) -> 0 | S7: =IF(S6-Q7<0,0,S6-Q7) ->  | T7: =IF(Q7>0,S6-Q7,0) ->  | U7: =IF(計算表!$B$10=計算BD!$R$12,計算BD!R21,IF(計算表!$B$10=計算BD!$S$12,計算BD!S21,IF(計算表!$B$10=計算BD!$T$12,計算BD!T21,IF(計算表!$B$10=計算BD!$U$12,計算BD!U21,0)))) -> 0 | V7: 1 | Y7: =IF(計算表!$B$10=計算BD!$AC$12,計算BD!AH24,計算BD!AH21) -> 0 | Z7: 0 | AA7: 0 | AD7: 3 | AE7: 0.11
A8: 高年齢雇用継続給付（基本・再就職） | B8: 60歳～64歳 | D8: 平成19年（2007年） | E8: 4月 | F8: 4日 | G8: 20070801 | H8: 20080731 | I8: 2007-08-01 | J8: 2008-07-31 | K8: =IF(AND($K$3>=G8,$K$3<H8),$K$3,"") ->  | L8: =IF(AND($L$3>=G8,$L$3<H8),$L$3,"") ->  | P8: =IF(S7=0,0,IF(OR(K5>"1",K6>"1",K7>"1",K8>"1"),IF(AND(S7>0,S7<=365),S7,365),0)) ->  | Q8: =IF(AND(K8>"1",L8>"1"),O8,IF(O26="○",$M$20,IF(P26="○",$N$20,IF(OR(O8>0,P8>0),366,0)))) ->  | R8: =IF(計算表!$B$4=総合計算!$A$8,計算BD!AN51,IF(計算表!$B$4=総合計算!$A$9,計算BD!AO72,0)) -> 0 | S8: =IF(S7-Q8<0,0,S7-Q8) ->  | T8: =IF(Q8>0,S7-Q8,0) ->  | U8: =IF(計算表!$B$10=計算BD!$R$12,計算BD!R25,IF(計算表!$B$10=計算BD!$S$12,計算BD!S25,IF(計算表!$B$10=計算BD!$T$12,計算BD!T25,IF(計算表!$B$10=計算BD!$U$12,計算BD!U25,0)))) -> 0 | V8: 1 | Y8: =IF(計算表!$B$10=計算BD!$AC$12,計算BD!AH28,計算BD!AH25) -> 0 | Z8: 0 | AA8: 0 | AD8: 4 | AE8: 0.09
A9: 育児休業給付 | D9: 平成20年（2008年） | E9: 5月 | F9: 5日 | G9: 20080801 | H9: 20090731 | I9: 2008-08-01 | J9: 2009-07-31 | K9: =IF(AND($K$3>=G9,$K$3<H9),$K$3,"") ->  | P9: =IF(S8=0,0,IF(OR(K5>"1",K6>"1",K7>"1",K8>"1",K9>"1"),IF(AND(S8>0,S8<=365),S8,365),0)) ->  | R9: =IF(計算表!$B$4=総合計算!$A$8,計算BD!AN52,IF(計算表!$B$4=総合計算!$A$9,計算BD!AO73,0)) -> 0 | S9: =IF(S8-Q9<0,0,S8-Q9) ->  | T9: =IF(Q9>0,S8-Q9,0) ->  | U9: =IF(計算表!$B$10=計算BD!$R$12,計算BD!R29,IF(計算表!$B$10=計算BD!$S$12,計算BD!S29,IF(計算表!$B$10=計算BD!$T$12,計算BD!T29,IF(計算表!$B$10=計算BD!$U$12,計算BD!U29,0)))) -> 0 | V9: 1 | Y9: =IF(計算表!$B$10=計算BD!$AC$12,計算BD!AH32,計算BD!AH29) -> 0 | Z9: 0 | AA9: 0 | AD9: 5 | AE9: 0.08
A10: 介護休業給付 | D10: 平成21年（2009年） | E10: 6月 | F10: 6日 | G10: 20090801 | H10: 20100731 | I10: 2009-08-01 | J10: 2010-07-31 | K10: =IF(AND($K$3>=G10,$K$3<H10),$K$3,"") ->  | M10: =IF(ISERROR(DATEDIF($Q$3,J10,"d")+1),"",DATEDIF($Q$3,J10,"d")+1) ->  | N10: =IF(L10>"1",DATEDIF(I10,$R$3,"d")+1,"") ->  | O10: =IF(AND(K10>"1",L10>"1"),$S$3,0) ->  | P10: =IF(S9=0,0,IF(OR(K5>"1",K6>"1",K7>"1",K8>"1",K9>"1",K10>"1"),IF(AND(S9>0,S9<=365),S9,365),0)) ->  | R10: =IF(計算表!$B$4=総合計算!$A$8,計算BD!AN53,IF(計算表!$B$4=総合計算!$A$9,計算BD!AO74,0)) -> 0 | S10: =IF(S9-Q10<0,0,S9-Q10) ->  | T10: =IF(Q10>0,S9-Q10,0) ->  | U10: =IF(計算表!$B$10=計算BD!$R$12,計算BD!R33,IF(計算表!$B$10=計算BD!$S$12,計算BD!S33,IF(計算表!$B$10=計算BD!$T$12,計算BD!T33,IF(計算表!$B$10=計算BD!$U$12,計算BD!U33,0)))) -> 0 | V10: 1 | Y10: =IF(計算表!$B$10=計算BD!$AC$12,計算BD!AH36,計算BD!AH33) -> 0 | Z10: 0 | AA10: 0 | AD10: 6 | AE10: 0.06
A11: 再就職手当 | D11: 平成22年（2010年） | E11: 7月 | F11: 7日 | G11: 20100801 | H11: 20110731 | I11: 2010-08-01 | J11: 2011-07-31 | P11: =IF(S10=0,0,IF(OR(K5>"1",K6>"1",K7>"1",K8>"1",K9>"1",K10>"1",K11>"1"),IF(AND(S10>0,S10<=365),S10,365),0)) ->  | R11: =IF(計算表!$B$4=総合計算!$A$8,計算BD!AN54,IF(計算表!$B$4=総合計算!$A$9,計算BD!AO75,0)) -> 0 | S11: =IF(S10-Q11<0,0,S10-Q11) ->  | U11: =IF(計算表!$B$10=計算BD!$R$12,計算BD!R37,IF(計算表!$B$10=計算BD!$S$12,計算BD!S37,IF(計算表!$B$10=計算BD!$T$12,計算BD!T37,IF(計算表!$B$10=計算BD!$U$12,計算BD!U37,0)))) -> 0 | V11: 1 | Y11: =IF(計算表!$B$10=計算BD!$AC$12,計算BD!AH40,計算BD!AH37) -> 0 | Z11: 0 | AA11: 0 | AD11: 7 | AE11: 0.05
A12: 就業手当 | D12: 平成23年（2011年） | E12: 8月 | F12: 8日 | G12: 20110801 | H12: 20120731 | I12: 2011-08-01 | J12: 2012-07-31 | P12: =IF(S11=0,0,IF(OR(K5>"1",K6>"1",K7>"1",K8>"1",K9>"1",K10>"1",K11>"1",K12>"1"),IF(AND(S11>0,S11<=365),S11,365),0)) ->  | Q12: =IF(AND(K12>"1",L12>"1"),O12,IF(O30="○",$M$20,IF(P30="○",$N$20,IF(OR(O12>0,P12>0),366,0)))) ->  | R12: =IF(計算表!$B$4=総合計算!$A$8,計算BD!AN55,IF(計算表!$B$4=総合計算!$A$9,計算BD!AO76,0)) -> 0 | S12: =IF(S11-Q12<0,0,S11-Q12) ->  | U12: =IF(計算表!$B$10=計算BD!$R$12,計算BD!R41,IF(計算表!$B$10=計算BD!$S$12,計算BD!S41,IF(計算表!$B$10=計算BD!$T$12,計算BD!T41,IF(計算表!$B$10=計算BD!$U$12,計算BD!U41,0)))) -> 0 | V12: 0 | Y12: =IF(計算表!$B$10=計算BD!$AC$12,計算BD!AH44,計算BD!AH41) -> 0 | Z12: 0 | AA12: 0 | AD12: 8 | AE12: 0.04
A13: 常用就職支度手当 | D13: 平成24年（2012年） | E13: 9月 | F13: 9日 | G13: 20120801 | H13: 20130731 | I13: 2012-08-01 | J13: 2013-07-31 | N13: =IF(L13>"1",DATEDIF(I13,$R$3,"d")+1,"") ->  | P13: =IF(S12=0,0,IF(OR(K5>"1",K6>"1",K7>"1",K8>"1",K9>"1",K10>"1",K11>"1",K12>"1",K13>"1"),IF(AND(S12>0,S12<=365),S12,365),0)) ->  | Q13: =IF(AND(K13>"1",L13>"1"),O13,IF(O31="○",$M$20,IF(P31="○",$N$20,IF(OR(O13>0,P13>0),365,0)))) ->  | R13: =IF(計算表!$B$4=総合計算!$A$8,計算BD!AN56,IF(計算表!$B$4=総合計算!$A$9,計算BD!AO77,0)) -> 0 | S13: =IF(S12-Q13<0,0,S12-Q13) ->  | U13: =IF(計算表!$B$10=計算BD!$R$12,計算BD!R45,IF(計算表!$B$10=計算BD!$S$12,計算BD!S45,IF(計算表!$B$10=計算BD!$T$12,計算BD!T45,IF(計算表!$B$10=計算BD!$U$12,計算BD!U45,0)))) -> 0 | V13: 0 | Y13: =IF(計算表!$B$10=計算BD!$AC$12,計算BD!AH48,計算BD!AH45) -> 0 | Z13: 0 | AA13: 0 | AD13: 9 | AE13: 0.03
A14: 教育訓練支援給付金 | D14: 平成25年（2013年） | E14: 10月 | F14: 10日 | G14: 20130801 | H14: 20140731 | I14: 2013-08-01 | J14: 2014-07-31 | P14: =IF(S13=0,0,IF(OR(K5>"1",K6>"1",K7>"1",K8>"1",K9>"1",K10>"1",K11>"1",K12>"1",K13>"1",K14>"1"),IF(AND(S13>0,S13<=365),S13,365),0)) ->  | Q14: =IF(AND(K14>"1",L14>"1"),O14,IF(O32="○",$M$20,IF(P32="○",$N$20,IF(OR(O14>0,P14>0),365,0)))) ->  | R14: =IF(計算表!$B$4=総合計算!$A$8,計算BD!AN57,IF(計算表!$B$4=総合計算!$A$9,計算BD!AO78,0)) -> 0 | U14: =IF(計算表!$B$10=計算BD!$R$12,計算BD!R49,IF(計算表!$B$10=計算BD!$S$12,計算BD!S49,IF(計算表!$B$10=計算BD!$T$12,計算BD!T49,IF(計算表!$B$10=計算BD!$U$12,計算BD!U49,0)))) -> 0 | V14: 0 | Y14: =IF(計算表!$B$10=計算BD!$AC$12,計算BD!AH52,計算BD!AH49) -> 0 | Z14: 0 | AA14: 0 | AD14: 10 | AE14: 0.02
A15: 就業促進定着手当 | D15: 平成26年（2014年） | E15: 11月 | F15: 11日 | G15: 20140801 | H15: 20150731 | I15: 2014-08-01 | J15: 2015-07-31 | P15: =IF(S14=0,0,IF(OR(K5>"1",K6>"1",K7>"1",K8>"1",K9>"1",K10>"1",K11>"1",K12>"1",K13>"1",K14>"1",K15>"1"),IF(AND(S14>0,S14<=365),S14,365),0)) ->  | Q15: =IF(AND(K15>"1",L15>"1"),O15,IF(O33="○",$M$20,IF(P33="○",$N$20,IF(OR(O15>0,P15>0),365,0)))) ->  | R15: =IF(計算表!$B$4=総合計算!$A$8,計算BD!AN58,IF(計算表!$B$4=総合計算!$A$9,計算BD!AO79,0)) -> 0 | U15: =IF(計算表!$B$10=計算BD!$R$12,計算BD!R53,IF(計算表!$B$10=計算BD!$S$12,計算BD!S53,IF(計算表!$B$10=計算BD!$T$12,計算BD!T53,IF(計算表!$B$10=計算BD!$U$12,計算BD!U53,0)))) -> 0 | V15: 1 | Y15: =IF(計算表!$B$10=計算BD!$AC$12,計算BD!AH56,計算BD!AH53) -> 0 | Z15: 0 | AA15: 0 | AB15: =ROUNDDOWN(U15*0.5,0) -> 0 | AC15: =AA15 -> 0 | AD15: 11 | AE15: 0.01 | AF15: =IF(計算表!$B$10=計算BD!$B$79,計算BD!J79,IF(計算表!$B$10=計算BD!$B$80,計算BD!J80,IF(計算表!$B$10=計算BD!$B$81,計算BD!J81,IF(計算表!$B$10=計算BD!$B$82,計算BD!J82)))) -> FALSE
D16: 平成27年（2015年） | E16: 12月 | F16: 12日 | G16: 20150801 | H16: 20160731 | I16: 2015-08-01 | J16: 2016-07-31 | P16: =IF(S15=0,0,IF(OR(K5>"1",K6>"1",K7>"1",K8>"1",K9>"1",K10>"1",K11>"1",K12>"1",K13>"1",K14>"1",K15>"1",K16>"1"),IF(AND(S15>0,S15<=365),S15,365),0)) ->  | Q16: =IF(AND(K16>"1",L16>"1"),O16,IF(O34="○",$M$20,IF(P34="○",$N$20,IF(OR(O16>0,P16>0),366,0)))) ->  | R16: =IF(計算表!$B$4=総合計算!$A$8,計算BD!AN59,IF(計算表!$B$4=総合計算!$A$9,計算BD!AO80,0)) -> 0 | U16: =IF(計算表!$B$10=計算BD!$R$12,計算BD!R57,IF(計算表!$B$10=計算BD!$S$12,計算BD!S57,IF(計算表!$B$10=計算BD!$T$12,計算BD!T57,IF(計算表!$B$10=計算BD!$U$12,計算BD!U57,0)))) -> 0 | V16: 1 | Y16: =IF(計算表!$B$10=計算BD!$AC$12,計算BD!AH60,計算BD!AH57) -> 0 | Z16: 0 | AA16: 0 | AB16: =ROUNDDOWN(U16*0.5,0) -> 0 | AC16: =AA16 -> 0 | AD16: 12 | AE16: 0.01 | AF16: =IF(計算表!$B$10=計算BD!$B$83,計算BD!J83,IF(計算表!$B$10=計算BD!$B$84,計算BD!J84,IF(計算表!$B$10=計算BD!$B$85,計算BD!J85,IF(計算表!$B$10=計算BD!$B$86,計算BD!J86)))) -> FALSE
D17: 平成28年（2016年） | F17: 13日 | G17: 20160801 | H17: 20170731 | I17: 2016-08-01 | J17: 2017-07-31 | P17: =IF(S16=0,0,IF(OR(K5>"1",K6>"1",K7>"1",K8>"1",K9>"1",K10>"1",K11>"1",K12>"1",K13>"1",K14>"1",K15>"1",K16>"1",K17>"1"),IF(AND(S16>0,S16<=365),S16,365),0)) ->  | R17: =IF(計算表!$B$4=総合計算!$A$8,計算BD!AN60,IF(計算表!$B$4=総合計算!$A$9,計算BD!AO81,0)) -> 0 | U17: =IF(計算表!$B$10=計算BD!$R$12,計算BD!R61,IF(計算表!$B$10=計算BD!$S$12,計算BD!S61,IF(計算表!$B$10=計算BD!$T$12,計算BD!T61,IF(計算表!$B$10=計算BD!$U$12,計算BD!U61,0)))) -> 0 | V17: 2 | Y17: =IF(計算表!$B$10=計算BD!$AC$12,計算BD!AH64,計算BD!AH61) -> 0 | Z17: 0 | AA17: 0 | AB17: =ROUNDDOWN(U17*0.5,0) -> 0 | AC17: 0 | AD17: 13 | AE17: 0.01 | AF17: =IF(計算表!$B$10=計算BD!$B$87,計算BD!J87,IF(計算表!$B$10=計算BD!$B$88,計算BD!J88,IF(計算表!$B$10=計算BD!$B$89,計算BD!J89,IF(計算表!$B$10=計算BD!$B$90,計算BD!J90)))) -> FALSE
A18: ○ | D18: 平成29年（2017年） | F18: 14日 | G18: 20170801 | H18: 20180731 | I18: 2017-08-01 | J18: 2018-07-31 | P18: =IF(S17=0,0,IF(OR(K5>"1",K6>"1",K7>"1",K8>"1",K9>"1",K10>"1",K11>"1",K12>"1",K13>"1",K14>"1",K15>"1",K16>"1",K17>"1",K18>"1"),IF(AND(S17>0,S17<=365),S17,365),0)) ->  | R18: =IF(計算表!$B$4=総合計算!$A$8,計算BD!AN61,IF(計算表!$B$4=総合計算!$A$9,計算BD!AO82,0)) -> 0 | U18: =IF(計算表!$B$10=計算BD!$R$12,計算BD!R65,IF(計算表!$B$10=計算BD!$S$12,計算BD!S65,IF(計算表!$B$10=計算BD!$T$12,計算BD!T65,IF(計算表!$B$10=計算BD!$U$12,計算BD!U65,0)))) -> 0 | V18: 0 | Y18: =IF(計算表!$B$10=計算BD!$AC$12,計算BD!AH68,計算BD!AH65) -> 0 | Z18: 0 | AA18: 0 | AB18: =IF(U18>0,IF(K18>=K39,ROUNDDOWN(U18*0.8,0),ROUNDDOWN(U18*0.5,0)),0) -> 0 | AC18: 0 | AD18: 14 | AE18: 0.01 | AF18: =IF(計算表!$B$10=計算BD!$B$91,計算BD!J91,IF(計算表!$B$10=計算BD!$B$92,計算BD!J92,IF(計算表!$B$10=計算BD!$B$93,計算BD!J93,IF(計算表!$B$10=計算BD!$B$94,計算BD!J94)))) -> FALSE
D19: 平成30年（2018年） | F19: 15日 | G19: 20180801 | H19: 20190731 | I19: 2018-08-01 | J19: 2019-03-18 | K19: =IF(AND($K$3>=G19,$K$3<H19),$K$3,"") ->  | L19: =IF(AND($L$3>=G19,$L$3<H19),$L$3,"") ->  | N19: =IF(L19>"1",DATEDIF(I19,$R$3,"d")+1,"") ->  | P19: =IF(S18=0,0,IF(OR(K5>"1",K6>"1",K7>"1",K8>"1",K9>"1",K10>"1",K11>"1",K12>"1",K13>"1",K14>"1",K15>"1",K16>"1",K17>"1",K18>"1",K19>"1"),IF(AND(S18>0,S18<=365),S18,365),0)) ->  | Q19: =IF(AND(K19>"1",L19>"1"),O19,IF(O37="○",$M$20,IF(P37="○",$N$20,IF(OR(O19>0,P19>0),365,0)))) ->  | R19: =IF(計算表!$B$4=総合計算!$A$8,計算BD!AN62,IF(計算表!$B$4=総合計算!$A$9,計算BD!AO83,0)) -> 0 | U19: =IF(計算表!$B$10=計算BD!$R$12,計算BD!R69,IF(計算表!$B$10=計算BD!$S$12,計算BD!S69,IF(計算表!$B$10=計算BD!$T$12,計算BD!T69,IF(計算表!$B$10=計算BD!$U$12,計算BD!U69,0)))) -> 0 | V19: 0 | Y19: =IF(計算表!$B$10=計算BD!$AC$12,計算BD!AH72,計算BD!AH69) -> 0 | Z19: 0 | AA19: =Z19 -> 0 | AB19: =IF(U19>0,IF(OR(K18>=K39,K19>=K39),ROUNDDOWN(U19*0.8,0),ROUNDDOWN(U19*5,0)),0) -> 0 | AC19: 0 | AD19: 15 | AE19: 0.01 | AF19: =IF(計算表!$B$10=計算BD!$B$95,計算BD!J95,IF(計算表!$B$10=計算BD!$B$96,計算BD!J96,IF(計算表!$B$10=計算BD!$B$97,計算BD!J97,IF(計算表!$B$10=計算BD!$B$98,計算BD!J98)))) -> FALSE
D20: 平成31年（2019年） | F20: 16日 | M20: =INDEX(M5:M19,MATCH("*?",INDEX(M5:M19&"",0),0)) ->  | N20: =IFERROR(INDEX(N5:N19,MATCH("*?",INDEX(N5:N19&"",0),0)),0) -> 0 | Q20: =SUM(Q5:Q19) ->  | R20: =SUM(R5:R19) -> 0 | S20: =IF(Q20+R20=S3,"○","×") -> 
F21: 17日 | G21: ○計算表（初日）の和暦入力を西暦に変換し、判別式に代入 | K21: 制度改正 | L21: 事前計算（追加給付額含む） | S21: 給付日数エラーチェック
A22: 月給 | F22: 18日 | G22: H | H22: =MID(計算表!B6,3,2) ->  | I22: =LEFT(計算表!C6,LEN(計算表!C6)-1) ->  | J22: =LEFT(計算表!D6,LEN(計算表!D6)-1) ->  | K22: 再手振り分け | L22: 基本手当 | M22: 高齢一時 | N22: 短期特例 | O22: 基本初日判別 | P22: 基本末日判別 | R22: ○給付日数へリンク | T22: ○追加給付 | U22: 基本・高齢・短期 | V22: 高齢継続 | W22: 育児 | X22: 介護 | Y22: 再手 | Z22: 就業手当 | AA22: 常用 | AB22: 支援給付金 | AC22: 就業促進定着
A23: 日給 | F23: 19日 | I23: =TEXT(I22,"00") ->  | J23: =TEXT(J22,"00") ->  | K23: 19990101 | L23: =IF(計算表!$B$4=$A$5,IF($R$20=0,ROUNDDOWN(Q5*U5,0),ROUNDDOWN(R5*U5,0)),0) -> 0 | M23: =IF(K5>"1",IF(計算表!$B$4=$A$6,ROUNDDOWN($S$3*U5,0),0),0) ->  | N23: =IF(K5>"1",IF(計算表!$B$4=$A$7,ROUNDDOWN($S$3*U5,0),0),0) ->  | O23: =IF(M5=$M$20,"○",0) ->  | P23: =IF(N5=$N$20,"○",0) ->  | R23: 高齢 | S23: =IF(K3<G5,"-",IF(計算表!B15="○",50,30)) ->  | T23: ～2005/7/31 | U23: =IF(計算表!$B$4=$A$5,L23,IF(計算表!$B$4=$A$6,M23,N23)) ->  | V23: =R5*V5 -> 0 | Y23: =IF(K5>"1",ROUNDDOWN($S$3*Y5*0.3,0),0) ->  | Z23: =IF(D46>0,ROUNDDOWN(Z5*0.3,0),0)*D46 ->  | AA23: =IF(K5>"1",IF(OR(計算表!$B$16>=270,$S$3>=90),ROUNDDOWN(AA5*90*0.4,0),IF(AND(0<$S$3,$S$3<45),ROUNDDOWN(AA5*18,0),IF(AND(45<=$S$3,$S$3<90),ROUNDDOWN($S$3*AA5*0.4,0),0))),0) -> 
F24: 20日 | G24: =(G22&H22&"."&I23&"."&J23) ->  | H24: =TEXT(G24,"yyyymmdd") ->  | I24: 期間区分→ | J24: =VLOOKUP(H24,K5:AD19,20,FALSE) ->  | K24: 20090401 | L24: =IF(計算表!$B$4=$A$5,IF($R$20=0,ROUNDDOWN(Q6*U6,0),ROUNDDOWN(R6*U6,0)),0) -> 0 | M24: =IF(K6>"1",IF(計算表!$B$4=$A$6,ROUNDDOWN($S$3*U6,0),0),0) ->  | N24: =IF(K6>"1",IF(計算表!$B$4=$A$7,ROUNDDOWN($S$3*U6,0),0),0) ->  | O24: =IF(M6=$M$20,"○",0) ->  | P24: =IF(N6=$N$20,"○",0) ->  | R24: 短期特例 | S24: =IF(K3<G5,"-",IF(K3<"20071001",50,40)) ->  | T24: ～2006/7/31 | U24: =IF(計算表!$B$4=$A$5,L24,IF(計算表!$B$4=$A$6,M24,N24)) ->  | V24: =R6*V6 -> 0 | Y24: =IF(K6>"1",ROUNDDOWN($S$3*Y6*0.3,0),0) ->  | Z24: =IF(D47>0,ROUNDDOWN(Z6*0.3,0),0)*D47 ->  | AA24: =IF(K6>"1",IF(OR(計算表!$B$16>=270,$S$3>=90),ROUNDDOWN(AA6*90*0.4,0),IF(AND(0<$S$3,$S$3<45),ROUNDDOWN(AA6*18,0),IF(AND(45<=$S$3,$S$3<90),ROUNDDOWN($S$3*AA6*0.4,0),0))),0) -> 
F25: 21日 | K25: 20110801 | L25: =IF(計算表!$B$4=$A$5,IF($R$20=0,ROUNDDOWN(Q7*U7,0),ROUNDDOWN(R7*U7,0)),0) -> 0 | M25: =IF(K7>"1",IF(計算表!$B$4=$A$6,ROUNDDOWN($S$3*U7,0),0),0) ->  | N25: =IF(K7>"1",IF(計算表!$B$4=$A$7,ROUNDDOWN($S$3*U7,0),0),0) ->  | R25: 再手 | S25: =IF(計算表!B4=総合計算!A11,計算表!B20,0) -> 0 | T25: ～2007/7/31 | U25: =IF(計算表!$B$4=$A$5,L25,IF(計算表!$B$4=$A$6,M25,N25)) ->  | V25: 0 | Y25: =IF(K7>"1",ROUNDDOWN($S$3*Y7*0.3,0),0) ->  | AA25: =IF(K7>"1",IF(OR(計算表!$B$16>=270,$S$3>=90),ROUNDDOWN(AA7*90*0.4,0),IF(AND(0<$S$3,$S$3<45),ROUNDDOWN(AA7*18,0),IF(AND(45<=$S$3,$S$3<90),ROUNDDOWN($S$3*AA7*0.4,0),0))),0) -> 
F26: 22日 | G26: ○計算表（末日）の和暦入力を西暦に変換し、判別式に代入 | K26: 20170101 | L26: =IF(計算表!$B$4=$A$5,IF($R$20=0,ROUNDDOWN(Q8*U8,0),ROUNDDOWN(R8*U8,0)),0) -> 0 | M26: =IF(K8>"1",IF(計算表!$B$4=$A$6,ROUNDDOWN($S$3*U8,0),0),0) ->  | N26: =IF(K8>"1",IF(計算表!$B$4=$A$7,ROUNDDOWN($S$3*U8,0),0),0) ->  | R26: 一般等 | S26: =IF(K3<G5,"-",IF(AND(Q3<>"",R3<>""),DATEDIF(Q3,R3,"d")+1,"")) ->  | T26: ～2008/7/31 | U26: =IF(計算表!$B$4=$A$5,L26,IF(計算表!$B$4=$A$6,M26,N26)) ->  | V26: 0 | Y26: =IF(K8>"1",ROUNDDOWN($S$3*Y8*0.3,0),0) ->  | AA26: =IF(K8>"1",IF(OR(計算表!$B$16>=270,$S$3>=90),ROUNDDOWN(AA8*90*0.4,0),IF(AND(0<$S$3,$S$3<45),ROUNDDOWN(AA8*18,0),IF(AND(45<=$S$3,$S$3<90),ROUNDDOWN($S$3*AA8*0.4,0),0))),0) -> 
F27: 23日 | G27: H | H27: =MID(計算表!B8,3,2) ->  | I27: =LEFT(計算表!C8,LEN(計算表!C8)-1) ->  | J27: =LEFT(計算表!D8,LEN(計算表!D8)-1) ->  | L27: =IF(計算表!$B$4=$A$5,IF($R$20=0,ROUNDDOWN(Q9*U9,0),ROUNDDOWN(R9*U9,0)),0) -> 0 | M27: =IF(K9>"1",IF(計算表!$B$4=$A$6,ROUNDDOWN($S$3*U9,0),0),0) ->  | N27: =IF(K9>"1",IF(計算表!$B$4=$A$7,ROUNDDOWN($S$3*U9,0),0),0) ->  | R27: 再手割合 | S27: =計算表!B20/計算表!B16 ->  | T27: ～2009/7/31 | U27: =IF(計算表!$B$4=$A$5,L27,IF(計算表!$B$4=$A$6,M27,N27)) ->  | V27: 0 | Y27: =IF(K9>"1",IF(K9>=K24,IF($S$27>0.6666,ROUNDDOWN($S$3*Y9*0.5,0),ROUNDDOWN($S$3*Y9*0.4,0)),ROUNDDOWN($S$3*Y9*0.3,0)),0) ->  | AA27: =IF(K9>"1",IF(OR(計算表!$B$16>=270,$S$3>=90),ROUNDDOWN(AA9*90*0.4,0),IF(AND(0<$S$3,$S$3<45),ROUNDDOWN(AA9*18,0),IF(AND(45<=$S$3,$S$3<90),ROUNDDOWN($S$3*AA9*0.4,0),0))),0) -> 
F28: 24日 | I28: =TEXT(I27,"00") ->  | J28: =TEXT(J27,"00") ->  | L28: =IF(計算表!$B$4=$A$5,IF($R$20=0,ROUNDDOWN(Q10*U10,0),ROUNDDOWN(R10*U10,0)),0) -> 0 | M28: =IF(K10>"1",IF(計算表!$B$4=$A$6,ROUNDDOWN($S$3*U10,0),0),0) ->  | N28: =IF(K10>"1",IF(計算表!$B$4=$A$7,ROUNDDOWN($S$3*U10,0),0),0) ->  | O28: =IF(M10=$M$20,"○",0) ->  | R28: 常手日数 | S28: =IF(計算表!B4=A13,計算表!B20,0) -> 0 | T28: ～2010/7/31 | U28: =IF(計算表!$B$4=$A$5,L28,IF(計算表!$B$4=$A$6,M28,N28)) ->  | V28: 0 | Y28: =IF(K10>"1",IF($S$27>0.6666,ROUNDDOWN($S3*Y10*0.5,0),ROUNDDOWN($S3*Y10*0.4,0)),0) ->  | AA28: =IF(K10>"1",IF(OR(計算表!$B$16>=270,$S$3>=90),ROUNDDOWN(AA10*90*0.4,0),IF(AND(0<$S$3,$S$3<45),ROUNDDOWN(AA10*18,0),IF(AND(45<=$S$3,$S$3<90),ROUNDDOWN($S$3*AA10*0.4,0),0))),0) -> 
F29: 25日 | G29: =(G27&H27&"."&I28&"."&J28) ->  | H29: =TEXT(G29,"yyyymmdd") ->  | I29: 期間区分→ | J29: =VLOOKUP(H29,L5:AD19,19,FALSE) ->  | K29: 育児振り分け | L29: =IF(計算表!$B$4=$A$5,IF($R$20=0,ROUNDDOWN(Q11*U11,0),ROUNDDOWN(R11*U11,0)),0) -> 0 | M29: =IF(K11>"1",IF(計算表!$B$4=$A$6,ROUNDDOWN($S$3*U11,0),0),0) ->  | N29: =IF(K11>"1",IF(計算表!$B$4=$A$7,ROUNDDOWN($S$3*U11,0),0),0) ->  | O29: =IF(M11=$M$20,"○",0) ->  | R29: 常手割合 | S29: =計算表!B20/計算表!B16 ->  | T29: ～2011/7/31 | U29: =IF(計算表!$B$4=$A$5,L29,IF(計算表!$B$4=$A$6,M29,N29)) ->  | V29: 0 | Y29: =IF(K11>"1",IF($S$27>0.6666,ROUNDDOWN($S$3*Y11*0.5,0),ROUNDDOWN($S$3*Y11*0.4,0)),0) ->  | AA29: =IF(K11>"1",IF(OR(計算表!$B$16>=270,$S$3>=90),ROUNDDOWN(AA11*90*0.4,0),IF(AND(0<$S$3,$S$3<45),ROUNDDOWN(AA11*18,0),IF(AND(45<=$S$3,$S$3<90),ROUNDDOWN($S$3*AA11*0.4,0),0))),0) ->  | AG29: ↓残日数
F30: 26日 | K30: 19990101 | L30: =IF(計算表!$B$4=$A$5,IF($R$20=0,ROUNDDOWN(Q12*U12,0),ROUNDDOWN(R12*U12,0)),0) -> 0 | M30: =IF(K12>"1",IF(計算表!$B$4=$A$6,ROUNDDOWN($S$3*U12,0),0),0) ->  | N30: =IF(K12>"1",IF(計算表!$B$4=$A$7,ROUNDDOWN($S$3*U12,0),0),0) ->  | R30: 就促低下率 | S30: =S33/S31 ->  | T30: ～2012/7/31 | U30: =IF(計算表!$B$4=$A$5,L30,IF(計算表!$B$4=$A$6,M30,N30)) ->  | V30: 0 | Y30: =IF(K12>"1",IF($S$27>0.6666,ROUNDDOWN($S$3*Y12*0.6,0),ROUNDDOWN($S$3*Y12*0.5,0)),0) ->  | AA30: =IF(K12>"1",IF(OR(計算表!$B$16>=270,$S$3>=90),ROUNDDOWN(AA12*90*0.4,0),IF(AND(0<$S$3,$S$3<45),ROUNDDOWN(AA12*18,0),IF(AND(45<=$S$3,$S$3<90),ROUNDDOWN($S$3*AA12*0.4,0),0))),0) ->  | AF30: =計算BD!R9 ->  | AG30: =計算表!B20 -> 0
F31: 27日 | G31: ○終了日の6ヶ月後の日（復帰給付金用）の時点を算定 | K31: 20071001 | L31: =IF(計算表!$B$4=$A$5,IF($R$20=0,ROUNDDOWN(Q13*U13,0),ROUNDDOWN(R13*U13,0)),0) -> 0 | M31: =IF(K13>"1",IF(計算表!$B$4=$A$6,ROUNDDOWN($S$3*U13,0),0),0) ->  | N31: =IF(K13>"1",IF(計算表!$B$4=$A$7,ROUNDDOWN($S$3*U13,0),0),0) ->  | R31: 就促時賃金 | S31: =計算BD!B9 ->  | T31: ～2013/7/31 | U31: =IF(計算表!$B$4=$A$5,L31,IF(計算表!$B$4=$A$6,M31,N31)) ->  | V31: 0 | Y31: =IF(K13>"1",IF($S$27>0.6666,ROUNDDOWN($S3*Y13*0.6,0),ROUNDDOWN($S3*Y13*0.5,0)),0) ->  | AA31: =IF(K13>"1",IF(OR(計算表!$B$16>=270,$S$3>=90),ROUNDDOWN(AA13*90*0.4,0),IF(AND(0<$S$3,$S$3<45),ROUNDDOWN(AA13*18,0),IF(AND(45<=$S$3,$S$3<90),ROUNDDOWN($S$3*AA13*0.4,0),0))),0) -> 
F32: 28日 | K32: 20090401 | L32: =IF(計算表!$B$4=$A$5,IF($R$20=0,ROUNDDOWN(Q14*U14,0),ROUNDDOWN(R14*U14,0)),0) -> 0 | M32: =IF(K14>"1",IF(計算表!$B$4=$A$6,ROUNDDOWN($S$3*U14,0),0),0) ->  | N32: =IF(K14>"1",IF(計算表!$B$4=$A$7,ROUNDDOWN($S$3*U14,0),0),0) ->  | R32: 就促低下額 | S32: =IF(計算BD!B9-S33>0,計算BD!B9-S33,0) ->  | T32: ～2014/7/31 | U32: =IF(計算表!$B$4=$A$5,L32,IF(計算表!$B$4=$A$6,M32,N32)) ->  | V32: 0 | Y32: =IF(K14>"1",IF($S$27>0.6666,ROUNDDOWN($S3*Y14*0.6,0),ROUNDDOWN($S3*Y14*0.5,0)),0) ->  | AA32: =IF(K14>"1",IF(OR(計算表!$B$16>=270,$S$3>=90),ROUNDDOWN(AA14*90*0.4,0),IF(AND(0<$S$3,$S$3<45),ROUNDDOWN(AA14*18,0),IF(AND(45<=$S$3,$S$3<90),ROUNDDOWN($S$3*AA14*0.4,0),0))),0) ->  | AF32: 就促定着A | AG32: 就促定着B
F33: 29日 | G33: =EDATE(R3,6) ->  | I33: 期間区分→ | J33: =VLOOKUP(G33,E46:F60,2,FALSE) ->  | K33: 20140401 | L33: =IF(計算表!$B$4=$A$5,IF($R$20=0,ROUNDDOWN(Q15*U15,0),ROUNDDOWN(R15*U15,0)),0) -> 0 | M33: =IF(K15>"1",IF(計算表!$B$4=$A$6,ROUNDDOWN($S$3*U15,0),0),0) ->  | N33: =IF(K15>"1",IF(計算表!$B$4=$A$7,ROUNDDOWN($S$3*U15,0),0),0) ->  | R33: 就促賃金日額 | S33: =計算BD!R9 ->  | T33: ～2015/7/31 | U33: =IF(計算表!$B$4=$A$5,L33,IF(計算表!$B$4=$A$6,M33,N33)) ->  | V33: 0 | Y33: =IF(K15>"1",IF($S$27>0.6666,ROUNDDOWN($S3*Y15*0.6,0),ROUNDDOWN($S3*Y15*0.5,0)),0) ->  | AA33: =IF(K15>"1",IF(OR(計算表!$B$16>=270,$S$3>=90),ROUNDDOWN(AA15*90*0.4,0),IF(AND(0<$S$3,$S$3<45),ROUNDDOWN(AA15*18,0),IF(AND(45<=$S$3,$S$3<90),ROUNDDOWN($S$3*AA15*0.4,0),0))),0) ->  | AB33: =IF($R$20=0,ROUNDDOWN(Q15*AB15,0),ROUNDDOWN(R15*AB15,0)) ->  | AC33: =IF(K15>"1",AH33-AH74,0) ->  | AF33: =IF(ROUNDDOWN((AF15-$AF$30)*180,0)>0,ROUNDDOWN((AF15-$AF$30)*180,0),0) ->  | AG33: =ROUNDDOWN(AG30*(AC15+AC56)*0.4,0) -> 0 | AH33: =IF(AF33>AG33,AG33,AF33) -> 
F34: 30日 | L34: =IF(計算表!$B$4=$A$5,IF($R$20=0,ROUNDDOWN(Q16*U16,0),ROUNDDOWN(R16*U16,0)),0) -> 0 | M34: =IF(K16>"1",IF(計算表!$B$4=$A$6,ROUNDDOWN($S$3*U16,0),0),0) ->  | N34: =IF(K16>"1",IF(計算表!$B$4=$A$7,ROUNDDOWN($S$3*U16,0),0),0) ->  | R34: 就促残日数 | S34: =IF(計算表!B4=総合計算!A15,計算表!B20,0) -> 0 | T34: ～2016/7/31 | U34: =IF(計算表!$B$4=$A$5,L34,IF(計算表!$B$4=$A$6,M34,N34)) ->  | V34: 0 | Y34: =IF(K16>"1",IF($S$27>0.6666,ROUNDDOWN($S$3*Y16*0.6,0),ROUNDDOWN($S$3*Y16*0.5,0)),0) ->  | AA34: =IF(K16>"1",IF(OR(計算表!$B$16>=270,$S$3>=90),ROUNDDOWN(AA16*90*0.4,0),IF(AND(0<$S$3,$S$3<45),ROUNDDOWN(AA16*18,0),IF(AND(45<=$S$3,$S$3<90),ROUNDDOWN($S$3*AA16*0.4,0),0))),0) ->  | AB34: =IF($R$20=0,ROUNDDOWN(Q16*AB16,0),ROUNDDOWN(R16*AB16,0)) ->  | AC34: =IF(K16>"1",AH34-AH75,0) ->  | AF34: =IF(ROUNDDOWN((AF16-$AF$30)*180,0)>0,ROUNDDOWN((AF16-$AF$30)*180,0),0) ->  | AG34: =ROUNDDOWN(AG30*(AC16+AC57)*0.4,0) -> 0 | AH34: =IF(AF34>AG34,AG34,AF34) -> 
F35: 31日 | K35: 介護振り分け | L35: =IF(計算表!$B$4=$A$5,IF($R$20=0,ROUNDDOWN(Q17*U17,0),ROUNDDOWN(R17*U17,0)),0) -> 0 | M35: =IF(K17>"1",IF(計算表!$B$4=$A$6,ROUNDDOWN($S$3*U17,0),0),0) ->  | N35: =IF(K17>"1",IF(計算表!$B$4=$A$7,ROUNDDOWN($S$3*U17,0),0),0) ->  | T35: ～2017/7/31 | U35: =IF(計算表!$B$4=$A$5,L35,IF(計算表!$B$4=$A$6,M35,N35)) ->  | V35: 0 | Y35: =IF(K17>"1",IF(K17>=K26,IF($S$27>0.6666,ROUNDDOWN($S$3*Y17*0.7,0),ROUNDDOWN($S$3*Y17*0.6,0)),IF($S$27>0.6666,ROUNDDOWN($S$3*Y17*0.6,0),ROUNDDOWN($S$3*Y17*0.5,0))),0) ->  | AA35: =IF(K17>"1",IF(OR(計算表!$B$16>=270,$S$3>=90),ROUNDDOWN(AA17*90*0.4,0),IF(AND(0<$S$3,$S$3<45),ROUNDDOWN(AA17*18,0),IF(AND(45<=$S$3,$S$3<90),ROUNDDOWN($S$3*AA17*0.4,0),0))),0) ->  | AB35: =IF($R$20=0,ROUNDDOWN(Q17*AB17,0),ROUNDDOWN(R17*AB17,0)) ->  | AF35: =IF(ROUNDDOWN((AF17-$AF$30)*180,0)>0,ROUNDDOWN((AF17-$AF$30)*180,0),0) ->  | AG35: =IF($S$27>0.6666,ROUNDDOWN(AG30*(AC17+AC58)*0.3,0),ROUNDDOWN(AG30*(AC17+AC58)*0.4,0)) -> 
K36: 20170101 | L36: =IF(計算表!$B$4=$A$5,IF($R$20=0,ROUNDDOWN(Q18*U18,0),ROUNDDOWN(R18*U18,0)),0) -> 0 | M36: =IF(K18>"1",IF(計算表!$B$4=$A$6,ROUNDDOWN($S$3*U18,0),0),0) ->  | N36: =IF(K18>"1",IF(計算表!$B$4=$A$7,ROUNDDOWN($S$3*U18,0),0),0) ->  | O36: =IF(M18=$M$20,"○",0) ->  | T36: ～2018/7/31 | U36: =IF(計算表!$B$4=$A$5,L36,IF(計算表!$B$4=$A$6,M36,N36)) ->  | V36: 0 | Y36: =IF(K18>"1",IF($S$27>0.6666,ROUNDDOWN($S3*Y18*0.7,0),ROUNDDOWN($S3*Y18*0.6,0)),0) ->  | AA36: =IF(K18>"1",IF(OR(計算表!$B$16>=270,$S$3>=90),ROUNDDOWN(AA18*90*0.4,0),IF(AND(0<$S$3,$S$3<45),ROUNDDOWN(AA18*18,0),IF(AND(45<=$S$3,$S$3<90),ROUNDDOWN($S$3*AA18*0.4,0),0))),0) ->  | AB36: =IF($R$20=0,ROUNDDOWN(Q18*AB18,0),ROUNDDOWN(R18*AB18,0)) ->  | AD36: 計算表へ→ | AE36: =IFERROR(IF(AND(AE38<>"",AE40<>""),AE38+AE40,0),"-") -> 0 | AF36: =IF(ROUNDDOWN((AF18-$AF$30)*180,0)>0,ROUNDDOWN((AF18-$AF$30)*180,0),0) ->  | AG36: =IF($S$27>0.6666,ROUNDDOWN(AG30*(AC18+AC59)*0.3,0),ROUNDDOWN(AG30*(AC18+AC59)*0.4,0)) -> 
L37: =IF(計算表!$B$4=$A$5,IF($R$20=0,ROUNDDOWN(Q19*U19,0),ROUNDDOWN(R19*U19,0)),0) -> 0 | M37: =IF(K19>"1",IF(計算表!$B$4=$A$6,ROUNDDOWN($S$3*U19,0),0),0) ->  | N37: =IF(K19>"1",IF(計算表!$B$4=$A$7,ROUNDDOWN($S$3*U19,0),0),0) ->  | T37: ～2019/7/31 | U37: =IF(計算表!$B$4=$A$5,L37,IF(計算表!$B$4=$A$6,M37,N37)) ->  | V37: 0 | Y37: =IF(K19>"1",IF($S$27>0.6666,ROUNDDOWN($S3*Y19*0.7,0),ROUNDDOWN($S3*Y19*0.6,0)),0) ->  | AA37: =IF(K19>"1",IF(OR(計算表!$B$16>=270,$S$3>=90),ROUNDDOWN(AA19*90*0.4,0),IF(AND(0<$S$3,$S$3<45),ROUNDDOWN(AA19*18,0),IF(AND(45<=$S$3,$S$3<90),ROUNDDOWN($S$3*AA19*0.4,0),0))),0) ->  | AB37: =IF($R$20=0,ROUNDDOWN(Q19*AB19,0),ROUNDDOWN(R19*AB19,0)) ->  | AG37: =IF($S$27>0.6666,ROUNDDOWN(AG30*(AC19+AC60)*0.3,0),ROUNDDOWN(AG30*(AC19+AC60)*0.4,0)) ->  | AH37: =IF(AF37>AG37,AG37,AF37) -> 
K38: 教育支援振り分け | T38: 追加給付額 | U38: =SUM(U23:U37) ->  | V38: =SUM(V23:V37) -> 0 | W38: =Q87 -> 0 | X38: =Q118 ->  | Y38: =SUM(Y23:Y37) ->  | Z38: =SUM(Z23:Z37) ->  | AA38: =SUM(AA23:AA37) ->  | AB38: =SUM(AB33:AB37) ->  | AC38: =SUM(AC33:AC37) ->  | AE38: =IFERROR(IF(計算表!B4=A5,U38,IF(計算表!B4=A6,U38,IF(計算表!B4=A7,U38,IF(計算表!B4=A8,V38,IF(計算表!B4=A9,W38,IF(計算表!B4=A10,X38,IF(計算表!B4=A11,Y38,IF(計算表!B4=A12,Z38,IF(計算表!B4=A13,AA38,IF(計算表!B4=A14,AB38,IF(計算表!B4=A15,AC38,0))))))))))),"-") -> 0
K39: 20180101
T40: 加算額 | U40: =ROUNDDOWN(ROUND(U23*$AE$5,2)+ROUND(U24*$AE$6,2)+ROUND(U25*$AE$7,2)+ROUND(U26*$AE$8,2)+ROUND(U27*$AE$9,2)+ROUND(U28*$AE$10,2)+ROUND(U29*$AE$11,2)+ROUND(U30*$AE$12,2)+ROUND(U31*$AE$13,2)+ROUND(U32*$AE$14,2)+ROUND(U33*$AE$15,2)+ROUND(U34*$AE$16,2)+ROUND(U35*$AE$17,2)+ROUND(U36*$AE$18,2)+ROUND(U37*$AE$19,2),0) ->  | V40: =ROUNDDOWN(ROUND(V23*$AE$5,2)+ROUND(V24*$AE$6,2)+ROUND(V25*$AE$7,2)+ROUND(V26*$AE$8,2)+ROUND(V27*$AE$9,2)+ROUND(V28*$AE$10,2)+ROUND(V29*$AE$11,2)+ROUND(V30*$AE$12,2)+ROUND(V31*$AE$13,2)+ROUND(V32*$AE$14,2)+ROUND(V33*$AE$15,2)+ROUND(V34*$AE$16,2)+ROUND(V35*$AE$17,2)+ROUND(V36*$AE$18,2)+ROUND(V37*$AE$19,2),0) -> 0 | W40: =S83 -> 0 | X40: =S114 -> 0 | Y40: =ROUNDDOWN(ROUND(Y23*$AE$5,2)+ROUND(Y24*$AE$6,2)+ROUND(Y25*$AE$7,2)+ROUND(Y26*$AE$8,2)+ROUND(Y27*$AE$9,2)+ROUND(Y28*$AE$10,2)+ROUND(Y29*$AE$11,2)+ROUND(Y30*$AE$12,2)+ROUND(Y31*$AE$13,2)+ROUND(Y32*$AE$14,2)+ROUND(Y33*$AE$15,2)+ROUND(Y34*$AE$16,2)+ROUND(Y35*$AE$17,2)+ROUND(Y36*$AE$18,2)+ROUND(Y37*$AE$19,2),0) ->  | Z40: =ROUNDDOWN(ROUND(Z23*$AE$5,2)+ROUND(Z24*$AE$6,2)+ROUND(Z25*$AE$7,2)+ROUND(Z26*$AE$8,2)+ROUND(Z27*$AE$9,2)+ROUND(Z28*$AE$10,2)+ROUND(Z29*$AE$11,2)+ROUND(Z30*$AE$12,2)+ROUND(Z31*$AE$13,2)+ROUND(Z32*$AE$14,2)+ROUND(Z33*$AE$15,2)+ROUND(Z34*$AE$16,2)+ROUND(Z35*$AE$17,2)+ROUND(Z36*$AE$18,2)+ROUND(Z37*$AE$19,2),0) ->  | AA40: =ROUNDDOWN(ROUND(AA23*$AE$5,2)+ROUND(AA24*$AE$6,2)+ROUND(AA25*$AE$7,2)+ROUND(AA26*$AE$8,2)+ROUND(AA27*$AE$9,2)+ROUND(AA28*$AE$10,2)+ROUND(AA29*$AE$11,2)+ROUND(AA30*$AE$12,2)+ROUND(AA31*$AE$13,2)+ROUND(AA32*$AE$14,2)+ROUND(AA33*$AE$15,2)+ROUND(AA34*$AE$16,2)+ROUND(AA35*$AE$17,2)+ROUND(AA36*$AE$18,2)+ROUND(AA37*$AE$19,2),0) ->  | AB40: =ROUNDDOWN(ROUND(AB33*$AE$15,2)+ROUND(AB34*$AE$16,2)+ROUND(AB35*$AE$17,2)+ROUND(AB36*$AE$18,2)+ROUND(AB37*$AE$19,2),0) ->  | AC40: =ROUNDDOWN(ROUND(AC33*$AE$15,2)+ROUND(AC34*$AE$16,2)+ROUND(AC35*$AE$17,2)+ROUND(AC36*$AE$18,2)+ROUND(AC37*$AE$19,2),0) ->  | AE40: =IFERROR(IF(計算表!B4=A5,U40,IF(計算表!B4=A6,U40,IF(計算表!B4=A7,U40,IF(計算表!B4=A8,V40,IF(計算表!B4=A9,W40,IF(計算表!B4=A10,X40,IF(計算表!B4=A11,Y40,IF(計算表!B4=A12,Z40,IF(計算表!B4=A13,AA40,IF(計算表!B4=A14,AB40,IF(計算表!B4=A15,AC40,0))))))))))),"-") -> 0
K43: ○計算表BDで上限・下限判定がされた金額を代入し、高齢継続の新旧給付額（月）を計算 | T43: ○既存給付 | U43: 基本手当・高齢・短期特例計算式
D44: 事前計算 | E44: 復帰給付金基準日判定 | G44: 事前計算 | K44: 旧支給額計算基礎 | N44: 新支給額計算基礎 | Q44: 高齢継続計算 | V44: 高齢継続 | W44: 育児 | X44: 介護 | Y44: 再手 | Z44: 就業手当 | AA44: 常用 | AB44: 支援給付金 | AC44: 就業促進定着
D45: 就業手当 | E45: 復帰日 | F45: 期間区分 | G45: 基本手当 | H45: 高齢一時 | I45: 短期特例 | K45: 高継続低下率 | L45: 高継続賃金 | M45: 60歳到達賃金 | N45: 高継続低下率 | O45: 高継続賃金 | P45: 60歳到達賃金 | Q45: 旧計算 | R45: 新計算 | S45: 差額
D46: =IF(K5>"1",計算表!$B$14,0) ->  | E46: =IF(AND(I5<=$G$33,$G$33<=J5),$G$33,"") ->  | F46: 1 | G46: =IF(計算表!$B$4=$A$5,IF($R$20=0,ROUNDDOWN(Q5*U46,0),ROUNDDOWN(R5*U46,0)),0) -> 0 | H46: =IF(K5>"1",IF(計算表!$B$4=$A$6,ROUNDDOWN($S$3*U46,0),0),0) ->  | I46: =IF(K5>"1",IF(計算表!$B$4=$A$7,ROUNDDOWN($S$3*U46,0),0),0) ->  | K46: =ROUND(L46/M46*100,2) -> 2.67 | L46: =計算BD!BP48 -> 1688 | M46: =計算BD!BP13 -> 63300 | N46: =ROUND(O46/P46*100,2) -> 2.67 | O46: =計算BD!BQ48 -> 1688 | P46: =計算BD!BQ13 -> 63300 | Q46: =IF(K46<=61,ROUNDDOWN(L46*0.15,0),IF(AND(61<K46,K46<75),ROUNDDOWN(ROUND(L46*計算BD!AV47/100,2),0),0)) -> 253 | R46: =IF(N46<=61,ROUNDDOWN(O46*0.15,0),IF(AND(61<N46,N46<75),ROUNDDOWN(ROUND(O46*計算BD!AW47/100,2),0),0)) -> 253 | S46: =R46-Q46 -> 0 | T46: ～2005/7/31 | U46: =IF(計算表!$B$10=計算BD!$R$12,計算BD!$V$13,IF(計算表!$B$10=計算BD!$S$12,計算BD!$W$13,IF(計算表!$B$10=計算BD!$T$12,計算BD!$X$13,IF(計算表!$B$10=計算BD!$U$12,計算BD!$Y$13,0)))) -> 0 | V46: =Q46 -> 253 | Y46: =IF(計算表!$B$10=計算BD!$AC$12,計算BD!AE16,計算BD!AE13) -> 0 | Z46: =Y46 -> 0 | AA46: =Y46 -> 0
D47: =IF(K6>"1",計算表!$B$14,0) ->  | E47: =IF(AND(I6<=$G$33,$G$33<=J6),$G$33,"") ->  | F47: 2 | G47: =IF(計算表!$B$4=$A$5,IF($R$20=0,ROUNDDOWN(Q6*U47,0),ROUNDDOWN(R6*U47,0)),0) -> 0 | H47: =IF(K6>"1",IF(計算表!$B$4=$A$6,ROUNDDOWN($S$3*U47,0),0),0) ->  | I47: =IF(K6>"1",IF(計算表!$B$4=$A$7,ROUNDDOWN($S$3*U47,0),0),0) ->  | K47: =ROUND(L47/M47*100,2) -> 2.67 | L47: =計算BD!BP50 -> 1656 | M47: =計算BD!BP15 -> 62100 | N47: =ROUND(O47/P47*100,2) -> 2.67 | O47: =計算BD!BQ50 -> 1664 | P47: =計算BD!BQ15 -> 62400 | Q47: =IF(K47<=61,ROUNDDOWN(L47*0.15,0),IF(AND(61<K47,K47<75),ROUNDDOWN(ROUND(L47*計算BD!AV48/100,2),0),0)) -> 248 | R47: =IF(N47<=61,ROUNDDOWN(O47*0.15,0),IF(AND(61<N47,N47<75),ROUNDDOWN(ROUND(O47*計算BD!AW48/100,2),0),0)) -> 249 | S47: 1 | T47: ～2006/7/31 | U47: =IF(計算表!$B$10=計算BD!$R$12,計算BD!$V$17,IF(計算表!$B$10=計算BD!$S$12,計算BD!$W$17,IF(計算表!$B$10=計算BD!$T$12,計算BD!$X$17,IF(計算表!$B$10=計算BD!$U$12,計算BD!$Y$17,0)))) -> 0 | V47: =Q47 -> 248 | Y47: =IF(計算表!$B$10=計算BD!$AC$12,計算BD!AE20,計算BD!AE17) -> 0 | Z47: =Y47 -> 0 | AA47: =Y47 -> 0
D48: =IF(K7>"1",計算表!$B$14,0) ->  | F48: 3 | G48: =IF(計算表!$B$4=$A$5,IF($R$20=0,ROUNDDOWN(Q7*U48,0),ROUNDDOWN(R7*U48,0)),0) -> 0 | H48: =IF(K7>"1",IF(計算表!$B$4=$A$6,ROUNDDOWN($S$3*U48,0),0),0) ->  | I48: =IF(K7>"1",IF(計算表!$B$4=$A$7,ROUNDDOWN($S$3*U48,0),0),0) ->  | K48: 2.67 | L48: =計算BD!BP52 -> 1664 | M48: =計算BD!BP17 -> 62400 | N48: 2.67 | O48: =計算BD!BQ52 -> 1672 | P48: =計算BD!BQ17 -> 62700 | Q48: =IF(K48<=61,ROUNDDOWN(L48*0.15,0),IF(AND(61<K48,K48<75),ROUNDDOWN(ROUND(L48*計算BD!AV49/100,2),0),0)) -> 249 | R48: =IF(N48<=61,ROUNDDOWN(O48*0.15,0),IF(AND(61<N48,N48<75),ROUNDDOWN(ROUND(O48*計算BD!AW49/100,2),0),0)) -> 250 | S48: 1 | T48: ～2007/7/31 | U48: =IF(計算表!$B$10=計算BD!$R$12,計算BD!$V$21,IF(計算表!$B$10=計算BD!$S$12,計算BD!$W$21,IF(計算表!$B$10=計算BD!$T$12,計算BD!$X$21,IF(計算表!$B$10=計算BD!$U$12,計算BD!$Y$21,0)))) -> 0 | V48: =Q48 -> 249 | Y48: =IF(計算表!$B$10=計算BD!$AC$12,計算BD!AE24,計算BD!AE21) -> 0 | Z48: 0 | AA48: 0
D49: =IF(K8>"1",計算表!$B$14,0) ->  | F49: 4 | G49: =IF(計算表!$B$4=$A$5,IF($R$20=0,ROUNDDOWN(Q8*U49,0),ROUNDDOWN(R8*U49,0)),0) -> 0 | H49: =IF(K8>"1",IF(計算表!$B$4=$A$6,ROUNDDOWN($S$3*U49,0),0),0) ->  | I49: =IF(K8>"1",IF(計算表!$B$4=$A$7,ROUNDDOWN($S$3*U49,0),0),0) ->  | K49: 2.67 | L49: =計算BD!BP54 -> 1656 | M49: =計算BD!BP19 -> 62100 | N49: 2.67 | O49: =計算BD!BQ54 -> 1664 | P49: =計算BD!BQ19 -> 62400 | Q49: =IF(K49<=61,ROUNDDOWN(L49*0.15,0),IF(AND(61<K49,K49<75),ROUNDDOWN(ROUND(L49*計算BD!AV50/100,2),0),0)) -> 248 | R49: =IF(N49<=61,ROUNDDOWN(O49*0.15,0),IF(AND(61<N49,N49<75),ROUNDDOWN(ROUND(O49*計算BD!AW50/100,2),0),0)) -> 249 | S49: 1 | T49: ～2008/7/31 | U49: =IF(計算表!$B$10=計算BD!$R$12,計算BD!$V$25,IF(計算表!$B$10=計算BD!$S$12,計算BD!$W$25,IF(計算表!$B$10=計算BD!$T$12,計算BD!$X$25,IF(計算表!$B$10=計算BD!$U$12,計算BD!$Y$25,0)))) -> 0 | V49: =Q49 -> 248 | Y49: =IF(計算表!$B$10=計算BD!$AC$12,計算BD!AE28,計算BD!AE25) -> 0 | Z49: 0 | AA49: 0
D50: =IF(K9>"1",計算表!$B$14,0) ->  | F50: 5 | G50: =IF(計算表!$B$4=$A$5,IF($R$20=0,ROUNDDOWN(Q9*U50,0),ROUNDDOWN(R9*U50,0)),0) -> 0 | H50: =IF(K9>"1",IF(計算表!$B$4=$A$6,ROUNDDOWN($S$3*U50,0),0),0) ->  | I50: =IF(K9>"1",IF(計算表!$B$4=$A$7,ROUNDDOWN($S$3*U50,0),0),0) ->  | K50: 2.67 | L50: =計算BD!BP56 -> 1648 | M50: =計算BD!BP21 -> 61800 | N50: 2.67 | O50: =計算BD!BQ56 -> 1656 | P50: =計算BD!BQ21 -> 62100 | Q50: =IF(K50<=61,ROUNDDOWN(L50*0.15,0),IF(AND(61<K50,K50<75),ROUNDDOWN(ROUND(L50*計算BD!AV51/100,2),0),0)) -> 247 | R50: =IF(N50<=61,ROUNDDOWN(O50*0.15,0),IF(AND(61<N50,N50<75),ROUNDDOWN(ROUND(O50*計算BD!AW51/100,2),0),0)) -> 248 | S50: 1 | T50: ～2009/7/31 | U50: =IF(計算表!$B$10=計算BD!$R$12,計算BD!$V$29,IF(計算表!$B$10=計算BD!$S$12,計算BD!$W$29,IF(計算表!$B$10=計算BD!$T$12,計算BD!$X$29,IF(計算表!$B$10=計算BD!$U$12,計算BD!$Y$29,0)))) -> 0 | V50: 247 | Y50: =IF(計算表!$B$10=計算BD!$AC$12,計算BD!AE32,計算BD!AE29) -> 0 | Z50: 0 | AA50: 0
D51: =IF(K10>"1",計算表!$B$14,0) ->  | F51: 6 | G51: =IF(計算表!$B$4=$A$5,IF($R$20=0,ROUNDDOWN(Q10*U51,0),ROUNDDOWN(R10*U51,0)),0) -> 0 | H51: =IF(K10>"1",IF(計算表!$B$4=$A$6,ROUNDDOWN($S$3*U51,0),0),0) ->  | I51: =IF(K10>"1",IF(計算表!$B$4=$A$7,ROUNDDOWN($S$3*U51,0),0),0) ->  | K51: 2.67 | L51: =計算BD!BP58 -> 1640 | M51: =計算BD!BP23 -> 61500 | N51: 2.67 | O51: =計算BD!BQ58 -> 1648 | P51: =計算BD!BQ23 -> 61800 | Q51: =IF(K51<=61,ROUNDDOWN(L51*0.15,0),IF(AND(61<K51,K51<75),ROUNDDOWN(ROUND(L51*計算BD!AV52/100,2),0),0)) -> 246 | R51: =IF(N51<=61,ROUNDDOWN(O51*0.15,0),IF(AND(61<N51,N51<75),ROUNDDOWN(ROUND(O51*計算BD!AW52/100,2),0),0)) -> 247 | S51: 1 | T51: ～2010/7/31 | U51: =IF(計算表!$B$10=計算BD!$R$12,計算BD!$V$33,IF(計算表!$B$10=計算BD!$S$12,計算BD!$W$33,IF(計算表!$B$10=計算BD!$T$12,計算BD!$X$33,IF(計算表!$B$10=計算BD!$U$12,計算BD!$Y$33,0)))) -> 0 | V51: 246 | Y51: =IF(計算表!$B$10=計算BD!$AC$12,計算BD!AE36,計算BD!AE33) -> 0 | Z51: 0 | AA51: 0
D52: =IF(K11>"1",計算表!$B$14,0) ->  | F52: 7 | G52: =IF(計算表!$B$4=$A$5,IF($R$20=0,ROUNDDOWN(Q11*U52,0),ROUNDDOWN(R11*U52,0)),0) -> 0 | H52: =IF(K11>"1",IF(計算表!$B$4=$A$6,ROUNDDOWN($S$3*U52,0),0),0) ->  | I52: =IF(K11>"1",IF(計算表!$B$4=$A$7,ROUNDDOWN($S$3*U52,0),0),0) ->  | K52: 2.67 | L52: =計算BD!BP60 -> 1600 | M52: =計算BD!BP25 -> 60000 | N52: 2.67 | O52: =計算BD!BQ60 -> 1608 | P52: =計算BD!BQ25 -> 60300 | Q52: =IF(K52<=61,ROUNDDOWN(L52*0.15,0),IF(AND(61<K52,K52<75),ROUNDDOWN(ROUND(L52*計算BD!AV53/100,2),0),0)) -> 240 | R52: =IF(N52<=61,ROUNDDOWN(O52*0.15,0),IF(AND(61<N52,N52<75),ROUNDDOWN(ROUND(O52*計算BD!AW53/100,2),0),0)) -> 241 | S52: 1 | T52: ～2011/7/31 | U52: =IF(計算表!$B$10=計算BD!$R$12,計算BD!$V$37,IF(計算表!$B$10=計算BD!$S$12,計算BD!$W$37,IF(計算表!$B$10=計算BD!$T$12,計算BD!$X$37,IF(計算表!$B$10=計算BD!$U$12,計算BD!$Y$37,0)))) -> 0 | V52: 240 | Y52: =IF(計算表!$B$10=計算BD!$AC$12,計算BD!AE40,計算BD!AE37) -> 0 | Z52: 0 | AA52: 0
D53: =IF(K12>"1",計算表!$B$14,0) ->  | F53: 8 | G53: =IF(計算表!$B$4=$A$5,IF($R$20=0,ROUNDDOWN(Q12*U53,0),ROUNDDOWN(R12*U53,0)),0) -> 0 | H53: =IF(K12>"1",IF(計算表!$B$4=$A$6,ROUNDDOWN($S$3*U53,0),0),0) ->  | I53: =IF(K12>"1",IF(計算表!$B$4=$A$7,ROUNDDOWN($S$3*U53,0),0),0) ->  | K53: 2.67 | L53: =計算BD!BP62 -> 1864 | M53: =計算BD!BP27 -> 69900 | N53: 2.67 | O53: =計算BD!BQ62 -> 1864 | P53: =計算BD!BQ27 -> 69900 | Q53: =IF(K53<=61,ROUNDDOWN(L53*0.15,0),IF(AND(61<K53,K53<75),ROUNDDOWN(ROUND(L53*計算BD!AV54/100,2),0),0)) -> 279 | R53: =IF(N53<=61,ROUNDDOWN(O53*0.15,0),IF(AND(61<N53,N53<75),ROUNDDOWN(ROUND(O53*計算BD!AW54/100,2),0),0)) -> 279 | S53: 0 | T53: ～2012/7/31 | U53: =IF(計算表!$B$10=計算BD!$R$12,計算BD!$V$41,IF(計算表!$B$10=計算BD!$S$12,計算BD!$W$41,IF(計算表!$B$10=計算BD!$T$12,計算BD!$X$41,IF(計算表!$B$10=計算BD!$U$12,計算BD!$Y$41,0)))) -> 0 | V53: 279 | Y53: =IF(計算表!$B$10=計算BD!$AC$12,計算BD!AE44,計算BD!AE41) -> 0 | Z53: 0 | AA53: 0
D54: =IF(K13>"1",計算表!$B$14,0) ->  | F54: 9 | G54: =IF(計算表!$B$4=$A$5,IF($R$20=0,ROUNDDOWN(Q13*U54,0),ROUNDDOWN(R13*U54,0)),0) -> 0 | H54: =IF(K13>"1",IF(計算表!$B$4=$A$6,ROUNDDOWN($S$3*U54,0),0),0) ->  | I54: =IF(K13>"1",IF(計算表!$B$4=$A$7,ROUNDDOWN($S$3*U54,0),0),0) ->  | K54: 2.67 | L54: =計算BD!BP64 -> 1856 | M54: =計算BD!BP29 -> 69600 | N54: 2.67 | O54: =計算BD!BQ64 -> 1856 | P54: =計算BD!BQ29 -> 69600 | Q54: =IF(K54<=61,ROUNDDOWN(L54*0.15,0),IF(AND(61<K54,K54<75),ROUNDDOWN(ROUND(L54*計算BD!AV55/100,2),0),0)) -> 278 | R54: =IF(N54<=61,ROUNDDOWN(O54*0.15,0),IF(AND(61<N54,N54<75),ROUNDDOWN(ROUND(O54*計算BD!AW55/100,2),0),0)) -> 278 | S54: 0 | T54: ～2013/7/31 | U54: =IF(計算表!$B$10=計算BD!$R$12,計算BD!$V$45,IF(計算表!$B$10=計算BD!$S$12,計算BD!$W$45,IF(計算表!$B$10=計算BD!$T$12,計算BD!$X$45,IF(計算表!$B$10=計算BD!$U$12,計算BD!$Y$45,0)))) -> 0 | V54: 278 | Y54: =IF(計算表!$B$10=計算BD!$AC$12,計算BD!AE48,計算BD!AE45) -> 0 | Z54: 0 | AA54: 0
D55: =IF(K14>"1",計算表!$B$14,0) ->  | F55: 10 | G55: =IF(計算表!$B$4=$A$5,IF($R$20=0,ROUNDDOWN(Q14*U55,0),ROUNDDOWN(R14*U55,0)),0) -> 0 | H55: =IF(K14>"1",IF(計算表!$B$4=$A$6,ROUNDDOWN($S$3*U55,0),0),0) ->  | I55: =IF(K14>"1",IF(計算表!$B$4=$A$7,ROUNDDOWN($S$3*U55,0),0),0) ->  | K55: 2.67 | L55: =計算BD!BP66 -> 1848 | M55: =計算BD!BP31 -> 69300 | N55: 2.67 | O55: =計算BD!BQ66 -> 1848 | P55: =計算BD!BQ31 -> 69300 | Q55: =IF(K55<=61,ROUNDDOWN(L55*0.15,0),IF(AND(61<K55,K55<75),ROUNDDOWN(ROUND(L55*計算BD!AV56/100,2),0),0)) -> 277 | R55: =IF(N55<=61,ROUNDDOWN(O55*0.15,0),IF(AND(61<N55,N55<75),ROUNDDOWN(ROUND(O55*計算BD!AW56/100,2),0),0)) -> 277 | S55: 0 | T55: ～2014/7/31 | U55: =IF(計算表!$B$10=計算BD!$R$12,計算BD!$V$49,IF(計算表!$B$10=計算BD!$S$12,計算BD!$W$49,IF(計算表!$B$10=計算BD!$T$12,計算BD!$X$49,IF(計算表!$B$10=計算BD!$U$12,計算BD!$Y$49,0)))) -> 0 | V55: 277 | Y55: =IF(計算表!$B$10=計算BD!$AC$12,計算BD!AE52,計算BD!AE49) -> 0 | Z55: 0 | AA55: 0
D56: =IF(K15>"1",計算表!$B$14,0) ->  | F56: 11 | G56: =IF(計算表!$B$4=$A$5,IF($R$20=0,ROUNDDOWN(Q15*U56,0),ROUNDDOWN(R15*U56,0)),0) -> 0 | H56: =IF(K15>"1",IF(計算表!$B$4=$A$6,ROUNDDOWN($S$3*U56,0),0),0) ->  | I56: =IF(K15>"1",IF(計算表!$B$4=$A$7,ROUNDDOWN($S$3*U56,0),0),0) ->  | K56: 2.67 | L56: =計算BD!BP68 -> 1840 | M56: =計算BD!BP33 -> 69000 | N56: 2.67 | O56: =計算BD!BQ68 -> 1848 | P56: =計算BD!BQ33 -> 69300 | Q56: =IF(K56<=61,ROUNDDOWN(L56*0.15,0),IF(AND(61<K56,K56<75),ROUNDDOWN(ROUND(L56*計算BD!AV57/100,2),0),0)) -> 276 | R56: =IF(N56<=61,ROUNDDOWN(O56*0.15,0),IF(AND(61<N56,N56<75),ROUNDDOWN(ROUND(O56*計算BD!AW57/100,2),0),0)) -> 277 | S56: 1 | T56: ～2015/7/31 | U56: =IF(計算表!$B$10=計算BD!$R$12,計算BD!$V$53,IF(計算表!$B$10=計算BD!$S$12,計算BD!$W$53,IF(計算表!$B$10=計算BD!$T$12,計算BD!$X$53,IF(計算表!$B$10=計算BD!$U$12,計算BD!$Y$53,0)))) -> 0 | V56: 276 | Y56: =IF(計算表!$B$10=計算BD!$AC$12,計算BD!AE56,計算BD!AE53) -> 0 | Z56: 0 | AA56: 0 | AB56: =ROUNDDOWN(U56*0.5,0) -> 0 | AC56: =Y56 -> 0 | AF56: =IF(計算表!$B$10=計算BD!$B$79,計算BD!I79,IF(計算表!$B$10=計算BD!$B$80,計算BD!I80,IF(計算表!$B$10=計算BD!$B$81,計算BD!I81,IF(計算表!$B$10=計算BD!$B$82,計算BD!I82)))) -> FALSE
D57: =IF(K16>"1",計算表!$B$14,0) ->  | F57: 12 | G57: =IF(計算表!$B$4=$A$5,IF($R$20=0,ROUNDDOWN(Q16*U57,0),ROUNDDOWN(R16*U57,0)),0) -> 0 | H57: =IF(K16>"1",IF(計算表!$B$4=$A$6,ROUNDDOWN($S$3*U57,0),0),0) ->  | I57: =IF(K16>"1",IF(計算表!$B$4=$A$7,ROUNDDOWN($S$3*U57,0),0),0) ->  | K57: 2.67 | L57: =計算BD!BP70 -> 1840 | M57: =計算BD!BP35 -> 69000 | N57: 2.67 | O57: =計算BD!BQ70 -> 1848 | P57: =計算BD!BQ35 -> 69300 | Q57: =IF(K57<=61,ROUNDDOWN(L57*0.15,0),IF(AND(61<K57,K57<75),ROUNDDOWN(ROUND(L57*計算BD!AV58/100,2),0),0)) -> 276 | R57: =IF(N57<=61,ROUNDDOWN(O57*0.15,0),IF(AND(61<N57,N57<75),ROUNDDOWN(ROUND(O57*計算BD!AW58/100,2),0),0)) -> 277 | S57: 1 | T57: ～2016/7/31 | U57: =IF(計算表!$B$10=計算BD!$R$12,計算BD!$V$57,IF(計算表!$B$10=計算BD!$S$12,計算BD!$W$57,IF(計算表!$B$10=計算BD!$T$12,計算BD!$X$57,IF(計算表!$B$10=計算BD!$U$12,計算BD!$Y$57,0)))) -> 0 | V57: 276 | Y57: =IF(計算表!$B$10=計算BD!$AC$12,計算BD!AE60,計算BD!AE57) -> 0 | Z57: 0 | AA57: 0 | AB57: =ROUNDDOWN(U57*0.5,0) -> 0 | AC57: =Y57 -> 0 | AF57: =IF(計算表!$B$10=計算BD!$B$83,計算BD!I83,IF(計算表!$B$10=計算BD!$B$84,計算BD!I84,IF(計算表!$B$10=計算BD!$B$85,計算BD!I85,IF(計算表!$B$10=計算BD!$B$86,計算BD!I86)))) -> FALSE
D58: =IF(K17>"1",計算表!$B$14,0) ->  | F58: 13 | G58: =IF(計算表!$B$4=$A$5,IF($R$20=0,ROUNDDOWN(Q17*U58,0),ROUNDDOWN(R17*U58,0)),0) -> 0 | H58: =IF(K17>"1",IF(計算表!$B$4=$A$6,ROUNDDOWN($S$3*U58,0),0),0) ->  | I58: =IF(K17>"1",IF(計算表!$B$4=$A$7,ROUNDDOWN($S$3*U58,0),0),0) ->  | K58: 2.67 | L58: =計算BD!BP72 -> 1832 | M58: =計算BD!BP37 -> 68700 | N58: 2.67 | O58: =計算BD!BQ72 -> 1840 | P58: =計算BD!BQ37 -> 69000 | Q58: =IF(K58<=61,ROUNDDOWN(L58*0.15,0),IF(AND(61<K58,K58<75),ROUNDDOWN(ROUND(L58*計算BD!AV59/100,2),0),0)) -> 274 | R58: =IF(N58<=61,ROUNDDOWN(O58*0.15,0),IF(AND(61<N58,N58<75),ROUNDDOWN(ROUND(O58*計算BD!AW59/100,2),0),0)) -> 276 | S58: 2 | T58: ～2017/7/31 | U58: =IF(計算表!$B$10=計算BD!$R$12,計算BD!$V$61,IF(計算表!$B$10=計算BD!$S$12,計算BD!$W$61,IF(計算表!$B$10=計算BD!$T$12,計算BD!$X$61,IF(計算表!$B$10=計算BD!$U$12,計算BD!$Y$61,0)))) -> 0 | V58: 274 | Y58: =IF(計算表!$B$10=計算BD!$AC$12,計算BD!AE64,計算BD!AE61) -> 0 | Z58: 0 | AA58: 0 | AB58: =ROUNDDOWN(U58*0.5,0) -> 0 | AC58: 0 | AF58: =IF(計算表!$B$10=計算BD!$B$87,計算BD!I87,IF(計算表!$B$10=計算BD!$B$88,計算BD!I88,IF(計算表!$B$10=計算BD!$B$89,計算BD!I89,IF(計算表!$B$10=計算BD!$B$90,計算BD!I90)))) -> FALSE
D59: =IF(K18>"1",計算表!$B$14,0) ->  | F59: 14 | G59: =IF(計算表!$B$4=$A$5,IF($R$20=0,ROUNDDOWN(Q18*U59,0),ROUNDDOWN(R18*U59,0)),0) -> 0 | H59: =IF(K18>"1",IF(計算表!$B$4=$A$6,ROUNDDOWN($S$3*U59,0),0),0) ->  | I59: =IF(K18>"1",IF(計算表!$B$4=$A$7,ROUNDDOWN($S$3*U59,0),0),0) ->  | K59: 2.67 | L59: =計算BD!BP74 -> 1976 | M59: =計算BD!BP39 -> 74100 | N59: 2.67 | O59: =計算BD!BQ74 -> 1976 | P59: =計算BD!BQ39 -> 74100 | Q59: =IF(K59<=61,ROUNDDOWN(L59*0.15,0),IF(AND(61<K59,K59<75),ROUNDDOWN(ROUND(L59*計算BD!AV60/100,2),0),0)) -> 296 | R59: =IF(N59<=61,ROUNDDOWN(O59*0.15,0),IF(AND(61<N59,N59<75),ROUNDDOWN(ROUND(O59*計算BD!AW60/100,2),0),0)) -> 296 | S59: 0 | T59: ～2018/7/31 | U59: =IF(計算表!$B$10=計算BD!$R$12,計算BD!$V$65,IF(計算表!$B$10=計算BD!$S$12,計算BD!$W$65,IF(計算表!$B$10=計算BD!$T$12,計算BD!$X$65,IF(計算表!$B$10=計算BD!$U$12,計算BD!$Y$65,0)))) -> 0 | V59: 296 | Y59: =IF(計算表!$B$10=計算BD!$AC$12,計算BD!AE68,計算BD!AE65) -> 0 | Z59: 0 | AA59: 0 | AB59: =IF(U59>0,IF(K18>=K39,ROUNDDOWN(U59*0.8,0),ROUNDDOWN(U59*0.5,0)),0) -> 0 | AC59: 0 | AF59: =IF(計算表!$B$10=計算BD!$B$91,計算BD!I91,IF(計算表!$B$10=計算BD!$B$92,計算BD!I92,IF(計算表!$B$10=計算BD!$B$93,計算BD!I93,IF(計算表!$B$10=計算BD!$B$94,計算BD!I94)))) -> FALSE
D60: =IF(K19>"1",計算表!$B$14,0) ->  | F60: 15 | G60: =IF(計算表!$B$4=$A$5,IF($R$20=0,ROUNDDOWN(Q19*U60,0),ROUNDDOWN(R19*U60,0)),0) -> 0 | H60: =IF(K19>"1",IF(計算表!$B$4=$A$6,ROUNDDOWN($S$3*U60,0),0),0) ->  | I60: =IF(K19>"1",IF(計算表!$B$4=$A$7,ROUNDDOWN($S$3*U60,0),0),0) ->  | K60: 2.67 | L60: =計算BD!BP76 -> 1984 | M60: =計算BD!BP41 -> 74400 | N60: 2.67 | O60: =計算BD!BQ76 -> 1984 | P60: =計算BD!BQ41 -> 74400 | Q60: =IF(K60<=61,ROUNDDOWN(L60*0.15,0),IF(AND(61<K60,K60<75),ROUNDDOWN(ROUND(L60*計算BD!AV61/100,2),0),0)) -> 297 | R60: =IF(N60<=61,ROUNDDOWN(O60*0.15,0),IF(AND(61<N60,N60<75),ROUNDDOWN(ROUND(O60*計算BD!AW61/100,2),0),0)) -> 297 | S60: 0 | T60: ～2019/7/31 | U60: =IF(計算表!$B$10=計算BD!$R$12,計算BD!$V$69,IF(計算表!$B$10=計算BD!$S$12,計算BD!$W$69,IF(計算表!$B$10=計算BD!$T$12,計算BD!$X$69,IF(計算表!$B$10=計算BD!$U$12,計算BD!$Y$69,0)))) -> 0 | V60: 297 | Y60: =IF(計算表!$B$10=計算BD!$AC$12,計算BD!AE72,計算BD!AE69) -> 0 | Z60: 0 | AA60: 0 | AB60: =IF(U60>0,IF(OR(K18>=K39,K19>K39),ROUNDDOWN(U60*0.8,0),ROUNDDOWN(U60*0.5,0)),0) -> 0 | AC60: 0 | AF60: =IF(計算表!$B$10=計算BD!$B$95,計算BD!I95,IF(計算表!$B$10=計算BD!$B$96,計算BD!I96,IF(計算表!$B$10=計算BD!$B$97,計算BD!I97,IF(計算表!$B$10=計算BD!$B$98,計算BD!I98)))) -> FALSE
A62: ○育児計算
A63: 日付 | B63: 月 | C63: 期間区分 | D63: 給付日数 | U63: 基本・高齢・短期 | V63: 高齢継続 | W63: 育児 | X63: 介護 | Y63: 再手 | Z63: 就業手当 | AA63: 常用 | AB63: 支援給付金 | AC63: 就業促進定着
C64: 8月で切り替わり | D64: =Q20 ->  | E64: 旧賃金日額 | F64: 旧計算（基本分） | G64: 賃金月額×0.8 | H64: 賃金月額×0.13 | I64: 旧支給総額 | J64: 新賃金日額 | K64: 新計算（基本分） | L64: 賃金月額×0.8 | M64: 賃金月額×0.13 | N64: 新支給総額 | O64: 追加給付額 | P64: 区分 | Q64: 追加給付（区分） | R64: 金利 | S64: 加算額 | T64: ～2005/7/31 | U64: =IF(計算表!$B$4=$A$5,G46,IF(計算表!$B$4=$A$6,H46,I46)) ->  | V64: =R5*V46 -> 0 | Y64: =IF(K5>"1",ROUNDDOWN($S$3*Y46*0.3,0),0) ->  | Z64: =IF(D46>0,ROUNDDOWN(Z46*0.3,0),0)*D46 ->  | AA64: =IF(K5>"1",IF(OR(計算表!$B$16>=270,$S$3>=90),ROUNDDOWN(AA46*90*0.4,0),IF(AND(0<$S$3,$S$3<45),ROUNDDOWN(AA46*18,0),IF(AND(45<=$S$3,$S$3<90),ROUNDDOWN($S$3*AA46*0.4,0),0))),0) -> 
A65: =Q3 ->  | B65: =MONTH(A65) ->  | C65: =J24 ->  | D65: =IF($D$64>=30,30,計算BD!$AS$66) ->  | E65: =IFERROR(INDEX(計算BD!$AN$70:$AP$84,C65,2),0) -> 0 | F65: =IF($K$3<$K$31,ROUNDDOWN(D65*E65*0.3,0),IF(AND($K$31<=$K$3,$K$3<$K$32),ROUNDDOWN(D65*E65*0.3,0),IF(AND($K$32<=$K$3,$K$3<$K$33),ROUNDDOWN(D65*E65*0.5,0),IF($K$33<=$K$3,ROUNDDOWN(D65*E65*0.67,0))))) ->  | G65: =ROUNDDOWN(E65*D65*0.8,0) ->  | H65: =IF($K$3>=$K$33,ROUNDDOWN(E65*D65*0.13,0),ROUNDDOWN(E65*D65*0.3,0)) ->  | I65: =IF(D65-G65>=0,0,IF(AND(D65<G65,D65>H65),G65-D65,F65)) ->  | J65: =IFERROR(INDEX(計算BD!$AN$70:$AP$84,C65,3),0) -> 0 | K65: =IF($K$3<$K$31,ROUNDDOWN(D65*J65*0.3,0),IF(AND($K$31<=$K$3,$K$3<$K$32),ROUNDDOWN(D65*J65*0.3,0),IF(AND($K$32<=$K$3,$K$3<$K$33),ROUNDDOWN(D65*J65*0.5,0),IF($K$33<=$K$3,ROUNDDOWN(D65*J65*0.67,0))))) ->  | L65: =ROUNDDOWN(J65*D65*0.8,0) ->  | M65: =IF($K$3>=$K$33,ROUNDDOWN(J65*D65*0.13,0),ROUNDDOWN(J65*D65*0.3,0)) ->  | N65: =IF(D65-L65>=0,0,IF(AND(D65<L65,D65>M65),L65-D65,K65)) ->  | O65: =N65-I65 ->  | P65: 1 | Q65: =SUMIF($C$65:$C$88,P65,$O$65:$O$88)+SUMIF($C$92,P65,$I$92) -> 0 | R65: 0.14 | S65: =IFERROR(ROUND(Q65*R65,2),0) -> 0 | T65: ～2006/7/31 | U65: =IF(計算表!$B$4=$A$5,G47,IF(計算表!$B$4=$A$6,H47,I47)) ->  | V65: =R6*V47 -> 0 | Y65: =IF(K6>"1",ROUNDDOWN($S$3*Y47*0.3,0),0) ->  | Z65: =IF(D47>0,ROUNDDOWN(Z47*0.3,0),0)*D47 ->  | AA65: =IF(K6>"1",IF(OR(計算表!$B$16>=270,$S$3>=90),ROUNDDOWN(AA47*90*0.4,0),IF(AND(0<$S$3,$S$3<45),ROUNDDOWN(AA47*18,0),IF(AND(45<=$S$3,$S$3<90),ROUNDDOWN($S$3*AA47*0.4,0),0))),0) -> 
A66: =EDATE(A65,1) ->  | C66: =IF(B66=8,C65+1,C65) ->  | D66: =IF($D$64-30>=30,30,IF(SUM($D$65)=$D$64,0,計算BD!$AS$66)) ->  | E66: =IFERROR(INDEX(計算BD!$AN$70:$AP$84,C66,2),0) -> 0 | J66: =IFERROR(INDEX(計算BD!$AN$70:$AP$84,C66,3),0) -> 0 | P66: 2 | Q66: =SUMIF($C$65:$C$88,P66,$O$65:$O$88)+SUMIF($C$92,P66,$I$92) -> 0 | R66: 0.13 | S66: =IFERROR(ROUND(Q66*R66,2),0) -> 0 | T66: ～2007/7/31 | U66: =IF(計算表!$B$4=$A$5,G48,IF(計算表!$B$4=$A$6,H48,I48)) ->  | V66: =R7*V48 -> 0 | Y66: =IF(K7>"1",ROUNDDOWN($S$3*Y48*0.3,0),0) ->  | AA66: =IF(K7>"1",IF(OR(計算表!$B$16>=270,$S$3>=90),ROUNDDOWN(AA48*90*0.4,0),IF(AND(0<$S$3,$S$3<45),ROUNDDOWN(AA48*18,0),IF(AND(45<=$S$3,$S$3<90),ROUNDDOWN($S$3*AA48*0.4,0),0))),0) -> 
D67: =IF($D$64-60>=30,30,IF(SUM($D$65:D66)=$D$64,0,計算BD!$AS$66)) ->  | E67: =IFERROR(INDEX(計算BD!$AN$70:$AP$84,C67,2),0) -> 0 | J67: =IFERROR(INDEX(計算BD!$AN$70:$AP$84,C67,3),0) -> 0 | P67: 3 | Q67: 0 | R67: 0.11 | S67: 0 | T67: ～2008/7/31 | U67: =IF(計算表!$B$4=$A$5,G49,IF(計算表!$B$4=$A$6,H49,I49)) ->  | V67: 0 | Y67: =IF(K8>"1",ROUNDDOWN($S$3*Y49*0.3,0),0) ->  | AA67: =IF(K8>"1",IF(OR(計算表!$B$16>=270,$S$3>=90),ROUNDDOWN(AA49*90*0.4,0),IF(AND(0<$S$3,$S$3<45),ROUNDDOWN(AA49*18,0),IF(AND(45<=$S$3,$S$3<90),ROUNDDOWN($S$3*AA49*0.4,0),0))),0) -> 
D68: =IF($D$64-90>=30,30,IF(SUM($D$65:D67)=$D$64,0,計算BD!$AS$66)) ->  | E68: =IFERROR(INDEX(計算BD!$AN$70:$AP$84,C68,2),0) -> 0 | J68: =IFERROR(INDEX(計算BD!$AN$70:$AP$84,C68,3),0) -> 0 | P68: 4 | Q68: 0 | R68: 0.09 | S68: 0 | T68: ～2009/7/31 | U68: =IF(計算表!$B$4=$A$5,G50,IF(計算表!$B$4=$A$6,H50,I50)) ->  | V68: 0 | Y68: =IF(K9>"1",IF(K9>=K24,IF($S$27>0.6666,ROUNDDOWN($S$3*Y50*0.5,0),ROUNDDOWN($S$3*Y50*0.4,0)),ROUNDDOWN($S$3*Y50*0.3,0)),0) ->  | AA68: =IF(K9>"1",IF(OR(計算表!$B$16>=270,$S$3>=90),ROUNDDOWN(AA50*90*0.4,0),IF(AND(0<$S$3,$S$3<45),ROUNDDOWN(AA50*18,0),IF(AND(45<=$S$3,$S$3<90),ROUNDDOWN($S$3*AA50*0.4,0),0))),0) -> 
D69: =IF($D$64-120>=30,30,IF(SUM($D$65:D68)=$D$64,0,計算BD!$AS$66)) ->  | E69: =IFERROR(INDEX(計算BD!$AN$70:$AP$84,C69,2),0) -> 0 | J69: =IFERROR(INDEX(計算BD!$AN$70:$AP$84,C69,3),0) -> 0 | P69: 5 | Q69: =SUMIF($C$65:$C$88,P69,$O$65:$O$88)+SUMIF($C$92,P69,$I$92) -> 0 | R69: 0.08 | S69: =IFERROR(ROUND(Q69*R69,2),0) -> 0 | T69: ～2010/7/31 | U69: =IF(計算表!$B$4=$A$5,G51,IF(計算表!$B$4=$A$6,H51,I51)) ->  | V69: 0 | Y69: =IF(K10>"1",IF($S$27>0.6666,ROUNDDOWN($S3*Y51*0.5,0),ROUNDDOWN(S3*Y51*0.4,0)),0) ->  | AA69: =IF(K10>"1",IF(OR(計算表!$B$16>=270,$S$3>=90),ROUNDDOWN(AA51*90*0.4,0),IF(AND(0<$S$3,$S$3<45),ROUNDDOWN(AA51*18,0),IF(AND(45<=$S$3,$S$3<90),ROUNDDOWN($S$3*AA51*0.4,0),0))),0) -> 
D70: =IF($D$64-150>=30,30,IF(SUM($D$65:D69)=$D$64,0,計算BD!$AS$66)) ->  | E70: =IFERROR(INDEX(計算BD!$AN$70:$AP$84,C70,2),0) -> 0 | J70: =IFERROR(INDEX(計算BD!$AN$70:$AP$84,C70,3),0) -> 0 | P70: 6 | Q70: 0 | R70: 0.06 | S70: 0 | T70: ～2011/7/31 | U70: =IF(計算表!$B$4=$A$5,G52,IF(計算表!$B$4=$A$6,H52,I52)) ->  | V70: 0 | Y70: =IF(K11>"1",IF($S$27>0.6666,ROUNDDOWN($S$3*Y52*0.5,0),ROUNDDOWN($S$3*Y52*0.4,0)),0) ->  | AA70: =IF(K11>"1",IF(OR(計算表!$B$16>=270,$S$3>=90),ROUNDDOWN(AA52*90*0.4,0),IF(AND(0<$S$3,$S$3<45),ROUNDDOWN(AA52*18,0),IF(AND(45<=$S$3,$S$3<90),ROUNDDOWN($S$3*AA52*0.4,0),0))),0) ->  | AG70: ↓残日数
D71: =IF($D$64-180>=30,30,IF(SUM($D$65:D70)=$D$64,0,計算BD!$AS$66)) ->  | E71: =IFERROR(INDEX(計算BD!$AN$70:$AP$84,C71,2),0) -> 0 | F71: =IF($K$3<$K$31,ROUNDDOWN(D71*E71*0.3,0),IF(AND($K$31<=$K$3,$K$3<$K$32),ROUNDDOWN(D71*E71*0.3,0),IF(AND($K$32<=$K$3,$K$3<$K$33),ROUNDDOWN(D71*E71*0.5,0),IF($K$33<=$K$3,ROUNDDOWN(D71*E71*0.5,0))))) ->  | J71: =IFERROR(INDEX(計算BD!$AN$70:$AP$84,C71,3),0) -> 0 | K71: =IF($K$3<$K$31,ROUNDDOWN(D71*J71*0.3,0),IF(AND($K$31<=$K$3,$K$3<$K$32),ROUNDDOWN(D71*J71*0.3,0),IF(AND($K$32<=$K$3,$K$3<$K$33),ROUNDDOWN(D71*J71*0.5,0),IF($K$33<=$K$3,ROUNDDOWN(D71*J71*0.5,0))))) ->  | P71: 7 | Q71: 0 | R71: 0.05 | S71: 0 | T71: ～2012/7/31 | U71: =IF(計算表!$B$4=$A$5,G53,IF(計算表!$B$4=$A$6,H53,I53)) ->  | V71: 0 | Y71: =IF(K12>"1",IF($S$27>0.6666,ROUNDDOWN($S$3*Y53*0.6,0),ROUNDDOWN($S$3*Y53*0.5,0)),0) ->  | AA71: =IF(K12>"1",IF(OR(計算表!$B$16>=270,$S$3>=90),ROUNDDOWN(AA53*90*0.4,0),IF(AND(0<$S$3,$S$3<45),ROUNDDOWN(AA53*18,0),IF(AND(45<=$S$3,$S$3<90),ROUNDDOWN($S$3*AA53*0.4,0),0))),0) ->  | AF71: =計算BD!R9 ->  | AG71: =計算表!B20 -> 0
D72: =IF($D$64-210>=30,30,IF(SUM($D$65:D71)=$D$64,0,計算BD!$AS$66)) ->  | E72: =IFERROR(INDEX(計算BD!$AN$70:$AP$84,C72,2),0) -> 0 | J72: =IFERROR(INDEX(計算BD!$AN$70:$AP$84,C72,3),0) -> 0 | P72: 8 | Q72: 0 | R72: 0.04 | S72: 0 | T72: ～2013/7/31 | U72: =IF(計算表!$B$4=$A$5,G54,IF(計算表!$B$4=$A$6,H54,I54)) ->  | V72: 0 | Y72: =IF(K13>"1",IF($S$27>0.6666,ROUNDDOWN($S3*Y54*0.6,0),ROUNDDOWN($S3*Y54*0.5,0)),0) ->  | AA72: =IF(K13>"1",IF(OR(計算表!$B$16>=270,$S$3>=90),ROUNDDOWN(AA54*90*0.4,0),IF(AND(0<$S$3,$S$3<45),ROUNDDOWN(AA54*18,0),IF(AND(45<=$S$3,$S$3<90),ROUNDDOWN($S$3*AA54*0.4,0),0))),0) -> 
D73: =IF($D$64-240>=30,30,IF(SUM($D$65:D72)=$D$64,0,計算BD!$AS$66)) ->  | E73: =IFERROR(INDEX(計算BD!$AN$70:$AP$84,C73,2),0) -> 0 | J73: =IFERROR(INDEX(計算BD!$AN$70:$AP$84,C73,3),0) -> 0 | P73: 9 | Q73: 0 | R73: 0.03 | S73: 0 | T73: ～2014/7/31 | U73: =IF(計算表!$B$4=$A$5,G55,IF(計算表!$B$4=$A$6,H55,I55)) ->  | V73: 0 | Y73: =IF(K14>"1",IF($S$27>0.6666,ROUNDDOWN($S3*Y55*0.6,0),ROUNDDOWN($S3*Y55*0.5,0)),0) ->  | AA73: =IF(K14>"1",IF(OR(計算表!$B$16>=270,$S$3>=90),ROUNDDOWN(AA55*90*0.4,0),IF(AND(0<$S$3,$S$3<45),ROUNDDOWN(AA55*18,0),IF(AND(45<=$S$3,$S$3<90),ROUNDDOWN($S$3*AA55*0.4,0),0))),0) ->  | AF73: 就促定着A | AG73: 就促定着B
D74: =IF($D$64-270>=30,30,IF(SUM($D$65:D73)=$D$64,0,計算BD!$AS$66)) ->  | E74: =IFERROR(INDEX(計算BD!$AN$70:$AP$84,C74,2),0) -> 0 | J74: =IFERROR(INDEX(計算BD!$AN$70:$AP$84,C74,3),0) -> 0 | P74: 10 | Q74: 0 | R74: 0.02 | S74: 0 | T74: ～2015/7/31 | U74: =IF(計算表!$B$4=$A$5,G56,IF(計算表!$B$4=$A$6,H56,I56)) ->  | V74: 0 | Y74: =IF(K15>"1",IF($S$27>0.6666,ROUNDDOWN($S3*Y56*0.6,0),ROUNDDOWN($S3*Y56*0.5,0)),0) ->  | AA74: =IF(K15>"1",IF(OR(計算表!$B$16>=270,$S$3>=90),ROUNDDOWN(AA56*90*0.4,0),IF(AND(0<$S$3,$S$3<45),ROUNDDOWN(AA56*18,0),IF(AND(45<=$S$3,$S$3<90),ROUNDDOWN($S$3*AA56*0.4,0),0))),0) ->  | AB74: =IF($R$20=0,ROUNDDOWN(Q15*AB56,0),ROUNDDOWN(R15*AB56,0)) ->  | AC74: =IF(K15>"1",AH74,0) ->  | AF74: =IF(ROUNDDOWN((AF56-$AF$71)*180,0)>0,ROUNDDOWN((AF56-$AF$71)*180,0),0) ->  | AG74: =ROUNDDOWN($AG$71*AC56*0.4,0) -> 0 | AH74: =IF(AF74>AG74,AG74,AF74) -> 
D75: =IF($D$64-300>=30,30,IF(SUM($D$65:D74)=$D$64,0,計算BD!$AS$66)) ->  | E75: =IFERROR(INDEX(計算BD!$AN$70:$AP$84,C75,2),0) -> 0 | J75: =IFERROR(INDEX(計算BD!$AN$70:$AP$84,C75,3),0) -> 0 | P75: 11 | Q75: 0 | R75: 0.01 | S75: 0 | T75: ～2016/7/31 | U75: =IF(計算表!$B$4=$A$5,G57,IF(計算表!$B$4=$A$6,H57,I57)) ->  | V75: 0 | Y75: =IF(K16>"1",IF($S$27>0.6666,ROUNDDOWN($S$3*Y57*0.6,0),ROUNDDOWN($S$3*Y57*0.5,0)),0) ->  | AA75: =IF(K16>"1",IF(OR(計算表!$B$16>=270,$S$3>=90),ROUNDDOWN(AA57*90*0.4,0),IF(AND(0<$S$3,$S$3<45),ROUNDDOWN(AA57*18,0),IF(AND(45<=$S$3,$S$3<90),ROUNDDOWN($S$3*AA57*0.4,0),0))),0) ->  | AB75: =IF($R$20=0,ROUNDDOWN(Q16*AB57,0),ROUNDDOWN(R16*AB57,0)) ->  | AC75: =IF(K16>"1",AH75,0) ->  | AF75: =IF(ROUNDDOWN((AF57-$AF$71)*180,0)>0,ROUNDDOWN((AF57-$AF$71)*180,0),0) ->  | AG75: =ROUNDDOWN($AG$71*AC57*0.4,0) -> 0 | AH75: =IF(AF75>AG75,AG75,AF75) -> 
D76: =IF($D$64-330>=30,30,IF(SUM($D$65:D75)=$D$64,0,計算BD!$AS$66)) ->  | E76: =IFERROR(INDEX(計算BD!$AN$70:$AP$84,C76,2),0) -> 0 | J76: =IFERROR(INDEX(計算BD!$AN$70:$AP$84,C76,3),0) -> 0 | P76: 12 | Q76: 0 | R76: 0.01 | S76: 0 | T76: ～2017/7/31 | U76: =IF(計算表!$B$4=$A$5,G58,IF(計算表!$B$4=$A$6,H58,I58)) ->  | V76: 0 | Y76: =IF(K17>"1",IF(K17>=K26,IF($S$27>0.6666,ROUNDDOWN($S$3*Y58*0.7,0),ROUNDDOWN($S$3*Y58*0.6,0)),IF($S$27>0.6666,ROUNDDOWN($S$3*Y58*0.6,0),ROUNDDOWN($S$3*Y58*0.5,0))),0) ->  | AA76: =IF(K17>"1",IF(OR(計算表!$B$16>=270,$S$3>=90),ROUNDDOWN(AA58*90*0.4,0),IF(AND(0<$S$3,$S$3<45),ROUNDDOWN(AA58*18,0),IF(AND(45<=$S$3,$S$3<90),ROUNDDOWN($S$3*AA58*0.4,0),0))),0) ->  | AB76: =IF($R$20=0,ROUNDDOWN(Q17*AB58,0),ROUNDDOWN(R17*AB58,0)) ->  | AF76: =IF(ROUNDDOWN((AF58-$AF$71)*180,0)>0,ROUNDDOWN((AF58-$AF$71)*180,0),0) ->  | AG76: =IF($S$27>0.6666,ROUNDDOWN(AG71*AC58*0.3,0),ROUNDDOWN(AG71*AC58*0.4,0)) -> 
D77: =IF($D$64-360>=30,30,IF(SUM($D$65:D76)=$D$64,0,計算BD!$AS$66)) ->  | E77: =IFERROR(INDEX(計算BD!$AN$70:$AP$84,C77,2),0) -> 0 | J77: =IFERROR(INDEX(計算BD!$AN$70:$AP$84,C77,3),0) -> 0 | P77: 13 | Q77: 0 | R77: 0.01 | S77: 0 | T77: ～2018/7/31 | U77: =IF(計算表!$B$4=$A$5,G59,IF(計算表!$B$4=$A$6,H59,I59)) ->  | V77: 0 | Y77: =IF(K18>"1",IF($S$27>0.6666,ROUNDDOWN($S3*Y59*0.7,0),ROUNDDOWN($S3*Y59*0.6,0)),0) ->  | AA77: =IF(K18>"1",IF(OR(計算表!$B$16>=270,$S$3>=90),ROUNDDOWN(AA59*90*0.4,0),IF(AND(0<$S$3,$S$3<45),ROUNDDOWN(AA59*18,0),IF(AND(45<=$S$3,$S$3<90),ROUNDDOWN($S$3*AA59*0.4,0),0))),0) ->  | AB77: =IF($R$20=0,ROUNDDOWN(Q18*AB59,0),ROUNDDOWN(R18*AB59,0)) ->  | AF77: =IF(ROUNDDOWN((AF59-$AF$71)*180,0)>0,ROUNDDOWN((AF59-$AF$71)*180,0),0) ->  | AG77: =IF($S$27>0.6666,ROUNDDOWN(AG71*AC59*0.3,0),ROUNDDOWN(AG71*AC59*0.4,0)) -> 
D78: =IF($D$64-390>=30,30,IF(SUM($D$65:D77)=$D$64,0,計算BD!$AS$66)) ->  | E78: =IFERROR(INDEX(計算BD!$AN$70:$AP$84,C78,2),0) -> 0 | J78: =IFERROR(INDEX(計算BD!$AN$70:$AP$84,C78,3),0) -> 0 | P78: 14 | Q78: 0 | R78: 0.01 | S78: 0 | T78: ～2019/7/31 | U78: =IF(計算表!$B$4=$A$5,G60,IF(計算表!$B$4=$A$6,H60,I60)) ->  | V78: 0 | Y78: =IF(K19>"1",IF($S$27>0.6666,ROUNDDOWN($S3*Y60*0.7,0),ROUNDDOWN($S3*Y60*0.6,0)),0) ->  | AA78: =IF(K19>"1",IF(OR(計算表!$B$16>=270,$S$3>=90),ROUNDDOWN(AA60*90*0.4,0),IF(AND(0<$S$3,$S$3<45),ROUNDDOWN(AA60*18,0),IF(AND(45<=$S$3,$S$3<90),ROUNDDOWN($S$3*AA60*0.4,0),0))),0) ->  | AB78: =IF($R$20=0,ROUNDDOWN(Q19*AB60,0),ROUNDDOWN(R19*AB60,0)) ->  | AF78: =IF(ROUNDDOWN((AF60-$AF$71)*180,0)>0,ROUNDDOWN((AF60-$AF$71)*180,0),0) ->  | AG78: =IF($S$27>0.6666,ROUNDDOWN(AG71*AC60*0.3,0),ROUNDDOWN(AG71*AC60*0.4,0)) -> 
D79: =IF($D$64-420>=30,30,IF(SUM($D$65:D78)=$D$64,0,計算BD!$AS$66)) ->  | E79: =IFERROR(INDEX(計算BD!$AN$70:$AP$84,C79,2),0) -> 0 | J79: =IFERROR(INDEX(計算BD!$AN$70:$AP$84,C79,3),0) -> 0 | P79: 15 | Q79: 0 | R79: 0.01 | S79: 0 | T79: 既存給付 | U79: =SUM(U64:U78) ->  | V79: =SUM(V64:V78) -> 0 | W79: =Q83 ->  | X79: =Q114 ->  | Y79: =SUM(Y64:Y78) ->  | Z79: =SUM(Z64:Z78) ->  | AA79: =SUM(AA64:AA78) ->  | AB79: =SUM(AB74:AB78) ->  | AC79: =SUM(AC74:AC78) ->  | AE79: =IFERROR(IF(計算表!B4=A5,U79,IF(計算表!B4=A6,U79,IF(計算表!B4=A7,U79,IF(計算表!B4=A8,V79,IF(計算表!B4=A9,W79,IF(計算表!B4=A10,X79,IF(計算表!B4=A11,Y79,IF(計算表!B4=A12,Z79,IF(計算表!B4=A13,AA79,IF(計算表!B4=A14,AB79,IF(計算表!B4=A15,AC79,0))))))))))),"-") -> 0 | AG79: ↑上限計算
D80: =IF($D$64-450>=30,30,IF(SUM($D$65:D79)=$D$64,0,計算BD!$AS$66)) ->  | E80: =IFERROR(INDEX(計算BD!$AN$70:$AP$84,C80,2),0) -> 0 | J80: =IFERROR(INDEX(計算BD!$AN$70:$AP$84,C80,3),0) -> 0
D81: =IF($D$64-480>=30,30,IF(SUM($D$65:D80)=$D$64,0,計算BD!$AS$66)) ->  | E81: =IFERROR(INDEX(計算BD!$AN$70:$AP$84,C81,2),0) -> 0 | J81: =IFERROR(INDEX(計算BD!$AN$70:$AP$84,C81,3),0) -> 0
D82: =IF($D$64-510>=30,30,IF(SUM($D$65:D81)=$D$64,0,計算BD!$AS$66)) ->  | E82: =IFERROR(INDEX(計算BD!$AN$70:$AP$84,C82,2),0) -> 0 | I82: =IF(D82-G82>=0,0,IF(AND(D82<G82,D82>H82),G82-D82,F82)) ->  | J82: =IFERROR(INDEX(計算BD!$AN$70:$AP$84,C82,3),0) -> 0 | Q82: 旧支給総額 | S82: 加算額
D83: =IF($D$64-540>=30,30,IF(SUM($D$65:D82)=$D$64,0,計算BD!$AS$66)) ->  | E83: =IFERROR(INDEX(計算BD!$AN$70:$AP$84,C83,2),0) -> 0 | J83: =IFERROR(INDEX(計算BD!$AN$70:$AP$84,C83,3),0) -> 0 | Q83: =IF(計算表!B5="○",I89+F92,I89) ->  | S83: =ROUNDDOWN(S65+S66+S67+S68+S69+S70+S71+S72+S73+S74+S75+S76+S77+S78+S79,0) -> 0
D84: =IF($D$64-570>=30,30,IF(SUM($D$65:D83)=$D$64,0,計算BD!$AS$66)) ->  | E84: =IFERROR(INDEX(計算BD!$AN$70:$AP$84,C84,2),0) -> 0 | J84: =IFERROR(INDEX(計算BD!$AN$70:$AP$84,C84,3),0) -> 0 | Q84: 新支給総額
D85: =IF($D$64-600>=30,30,IF(SUM($D$65:D84)=$D$64,0,計算BD!$AS$66)) ->  | E85: =IFERROR(INDEX(計算BD!$AN$70:$AP$84,C85,2),0) -> 0 | J85: =IFERROR(INDEX(計算BD!$AN$70:$AP$84,C85,3),0) -> 0 | Q85: =IF(計算表!B4="○",N89+H92,N89) -> 
D86: =IF($D$64-630>=30,30,IF(SUM($D$65:D85)=$D$64,0,計算BD!$AS$66)) ->  | E86: =IFERROR(INDEX(計算BD!$AN$70:$AP$84,C86,2),0) -> 0 | J86: =IFERROR(INDEX(計算BD!$AN$70:$AP$84,C86,3),0) -> 0 | Q86: 追加給付額
D87: =IF($D$64-660>=30,30,IF(SUM($D$65:D86)=$D$64,0,計算BD!$AS$66)) ->  | E87: =IFERROR(INDEX(計算BD!$AN$70:$AP$84,C87,2),0) -> 0 | J87: =IFERROR(INDEX(計算BD!$AN$70:$AP$84,C87,3),0) -> 0 | Q87: =SUM(Q65:Q79) -> 0
D88: =IF($D$64-690>=30,30,IF(SUM($D$65:D87)=$D$64,0,計算BD!$AS$66)) ->  | E88: =IFERROR(INDEX(計算BD!$AN$70:$AP$84,C88,2),0) -> 0 | J88: =IFERROR(INDEX(計算BD!$AN$70:$AP$84,C88,3),0) -> 0
I89: =SUM(I65:I88) ->  | N89: =SUM(N65:N88) -> 
C91: 期間区分 | D91: 復帰給付日数 | E91: 旧賃金日額 | F91: 旧復帰給付金 | G91: 新賃金日額 | H91: 新復帰給付金 | I91: 追加給付額 | J91: 推定復帰日
C92: =J33 ->  | D92: =Q20 ->  | E92: =INDEX(計算BD!$AN$70:$AP$84,C92,2) ->  | F92: =IF($G$33<K92,ROUNDDOWN($D$92*$E$92*0.1,0),IF(AND(K92<=G33,G33<L92),ROUNDDOWN($D$92*$E$92*0.2,0),0)) ->  | G92: =INDEX(計算BD!$AN$70:$AP$84,C92,3) ->  | H92: =IF(G33<$K$92,ROUNDDOWN($D$92*$G$92*0.1,0),IF(AND($K$92<=G33,G33<$L$92),ROUNDDOWN($D$92*$G$92*0.2,0),0)) ->  | I92: =H92-F92 ->  | J92: =G33 ->  | K92: 2007-10-01 | L92: 2010-03-31
K93: ここまで10% | L93: ここまで20%
A95: ○介護計算
A96: 日付 | B96: 月 | C96: 期間区分 | D96: 申請日数 | E96: 旧賃金日額 | F96: 旧支給基礎 | G96: 賃金月額×0.8 | H96: 賃金月額×0.13 | I96: 旧支給総額 | J96: 新賃金日額 | K96: 新支給基礎 | L96: 賃金月額×0.8 | M96: 賃金月額×0.13 | N96: 新支給総額 | O96: 追加給付額 | P96: 区分 | Q96: 追加給付（区分） | R96: 金利 | S96: 加算額
A97: =Q3 ->  | B97: =MONTH(A97) ->  | C97: =J24 ->  | D97: =計算表!B18 -> 0 | E97: =INDEX(計算BD!$AX$70:$AZ$84,C97,2) ->  | F97: =IF($K$3<$K$36,ROUNDDOWN(E97*D97*0.4,0),ROUNDDOWN(E97*D97*0.67,0)) ->  | G97: =ROUNDDOWN(E97*D97*0.8,0) ->  | H97: =IF($K$3>=$K$36,ROUNDDOWN(E97*D97*0.13,0),ROUNDDOWN(E97*D97*0.4,0)) ->  | I97: =IF(D97-G97>=0,0,IF(AND(D97<G97,D97>H97),G97-D97,F97)) ->  | J97: =INDEX(計算BD!$AX$70:$AZ$84,C97,3) ->  | K97: =IF($K$3<$K$36,ROUNDDOWN(J97*D97*0.4,0),ROUNDDOWN(J97*D97*0.67,0)) ->  | L97: =ROUNDDOWN(J97*D97*0.8,0) ->  | M97: =IF($K$3>=$K$36,ROUNDDOWN(J97*D97*0.13,0),ROUNDDOWN(J97*D97*0.4,0)) ->  | N97: =IF(D97-L97>=0,0,IF(AND(D97<L97,D97>M97),L97-D97,K97)) ->  | O97: =N97-I97 ->  | P97: 1 | Q97: =SUMIF($C$97:$C$99,P97,$O$97:$O$99) -> 0 | R97: 0.14 | S97: =IFERROR(ROUND(Q97*R97,2),0) -> 0
A98: =EDATE(A97,1) ->  | B98: =MONTH(A98) ->  | C98: =IF(B98=8,C97+1,C97) ->  | D98: =計算表!B19 -> 0 | E98: =INDEX(計算BD!$AX$70:$AZ$84,C98,2) ->  | F98: =IF($K$3<$K$36,ROUNDDOWN(E98*D98*0.4,0),ROUNDDOWN(E98*D98*0.67,0)) ->  | G98: =ROUNDDOWN(E98*D98*0.8,0) ->  | H98: =IF($K$3>=$K$36,ROUNDDOWN(E98*D98*0.13,0),ROUNDDOWN(E98*D98*0.4,0)) ->  | I98: =IF(D98-G98>=0,0,IF(AND(D98<G98,D98>H98),G98-D98,F98)) ->  | J98: =INDEX(計算BD!$AX$70:$AZ$84,C98,3) ->  | K98: =IF($K$3<$K$36,ROUNDDOWN(J98*D98*0.4,0),ROUNDDOWN(J98*D98*0.67,0)) ->  | L98: =ROUNDDOWN(J98*D98*0.8,0) ->  | M98: =IF($K$3>=$K$36,ROUNDDOWN(J98*D98*0.13,0),ROUNDDOWN(J98*D98*0.4,0)) ->  | N98: =IF(D98-L98>=0,0,IF(AND(D98<L98,D98>M98),L98-D98,K98)) ->  | O98: =N98-I98 ->  | P98: 2 | Q98: =SUMIF($C$97:$C$99,P98,$O$97:$O$99) -> 0 | R98: 0.13 | S98: =IFERROR(ROUND(Q98*R98,2),0) -> 0
A99: =EDATE(A98,1) ->  | C99: =J29 ->  | D99: =計算表!B20 -> 0 | E99: =INDEX(計算BD!$AX$70:$AZ$84,C99,2) ->  | I99: =IF(D99-G99>=0,0,IF(AND(D99<G99,D99>H99),G99-D99,F99)) ->  | J99: =INDEX(計算BD!$AX$70:$AZ$84,C99,3) ->  | N99: =IF(D99-L99>=0,0,IF(AND(D99<L99,D99>M99),L99-D99,K99)) ->  | O99: =N99-I99 ->  | P99: 3 | Q99: 0 | R99: 0.11 | S99: 0
I100: =SUM(I97:I99) ->  | N100: =SUM(N97:N99) ->  | O100: =SUM(O97:O99) ->  | P100: 4 | Q100: 0 | R100: 0.09 | S100: 0
P101: 5 | Q101: 0 | R101: 0.08 | S101: =IFERROR(ROUND(Q101*R101,2),0) -> 0
P102: 6 | Q102: 0 | R102: 0.06 | S102: =IFERROR(ROUND(Q102*R102,2),0) -> 0
P103: 7 | Q103: 0 | R103: 0.05 | S103: 0
P104: 8 | Q104: 0 | R104: 0.04 | S104: 0
P105: 9 | Q105: 0 | R105: 0.03 | S105: 0
P106: 10 | Q106: 0 | R106: 0.02 | S106: 0
P107: 11 | Q107: 0 | R107: 0.01 | S107: 0
P108: 12 | Q108: 0 | R108: 0.01 | S108: 0
P109: 13 | Q109: 0 | R109: 0.01 | S109: 0
P110: 14 | Q110: 0 | R110: 0.01 | S110: 0
P111: 15 | Q111: 0 | R111: 0.01 | S111: 0
Q113: 旧支給総額 | S113: 加算額
Q114: =I100 ->  | S114: =ROUNDDOWN(S97+S98+S99+S100+S101+S102+S103+S104+S105+S106+S107+S108+S109+S110+S111,0) -> 0
Q115: 新支給総額
Q116: =N100 -> 
Q117: 追加給付額
Q118: =Q116-Q114 -> 
K120: =IF(K5<G120,G120,IF(AND($K$3>=G120,$K$3<H120),$K$3,"")) -> 
K121: =IF(AND($K$3>=G121,$K$3<H121),$K$3,"") -> 
K122: =IF(AND($K$3>=G122,$K$3<H122),$K$3,"") -> 
K123: =IF(AND($K$3>=G123,$K$3<H123),$K$3,"") -> 
K124: =IF(AND($K$3>=G124,$K$3<H124),$K$3,"") -> 
K125: =IF(AND($K$3>=G125,$K$3<H125),$K$3,"") -> 
K134: =IF(AND($K$3>=G134,$K$3<H134),$K$3,"") -> 

Sheet 計算BD (hidden)
A1: ○計算表に入力された賃金を賃金日額に返還
D2: 月給 | E2: 日給 | Q2: 月給 | R2: 日給
A3: →計算表より | B3: =計算表!B12 -> 0 | C3: 賃金日額 | D3: =IF(計算表!B13>=1,計算表!B13,IF(計算表!B11="月給",ROUNDDOWN(B3*6/180,2),0)) -> 0 | E3: =IF(計算表!B11="日給",B3,0) -> 0 | F3: =計算表!D11 -> 0 | G3: =IF(計算表!B13>=1,計算表!B13,ROUND(E3/F3*0.7,2)) ->  | H3: ←A | I3: =IF(H5-G3>0,H5,G3) ->  | J3: ←日給の場合（AとBを比較） | M3: →再就職時の賃金算定（計算表より） | O3: =計算表!B18 -> 0 | P3: 賃金日額 | Q3: =IF(計算表!B19>=1,計算表!B19,IF(計算表!B17="月給",ROUNDDOWN(O3*6/180,2),0)) -> 0 | R3: =IF(計算表!B17="日給",O3,0) -> 0 | S3: =計算表!D17 -> 0 | T3: =IF(計算表!B18>=1,計算表!B18,ROUND(R3/S3*0.7,2)) ->  | U3: ←A | V3: =IF(U5-T3>0,U5,T3) ->  | W3: ←日給の場合（AとBを比較）
E5: =E3 -> 0 | F5: 180 | G5: =ROUND(E5/F5,2) -> 0 | H5: =G5 -> 0 | I5: ←B | R5: =R3 -> 0 | S5: 180 | T5: =ROUND(R5/S5,2) -> 0 | U5: =T5 -> 0 | V5: ←B
A7: ○代入される賃金日額 | Q7: ○代入される賃金日額
AM8: ○育児 | AN8: 休業前開始賃金日額 | AP8: =$B$9 ->  | AW8: ○介護 | AX8: 休業前開始賃金日額 | AZ8: =$B$9 ->  | BH8: ○高齢継続 | BK8: =IF(計算表!B4=総合計算!A8,計算表!B16,0) -> 0 | BL8: 60歳到達賃金判別
B9: =IF(D3>0,D3,IF(I3>0,I3,計算表!B13)) ->  | R9: =IF(Q3>0,Q3,IF(T3>0,T3,計算表!B19)) -> 
AM10: 【上限・下限判別】
A11: 期間 | B11: 区分 | C11: 旧80％ 新80％ 区間 | F11: 旧屈折点間 新80% 区間 | I11: 屈折点間 区間 | L11: 旧50％区間 新屈折点間 区間 | O11: 旧50% 新50% 区間 | R11: 対応単価（差額） | V11: 旧支給額 | Z11: 新支給額 | AD11: 再就職手当・就業手当・常用就職支度手当・就業促進定着手当 | AI11: 内職減額 | AL11: ↓vlook用 | AM11: 期間 | AN11: 区分 | AO11: 旧 | AP11: 新 | AQ11: 差 | AR11: 入力額 | AS11: 旧との差額 | AT11: 差額（BDへ） | AU11: 旧日額 | AV11: 新日額 | AW11: 期間 | AX11: 区分 | AY11: 旧 | AZ11: 新 | BA11: 差 | BB11: 入力額 | BC11: 旧との差額 | BD11: 差額（BDへ） | BE11: 旧日額 | BF11: 新日額 | BH11: 期間 | BI11: 区分 | BJ11: 旧 | BK11: 新 | BL11: 差 | BM11: 入力額 | BN11: 旧との差額 | BO11: 差額（BDへ） | BP11: 60歳到達月額（旧） | BQ11: 60歳到達月額（新）
C12: 旧 | D12: 新 | E12: 差 | F12: 旧 | G12: 新 | H12: 差 | I12: 旧 | J12: 新 | K12: 差 | L12: 旧 | M12: 新 | N12: 差 | O12: 旧 | P12: 新 | Q12: 差 | R12: ～29歳または65歳～ | S12: 30歳～44歳 | T12: 45歳～59歳 | U12: 60歳～64歳 | V12: ～29歳または65歳～ | W12: 30歳～44歳 | X12: 45歳～59歳 | Y12: 60歳～64歳 | Z12: ～29歳または65歳～ | AA12: 30歳～44歳 | AB12: 45歳～59歳 | AC12: 60歳～64歳 | AD12: 旧基礎 | AE12: 旧 | AF12: 新基礎 | AG12: 新 | AH12: 差 | AI12: 旧 | AJ12: 新 | AK12: 差額
A13: H16.8～H17.7 | B13: ～29歳または65歳～ | C13: =IF(AND(0<$B$9,$B$9<2110),1688,IF(AND(2110<=$B$9,$B$9<4160),ROUNDDOWN($B$9*0.8,0),0)) ->  | D13: =IF(AND(0<$B$9,$B$9<2110),1688,IF(AND(2110<=$B$9,$B$9<4160),ROUNDDOWN($B$9*0.8,0),0)) ->  | E13: =D13-C13 ->  | I13: =IF(AND(4160<=$B$9,$B$9<12060),ROUNDDOWN(0.8*$B$9-0.3*(($B$9-4160)/(12060-4160)*$B$9),0),0) ->  | J13: =IF(AND(4160<=$B$9,$B$9<12060),ROUNDDOWN(0.8*$B$9-0.3*(($B$9-4160)/(12080-4160)*$B$9),0),0) ->  | K13: =J13-I13 ->  | L13: =IF(AND(12060<=$B$9,$B$9<12080),ROUNDDOWN($B$9*0.5,0),0) ->  | M13: =IF(AND(12060<=$B$9,$B$9<12080),ROUNDDOWN(0.8*$B$9-0.3*(($B$9-4160)/(12080-4160)*$B$9),0),0) ->  | N13: =M13-L13 ->  | O13: =IF($B$9>=12990,6495,IF(AND(12080<=$B$9,$B$9<12990),ROUNDDOWN($B$9*0.5,0),0)) ->  | P13: =IF($B$9>=13010,6505,IF(AND(12080<=$B$9,$B$9<13010),ROUNDDOWN($B$9*0.5,0),0)) ->  | Q13: =P13-O13 ->  | R13: =IF(計算表!$B$10=B13,IF($B$9<4160,E13,IF(AND($B$9>=4160,$B$9<12060),K13,IF(AND($B$9>=12060,$B$9<12080),N13,IF($B$9>=12080,Q13)))),0) -> 0 | S13: =IF(計算表!$B$10=B14,IF($B$9<4160,E13,IF(AND($B$9>=4160,$B$9<12060),K13,IF(AND($B$9>=12060,$B$9<12080),N14,IF($B$9>=12080,Q14)))),0) -> 0 | T13: =IF(計算表!$B$10=B15,IF($B$9<4160,E13,IF(AND($B$9>=4160,$B$9<12060),K13,IF(AND($B$9>=12060,$B$9<12080),N15,IF($B$9>=12080,Q15)))),0) -> 0 | U13: =IF(計算表!$B$10=B16,IF($B$9<4160,E13,IF(AND($B$9>=4160,$B$9<10810),K16,IF(AND($B$9>=10810,$B$9<10830),N16,IF($B$9>=10830,Q16)))),0) -> 0 | V13: =IF(計算表!$B$10=B13,IF($B$9<4160,C13,IF(AND($B$9>=4160,$B$9<12060),I13,IF(AND($B$9>=12060,$B$9<12080),L13,IF($B$9>=12080,O13)))),0) -> 0 | W13: =IF(計算表!$B$10=B14,IF($B$9<4160,C13,IF(AND($B$9>=4160,$B$9<12060),I13,IF(AND($B$9>=12060,$B$9<12080),L13,IF($B$9>=12080,O14)))),0) -> 0 | X13: =IF(計算表!$B$10=B15,IF($B$9<4160,C13,IF(AND($B$9>=4160,$B$9<12060),I13,IF(AND($B$9>=12060,$B$9<12080),L13,IF($B$9>=12080,O15)))),0) -> 0 | Y13: =IF(計算表!$B$10=B16,IF($B$9<4160,C13,IF(AND($B$9>=4160,$B$9<10810),I16,IF(AND($B$9>=10810,$B$9<10830),L16,IF($B$9>=10830,O16)))),0) -> 0 | Z13: =IF(計算表!$B$10=B13,IF($B$9<4160,D13,IF(AND($B$9>=4160,$B$9<12060),J13,IF(AND($B$9>=12060,$B$9<12080),M13,IF($B$9>=12080,P13)))),0) -> 0 | AA13: =IF(計算表!$B$10=B14,IF($B$9<4160,D13,IF(AND($B$9>=4160,$B$9<12060),J13,IF(AND($B$9>=12060,$B$9<12080),M13,IF($B$9>=12080,P14)))),0) -> 0 | AB13: =IF(計算表!$B$10=B15,IF($B$9<4160,D13,IF(AND($B$9>=4160,$B$9<12060),J13,IF(AND($B$9>=12060,$B$9<12080),M13,IF($B$9>=12080,P15)))),0) -> 0 | AC13: =IF(計算表!$B$10=B16,IF($B$9<4160,D13,IF(AND($B$9>=4160,$B$9<10810),J16,IF(AND($B$9>=10810,$B$9<10830),M16,IF($B$9>=10830,P16)))),0) -> 0 | AD13: =SUM(V13:X16) -> 0 | AE13: =IF(AD13>=6030,6030,AD13) -> 0 | AF13: =SUM(Z13:AB16) -> 0 | AG13: =IF(AF13>=6040,6040,AF13) -> 0 | AH13: =AG13-AE13 -> 0 | AI13: 1369 | AJ13: 1371 | AK13: =AJ13-AI13 -> 2 | AL13: =総合計算!K5 ->  | AM13: =A13 -> H16.8～H17.7 | AN13: 下限 | AO13: 2110 | AP13: 2110 | AQ13: =AP13-AO13 -> 0 | AR13: =IF($AP$8<=AP13,$AP$8,0) ->  | AS13: =IF(AR13>0,IF(AP13-AR13>=AQ13,AQ13,AP13-AR13),0) ->  | AT13: =IF(AS13>0,AS13,IF(AS14>0,AS14,0)) ->  | AU13: =IF(AO13>=$AP$8,AO13,IF($AP$8>=AO14,AO14,$AP$8)) ->  | AV13: =IF(AP13>=$AP$8,AP13,IF($AP$8>=AP14,AP14,$AP$8)) ->  | AW13: H16.8～H17.7 | AX13: 下限 | AY13: 2110 | AZ13: 2110 | BA13: =AZ13-AY13 -> 0 | BB13: =IF($AZ$8<=AZ13,$AZ$8,0) ->  | BC13: =IF(BB13>0,IF(AZ13-BB13>=BA13,BA13,AZ13-BB13),0) ->  | BD13: =IF(BC13>0,BC13,IF(BC14>0,BC14,0)) ->  | BE13: =IF(AY13>=$AZ$8,AY13,IF($AZ$8>=AY14,AY14,$AZ$8)) ->  | BF13: =IF(AZ13>=$AZ$8,AZ13,IF($AZ$8>=AZ14,AZ14,$AZ$8)) ->  | BH13: H16.8～H17.7 | BI13: 下限 | BJ13: 63300 | BK13: 63300 | BL13: =BK13-BJ13 -> 0 | BM13: =IF($BK$8<=BK13,$BK$8,0) -> 0 | BN13: =IF(BM13>0,IF(BK13-BM13>=BL13,BL13,BK13-BM13),0) -> 0 | BO13: =IF(BN13>0,BN13,IF(BN14>0,BN14,0)) -> 0 | BP13: =IF(BJ13>=$BK$8,BJ13,IF($BK$8>=BJ14,BJ14,$BK$8)) -> 63300 | BQ13: =IF(BK13>=$BK$8,BK13,IF($BK$8>=BK14,BK14,$BK$8)) -> 63300
B14: 30歳～44歳 | N14: =M13-L13 ->  | O14: =IF($B$9>=14430,7215,IF(AND(12080<=$B$9,$B$9<14430),ROUNDDOWN($B$9*0.5,0),0)) ->  | P14: =IF($B$9>=14450,7225,IF(AND(12080<=$B$9,$B$9<14450),ROUNDDOWN($B$9*0.5,0),0)) ->  | Q14: =P14-O14 ->  | AN14: 上限 | AO14: 14430 | AP14: 14450 | AQ14: =AP14-AO14 -> 20 | AR14: =IF(AO14<=$AP$8,$AP$8,0) ->  | AS14: =IF(AR14>0,IF(AR14-AO14>=AQ14,AQ14,AR14-AO14),0) ->  | AX14: 上限 | AY14: 14430 | AZ14: 14450 | BA14: =AZ14-AY14 -> 20 | BB14: =IF(AY14<=$AZ$8,$AZ$8,0) ->  | BC14: =IF(BB14>0,IF(BB14-AY14>=BA14,BA14,BB14-AY14),0) ->  | BI14: 上限 | BJ14: 461100 | BK14: 462000 | BL14: =BK14-BJ14 -> 900 | BM14: =IF(BJ14<=$BK$8,$BK$8,0) -> 0 | BN14: =IF(BM14>0,IF(BM14-BJ14>=BL14,BL14,BM14-BJ14),0) -> 0
B15: 45歳～59歳 | N15: =M13-L13 ->  | O15: =IF($B$9>=15870,7935,IF(AND(12080<=$B$9,$B$9<15870),ROUNDDOWN($B$9*0.5,0),0)) ->  | P15: =IF($B$9>=15900,7950,IF(AND(12080<=$B$9,$B$9<15900),ROUNDDOWN($B$9*0.5,0),0)) ->  | AL15: =総合計算!K6 ->  | AM15: =A17 -> H17.8～H18.7 | AN15: 下限 | AO15: 2070 | AP15: 2080 | AQ15: =AP15-AO15 -> 10 | AR15: =IF($AP$8<=AP15,$AP$8,0) ->  | AS15: =IF(AR15>0,IF(AP15-AR15>=AQ15,AQ15,AP15-AR15),0) ->  | AT15: =IF(AS15>0,AS15,IF(AS16>0,AS16,0)) ->  | AU15: =IF(AO15>=$AP$8,AO15,IF($AP$8>=AO16,AO16,$AP$8)) ->  | AV15: =IF(AP15>=$AP$8,AP15,IF($AP$8>=AP16,AP16,$AP$8)) ->  | AW15: H17.8～H18.7 | AX15: 下限 | AY15: 2070 | AZ15: 2080 | BA15: 10 | BB15: =IF($AZ$8<=AZ15,$AZ$8,0) ->  | BC15: =IF(BB15>0,IF(AZ15-BB15>=BA15,BA15,AZ15-BB15),0) ->  | BD15: =IF(BC15>0,BC15,IF(BC16>0,BC16,0)) ->  | BE15: =IF(AY15>=$AZ$8,AY15,IF($AZ$8>=AY16,AY16,$AZ$8)) ->  | BF15: =IF(AZ15>=$AZ$8,AZ15,IF($AZ$8>=AZ16,AZ16,$AZ$8)) ->  | BH15: H17.8～H18.7 | BI15: 下限 | BJ15: 62100 | BK15: 62400 | BL15: 300 | BM15: =IF($BK$8<=BK15,$BK$8,0) -> 0 | BN15: =IF(BM15>0,IF(BK15-BM15>=BL15,BL15,BK15-BM15),0) -> 0 | BO15: =IF(BN15>0,BN15,IF(BN16>0,BN16,0)) -> 0 | BP15: =IF(BJ15>=$BK$8,BJ15,IF($BK$8>=BJ16,BJ16,$BK$8)) -> 62100 | BQ15: 62400
B16: 60歳～64歳 | I16: =IF(AND(4160<=$B$9,$B$9<7605),ROUNDDOWN(0.8*$B$9-0.35*(($B$9-4160)/(10810-4160)*$B$9),0),IF(AND(7605<=$B$9,$B$9<10810),ROUNDDOWN(0.05*$B$9+4324,0),0)) ->  | J16: =IF(AND(4160<=$B$9,$B$9<7627),ROUNDDOWN(0.8*$B$9-0.35*(($B$9-4160)/(10830-4160)*$B$9),0),IF(AND(7627<=$B$9,$B$9<10810),ROUNDDOWN(0.05*$B$9+4332,0),0)) ->  | K16: =J16-I16 ->  | L16: =IF(AND(10810<=$B$9,$B$9<10830),ROUNDDOWN($B$9*0.45,0),0) ->  | M16: =IF(AND(10810<=$B$9,$B$9<10830),ROUNDDOWN(0.05*$B$9+4332,0),0) ->  | N16: =M16-L16 ->  | O16: =IF($B$9>=15370,6916,IF(AND(10830<=$B$9,$B$9<15370),ROUNDDOWN($B$9*0.45,0),0)) ->  | P16: =IF($B$9>=15400,6930,IF(AND(10830<=$B$9,$B$9<15400),ROUNDDOWN($B$9*0.45,0),0)) ->  | AD16: =Y13 -> 0 | AE16: =IF(AD16>=4864,4864,AD16) -> 0 | AF16: =AC13 -> 0 | AG16: =IF(AF16>=4873,4873,AF16) -> 0 | AH16: =AG16-AE16 -> 0 | AN16: 上限 | AO16: 14150 | AP16: 14230 | AQ16: 80 | AR16: =IF(AO16<=$AP$8,$AP$8,0) ->  | AS16: =IF(AR16>0,IF(AR16-AO16>=AQ16,AQ16,AR16-AO16),0) ->  | AX16: 上限 | AY16: 14150 | AZ16: 14230 | BA16: 80 | BB16: =IF(AY16<=$AZ$8,$AZ$8,0) ->  | BC16: =IF(BB16>0,IF(BB16-AY16>=BA16,BA16,BB16-AY16),0) ->  | BI16: 上限 | BJ16: 452100 | BK16: 455100 | BL16: 3000 | BM16: =IF(BJ16<=$BK$8,$BK$8,0) -> 0 | BN16: =IF(BM16>0,IF(BM16-BJ16>=BL16,BL16,BM16-BJ16),0) -> 0
A17: H17.8～H18.7 | B17: ～29歳または65歳～ | C17: =IF(AND(0<$B$9,$B$9<2070),1656,IF(AND(2070<=$B$9,$B$9<4080),ROUNDDOWN($B$9*0.8,0),0)) ->  | D17: =IF(AND(0<$B$9,$B$9<2080),1664,IF(AND(2080<=$B$9,$B$9<4080),ROUNDDOWN($B$9*0.8,0),0)) ->  | E17: =D17-C17 ->  | F17: =IF(AND(4080<=$B$9,$B$9<4100),ROUNDDOWN(0.8*$B$9-0.3*(($B$9-4080)/(11830-4080)*$B$9),0),0) ->  | G17: =IF(AND(4080<=$B$9,$B$9<4100),ROUNDDOWN($B$9*0.8,0),0) ->  | H17: =G17-F17 ->  | I17: =IF(AND(4100<=$B$9,$B$9<11830),ROUNDDOWN(0.8*$B$9-0.3*(($B$9-4080)/(11830-4080)*$B$9),0),0) ->  | J17: =IF(AND(4100<=$B$9,$B$9<11830),ROUNDDOWN(0.8*$B$9-0.3*(($B$9-4100)/(11900-4100)*$B$9),0),0) ->  | K17: =J17-I17 ->  | L17: =IF(AND(11830<=$B$9,$B$9<11900),ROUNDDOWN($B$9*0.5,0),0) ->  | M17: =IF(AND(11830<=$B$9,$B$9<11900),ROUNDDOWN(0.8*$B$9-0.3*(($B$9-4100)/(11900-4100)*$B$9),0),0) ->  | N17: =M17-L17 ->  | O17: =IF($B$9>=12740,6370,IF(AND(11900<=$B$9,$B$9<12740),ROUNDDOWN($B$9*0.5,0),0)) ->  | P17: =IF($B$9>=12820,6410,IF(AND(11900<=$B$9,$B$9<12820),ROUNDDOWN($B$9*0.5,0),0)) ->  | Q17: =P17-O17 ->  | R17: =IF(計算表!$B$10=B17,IF($B$9<4080,E17,IF(AND($B$9>=4080,$B$9<4100),H17,IF(AND($B$9>=4100,$B$9<11830),K17,IF(AND($B$9>=11830,$B$9<11900),N17,IF($B$9>=11900,Q17))))),0) -> 0 | S17: =IF(計算表!$B$10=B18,IF($B$9<4080,E17,IF(AND($B$9>=4080,$B$9<4100),H17,IF(AND($B$9>=4100,$B$9<11830),K17,IF(AND($B$9>=11830,$B$9<11900),N18,IF($B$9>=11900,Q18))))),0) -> 0 | T17: =IF(計算表!$B$10=B19,IF($B$9<4080,E17,IF(AND($B$9>=4080,$B$9<4100),H17,IF(AND($B$9>=4100,$B$9<11830),K17,IF(AND($B$9>=11830,$B$9<11900),N19,IF($B$9>=11900,Q19))))),0) -> 0 | U17: =IF(計算表!$B$10=B20,IF($B$9<4080,E17,IF(AND($B$9>=4080,$B$9<4100),H17,IF(AND($B$9>=4100,$B$9<10600),K20,IF(AND($B$9>=10600,$B$9<10670),N20,IF($B$9>=10670,Q20))))),0) -> 0 | V17: =IF(計算表!$B$10=B17,IF($B$9<4080,C17,IF(AND($B$9>=4080,$B$9<4100),F17,IF(AND($B$9>=4100,$B$9<11830),I17,IF(AND($B$9>=11830,$B$9<11900),L17,IF($B$9>=11900,O17))))),0) -> 0 | W17: =IF(計算表!$B$10=B18,IF($B$9<4080,C17,IF(AND($B$9>=4080,$B$9<4100),F17,IF(AND($B$9>=4100,$B$9<11830),I17,IF(AND($B$9>=11830,$B$9<11900),L17,IF($B$9>=11900,O18))))),0) -> 0 | X17: =IF(計算表!$B$10=B19,IF($B$9<4080,C17,IF(AND($B$9>=4080,$B$9<4100),F17,IF(AND($B$9>=4100,$B$9<11830),I17,IF(AND($B$9>=11830,$B$9<11900),L17,IF($B$9>=11900,O19))))),0) -> 0 | Y17: =IF(計算表!$B$10=B20,IF($B$9<4080,C17,IF(AND($B$9>=4080,$B$9<4100),F17,IF(AND($B$9>=4100,$B$9<10600),I20,IF(AND($B$9>=10600,$B$9<10670),L20,IF($B$9>=10670,O20))))),0) -> 0 | Z17: =IF(計算表!$B$10=B17,IF($B$9<4080,D17,IF(AND($B$9>=4080,$B$9<4100),G17,IF(AND($B$9>=4100,$B$9<11830),J17,IF(AND($B$9>=11830,$B$9<11900),M17,IF($B$9>=11900,P17))))),0) -> 0 | AA17: =IF(計算表!$B$10=B18,IF($B$9<4080,D17,IF(AND($B$9>=4080,$B$9<4100),G17,IF(AND($B$9>=4100,$B$9<11830),J17,IF(AND($B$9>=11830,$B$9<11900),M17,IF($B$9>=11900,P18))))),0) -> 0 | AB17: =IF(計算表!$B$10=B19,IF($B$9<4080,D17,IF(AND($B$9>=4080,$B$9<4100),G17,IF(AND($B$9>=4100,$B$9<11830),J17,IF(AND($B$9>=11830,$B$9<11900),M17,IF($B$9>=11900,P19))))),0) -> 0 | AC17: =IF(計算表!$B$10=B20,IF($B$9<4080,D17,IF(AND($B$9>=4080,$B$9<4100),G17,IF(AND($B$9>=4100,$B$9<10600),J20,IF(AND($B$9>=10600,$B$9<10670),M20,IF($B$9>=10670,P20))))),0) -> 0 | AD17: =SUM(V17:X20) -> 0 | AE17: =IF(AD17>=5915,5915,AD17) -> 0 | AF17: =SUM(Z17:AB20) -> 0 | AG17: =IF(AF17>=5950,5950,AF17) -> 0 | AH17: =AG17-AE17 -> 0 | AI17: 1342 | AJ17: 1351 | AK17: =AJ17-AI17 -> 9 | AL17: =総合計算!K7 ->  | AM17: =A21 -> H18.8～H19.7 | AN17: 下限 | AO17: 2080 | AP17: 2090 | AQ17: 10 | AR17: =IF($AP$8<=AP17,$AP$8,0) ->  | AS17: =IF(AR17>0,IF(AP17-AR17>=AQ17,AQ17,AP17-AR17),0) ->  | AT17: =IF(AS17>0,AS17,IF(AS18>0,AS18,0)) ->  | AU17: =IF(AO17>=$AP$8,AO17,IF($AP$8>=AO18,AO18,$AP$8)) ->  | AV17: =IF(AP17>=$AP$8,AP17,IF($AP$8>=AP18,AP18,$AP$8)) ->  | AW17: H18.8～H19.7 | AX17: 下限 | AY17: 2080 | AZ17: 2090 | BA17: 10 | BB17: =IF($AZ$8<=AZ17,$AZ$8,0) ->  | BC17: =IF(BB17>0,IF(AZ17-BB17>=BA17,BA17,AZ17-BB17),0) ->  | BD17: =IF(BC17>0,BC17,IF(BC18>0,BC18,0)) ->  | BE17: =IF(AY17>=$AZ$8,AY17,IF($AZ$8>=AY18,AY18,$AZ$8)) ->  | BF17: =IF(AZ17>=$AZ$8,AZ17,IF($AZ$8>=AZ18,AZ18,$AZ$8)) ->  | BH17: H18.8～H19.7 | BI17: 下限 | BJ17: 62400 | BK17: 62700 | BL17: 300 | BM17: =IF($BK$8<=BK17,$BK$8,0) -> 0 | BN17: =IF(BM17>0,IF(BK17-BM17>=BL17,BL17,BK17-BM17),0) -> 0 | BO17: =IF(BN17>0,BN17,IF(BN18>0,BN18,0)) -> 0 | BP17: =IF(BJ17>=$BK$8,BJ17,IF($BK$8>=BJ18,BJ18,$BK$8)) -> 62400 | BQ17: 62700
B18: 30歳～44歳 | N18: =M17-L17 ->  | O18: =IF($B$9>=14150,7075,IF(AND(11900<=$B$9,$B$9<14150),ROUNDDOWN($B$9*0.5,0),0)) ->  | P18: =IF($B$9>=14230,7115,IF(AND(11900<=$B$9,$B$9<14230),ROUNDDOWN($B$9*0.5,0),0)) ->  | AN18: 上限 | AO18: 14200 | AP18: 14280 | AQ18: 80 | AR18: =IF(AO18<=$AP$8,$AP$8,0) ->  | AS18: =IF(AR18>0,IF(AR18-AO18>=AQ18,AQ18,AR18-AO18),0) ->  | AX18: 上限 | AY18: 14200 | AZ18: 14280 | BA18: 80 | BB18: =IF(AY18<=$AZ$8,$AZ$8,0) ->  | BC18: =IF(BB18>0,IF(BB18-AY18>=BA18,BA18,BB18-AY18),0) ->  | BI18: 上限 | BJ18: 453900 | BK18: 456900 | BL18: 3000 | BM18: =IF(BJ18<=$BK$8,$BK$8,0) -> 0 | BN18: =IF(BM18>0,IF(BM18-BJ18>=BL18,BL18,BM18-BJ18),0) -> 0
B19: 45歳～59歳 | N19: =M17-L17 ->  | O19: =IF($B$9>=15560,7780,IF(AND(11900<=$B$9,$B$9<15560),ROUNDDOWN($B$9*0.5,0),0)) ->  | P19: =IF($B$9>=15660,7830,IF(AND(11900<=$B$9,$B$9<15660),ROUNDDOWN($B$9*0.5,0),0)) ->  | AL19: =総合計算!K8 ->  | AM19: =A25 -> H19.8～H20.7 | AN19: 下限 | AO19: 2070 | AP19: 2080 | AQ19: 10 | AR19: =IF($AP$8<=AP19,$AP$8,0) ->  | AS19: =IF(AR19>0,IF(AP19-AR19>=AQ19,AQ19,AP19-AR19),0) ->  | AT19: =IF(AS19>0,AS19,IF(AS20>0,AS20,0)) ->  | AU19: =IF(AO19>=$AP$8,AO19,IF($AP$8>=AO20,AO20,$AP$8)) ->  | AV19: =IF(AP19>=$AP$8,AP19,IF($AP$8>=AP20,AP20,$AP$8)) ->  | AW19: H19.8～H20.7 | AX19: 下限 | AY19: 2070 | AZ19: 2080 | BA19: 10 | BB19: =IF($AZ$8<=AZ19,$AZ$8,0) ->  | BC19: =IF(BB19>0,IF(AZ19-BB19>=BA19,BA19,AZ19-BB19),0) ->  | BD19: =IF(BC19>0,BC19,IF(BC20>0,BC20,0)) ->  | BE19: =IF(AY19>=$AZ$8,AY19,IF($AZ$8>=AY20,AY20,$AZ$8)) ->  | BF19: =IF(AZ19>=$AZ$8,AZ19,IF($AZ$8>=AZ20,AZ20,$AZ$8)) ->  | BH19: H19.8～H20.7 | BI19: 下限 | BJ19: 62100 | BK19: 62400 | BL19: 300 | BM19: =IF($BK$8<=BK19,$BK$8,0) -> 0 | BN19: =IF(BM19>0,IF(BK19-BM19>=BL19,BL19,BK19-BM19),0) -> 0 | BO19: =IF(BN19>0,BN19,IF(BN20>0,BN20,0)) -> 0 | BP19: =IF(BJ19>=$BK$8,BJ19,IF($BK$8>=BJ20,BJ20,$BK$8)) -> 62100 | BQ19: 62400
B20: 60歳～64歳 | I20: =IF(AND(4100<=$B$9,$B$9<7454),ROUNDDOWN(0.8*$B$9-0.35*(($B$9-4080)/(10600-4080)*$B$9),0),IF(AND(7454<=$B$9,$B$9<10600),ROUNDDOWN(0.05*$B$9+4240,0),0)) ->  | J20: =IF(AND(4100<=$B$9,$B$9<7512),ROUNDDOWN(0.8*$B$9-0.35*(($B$9-4100)/(10670-4100)*$B$9),0),IF(AND(7512<=$B$9,$B$9<10600),ROUNDDOWN(0.05*$B$9+4268,0),0)) ->  | L20: =IF(AND(10600<=$B$9,$B$9<10670),ROUNDDOWN($B$9*0.45,0),0) ->  | M20: =IF(AND(10600<=$B$9,$B$9<10670),ROUNDDOWN(0.05*$B$9+4268,0),0) ->  | N20: =M20-L20 ->  | O20: =IF($B$9>=15070,6781,IF(AND(10670<=$B$9,$B$9<15070),ROUNDDOWN($B$9*0.45,0),0)) ->  | P20: =IF($B$9>=15170,6826,IF(AND(10670<=$B$9,$B$9<15170),ROUNDDOWN($B$9*0.45,0),0)) ->  | AD20: =Y17 -> 0 | AE20: =IF(AD20>=4770,4770,AD20) -> 0 | AF20: =AC17 -> 0 | AG20: =IF(AF20>=4801,4801,AF20) -> 0 | AH20: =AG20-AE20 -> 0 | AN20: 上限 | AO20: 14140 | AP20: 14220 | AQ20: 80 | AR20: =IF(AO20<=$AP$8,$AP$8,0) ->  | AS20: =IF(AR20>0,IF(AR20-AO20>=AQ20,AQ20,AR20-AO20),0) ->  | AX20: 上限 | AY20: 14140 | AZ20: 14220 | BA20: 80 | BB20: =IF(AY20<=$AZ$8,$AZ$8,0) ->  | BC20: =IF(BB20>0,IF(BB20-AY20>=BA20,BA20,BB20-AY20),0) ->  | BI20: 上限 | BJ20: 451800 | BK20: 454800 | BL20: 3000 | BM20: =IF(BJ20<=$BK$8,$BK$8,0) -> 0 | BN20: =IF(BM20>0,IF(BM20-BJ20>=BL20,BL20,BM20-BJ20),0) -> 0
A21: H18.8～H19.7 | B21: ～29歳または65歳～ | C21: =IF(AND(0<$B$9,$B$9<2080),1664,IF(AND(2080<=$B$9,$B$9<4100),ROUNDDOWN($B$9*0.8,0),0)) ->  | D21: =IF(AND(0<$B$9,$B$9<2090),1672,IF(AND(2090<=$B$9,$B$9<4100),ROUNDDOWN($B$9*0.8,0),0)) ->  | E21: =D21-C21 ->  | F21: =IF(AND(4100<=$B$9,$B$9<4120),ROUNDDOWN(0.8*$B$9-0.3*(($B$9-4100)/(11870-4100)*$B$9),0),0) ->  | G21: =IF(AND(4100<=$B$9,$B$9<4120),ROUNDDOWN($B$9*0.8,0),0) ->  | H21: =G21-F21 ->  | I21: =IF(AND(4120<=$B$9,$B$9<11870),ROUNDDOWN(0.8*$B$9-0.3*(($B$9-4100)/(11870-4100)*$B$9),0),0) ->  | J21: =IF(AND(4120<=$B$9,$B$9<11870),ROUNDDOWN(0.8*$B$9-0.3*(($B$9-4120)/(11940-4120)*$B$9),0),0) ->  | L21: =IF(AND(11870<=$B$9,$B$9<11940),ROUNDDOWN($B$9*0.5,0),0) ->  | M21: =IF(AND(11870<=$B$9,$B$9<11940),ROUNDDOWN(0.8*$B$9-0.3*(($B$9-4120)/(11940-4120)*$B$9),0),0) ->  | N21: =M21-L21 ->  | O21: =IF($B$9>=12790,6395,IF(AND(11940<=$B$9,$B$9<12790),ROUNDDOWN($B$9*0.5,0),0)) ->  | P21: =IF($B$9>=12870,6435,IF(AND(11940<=$B$9,$B$9<12870),ROUNDDOWN($B$9*0.5,0),0)) ->  | R21: =IF(計算表!$B$10=B21,IF($B$9<4100,E21,IF(AND($B$9>=4100,$B$9<4120),H21,IF(AND($B$9>=4120,$B$9<11870),K21,IF(AND($B$9>=11870,$B$9<11940),N21,IF($B$9>=11940,Q21))))),0) -> 0 | S21: =IF(計算表!$B$10=B22,IF($B$9<4100,E21,IF(AND($B$9>=4100,$B$9<4120),H21,IF(AND($B$9>=4120,$B$9<11870),K21,IF(AND($B$9>=11870,$B$9<11940),N22,IF($B$9>=11940,Q22))))),0) -> 0 | T21: =IF(計算表!$B$10=B23,IF($B$9<4100,E21,IF(AND($B$9>=4100,$B$9<4120),H21,IF(AND($B$9>=4120,$B$9<11870),K21,IF(AND($B$9>=11870,$B$9<11940),N23,IF($B$9>=11940,Q23))))),0) -> 0 | U21: =IF(計算表!$B$10=B24,IF($B$9<4100,E21,IF(AND($B$9>=4100,$B$9<4120),H21,IF(AND($B$9>=4120,$B$9<10640),K24,IF(AND($B$9>=10640,$B$9<10710),N24,IF($B$9>=10710,Q24))))),0) -> 0 | V21: =IF(計算表!$B$10=B21,IF($B$9<4100,C21,IF(AND($B$9>=4100,$B$9<4120),F21,IF(AND($B$9>=4120,$B$9<11870),I21,IF(AND($B$9>=11870,$B$9<11940),L21,IF($B$9>=11940,O21))))),0) -> 0 | W21: =IF(計算表!$B$10=B22,IF($B$9<4100,C21,IF(AND($B$9>=4100,$B$9<4120),F21,IF(AND($B$9>=4120,$B$9<11870),I21,IF(AND($B$9>=11870,$B$9<11940),L21,IF($B$9>=11940,O22))))),0) -> 0 | X21: =IF(計算表!$B$10=B23,IF($B$9<4100,C21,IF(AND($B$9>=4100,$B$9<4120),F21,IF(AND($B$9>=4120,$B$9<11870),I21,IF(AND($B$9>=11870,$B$9<11940),L21,IF($B$9>=11940,O23))))),0) -> 0 | Y21: =IF(計算表!$B$10=B24,IF($B$9<4100,C21,IF(AND($B$9>=4100,$B$9<4120),F21,IF(AND($B$9>=4120,$B$9<10640),I24,IF(AND($B$9>=10640,$B$9<10710),L24,IF($B$9>=10710,O24))))),0) -> 0 | Z21: =IF(計算表!$B$10=B21,IF($B$9<4100,D21,IF(AND($B$9>=4100,$B$9<4120),G21,IF(AND($B$9>=4120,$B$9<11870),J21,IF(AND($B$9>=11870,$B$9<11940),M21,IF($B$9>=11940,P21))))),0) -> 0 | AA21: =IF(計算表!$B$10=B22,IF($B$9<4100,D21,IF(AND($B$9>=4100,$B$9<4120),G21,IF(AND($B$9>=4120,$B$9<11870),J21,IF(AND($B$9>=11870,$B$9<11940),M21,IF($B$9>=11940,P22))))),0) -> 0 | AB21: =IF(計算表!$B$10=B23,IF($B$9<4100,D21,IF(AND($B$9>=4100,$B$9<4120),G21,IF(AND($B$9>=4120,$B$9<11870),J21,IF(AND($B$9>=11870,$B$9<11940),M21,IF($B$9>=11940,P23))))),0) -> 0 | AC21: =IF(計算表!$B$10=B24,IF($B$9<4100,D21,IF(AND($B$9>=4100,$B$9<4120),G21,IF(AND($B$9>=4120,$B$9<10640),J24,IF(AND($B$9>=10640,$B$9<10710),M24,IF($B$9>=10710,P24))))),0) -> 0 | AD21: =SUM(V21:X24) -> 0 | AE21: =IF(AD21>=5935,5935,AD21) -> 0 | AF21: =SUM(Z21:AB24) -> 0 | AG21: =IF(AF21>=5970,5970,AF21) -> 0 | AH21: =AG21-AE21 -> 0 | AI21: 1347 | AJ21: 1356 | AK21: =AJ21-AI21 -> 9 | AL21: =総合計算!K9 ->  | AM21: =A29 -> H20.8～H21.7 | AN21: 下限 | AO21: 2060 | AP21: 2070 | AQ21: 10 | AR21: =IF($AP$8<=AP21,$AP$8,0) ->  | AS21: =IF(AR21>0,IF(AP21-AR21>=AQ21,AQ21,AP21-AR21),0) ->  | AT21: =IF(AS21>0,AS21,IF(AS22>0,AS22,0)) ->  | AU21: =IF(AO21>=$AP$8,AO21,IF($AP$8>=AO22,AO22,$AP$8)) ->  | AV21: =IF(AP21>=$AP$8,AP21,IF($AP$8>=AP22,AP22,$AP$8)) ->  | AW21: H20.8～H21.7 | AX21: 下限 | AY21: 2060 | AZ21: 2070 | BA21: 10 | BB21: =IF($AZ$8<=AZ21,$AZ$8,0) ->  | BC21: =IF(BB21>0,IF(AZ21-BB21>=BA21,BA21,AZ21-BB21),0) ->  | BD21: =IF(BC21>0,BC21,IF(BC22>0,BC22,0)) ->  | BE21: =IF(AY21>=$AZ$8,AY21,IF($AZ$8>=AY22,AY22,$AZ$8)) ->  | BF21: =IF(AZ21>=$AZ$8,AZ21,IF($AZ$8>=AZ22,AZ22,$AZ$8)) ->  | BH21: H20.8～H21.7 | BI21: 下限 | BJ21: 61800 | BK21: 62100 | BL21: 300 | BM21: =IF($BK$8<=BK21,$BK$8,0) -> 0 | BN21: =IF(BM21>0,IF(BK21-BM21>=BL21,BL21,BK21-BM21),0) -> 0 | BO21: =IF(BN21>0,BN21,IF(BN22>0,BN22,0)) -> 0 | BP21: =IF(BJ21>=$BK$8,BJ21,IF($BK$8>=BJ22,BJ22,$BK$8)) -> 61800 | BQ21: =IF(BK21>=$BK$8,BK21,IF($BK$8>=BK22,BK22,$BK$8)) -> 62100
B22: 30歳～44歳 | N22: =M21-L21 ->  | O22: =IF($B$9>=14200,7100,IF(AND(11940<=$B$9,$B$9<14200),ROUNDDOWN($B$9*0.5,0),0)) ->  | P22: =IF($B$9>=14280,7140,IF(AND(11940<=$B$9,$B$9<14280),ROUNDDOWN($B$9*0.5,0),0)) ->  | AN22: 上限 | AO22: 14060 | AP22: 14140 | AQ22: 80 | AR22: =IF(AO22<=$AP$8,$AP$8,0) ->  | AS22: =IF(AR22>0,IF(AR22-AO22>=AQ22,AQ22,AR22-AO22),0) ->  | AX22: 上限 | AY22: 14060 | AZ22: 14140 | BA22: 80 | BB22: =IF(AY22<=$AZ$8,$AZ$8,0) ->  | BC22: =IF(BB22>0,IF(BB22-AY22>=BA22,BA22,BB22-AY22),0) ->  | BI22: 上限 | BJ22: 449400 | BK22: 452400 | BL22: 3000 | BM22: =IF(BJ22<=$BK$8,$BK$8,0) -> 0 | BN22: =IF(BM22>0,IF(BM22-BJ22>=BL22,BL22,BM22-BJ22),0) -> 0
B23: 45歳～59歳 | N23: =M21-L21 ->  | O23: =IF($B$9>=15620,7810,IF(AND(11940<=$B$9,$B$9<15620),ROUNDDOWN($B$9*0.5,0),0)) ->  | P23: =IF($B$9>=15720,7860,IF(AND(11940<=$B$9,$B$9<15720),ROUNDDOWN($B$9*0.5,0),0)) ->  | AL23: =総合計算!K10 ->  | AM23: =A33 -> H21.8～H22.7 | AN23: 下限 | AO23: 2050 | AP23: 2060 | AQ23: 10 | AR23: =IF($AP$8<=AP23,$AP$8,0) ->  | AS23: =IF(AR23>0,IF(AP23-AR23>=AQ23,AQ23,AP23-AR23),0) ->  | AT23: =IF(AS23>0,AS23,IF(AS24>0,AS24,0)) ->  | AU23: =IF(AO23>=$AP$8,AO23,IF($AP$8>=AO24,AO24,$AP$8)) ->  | AV23: =IF(AP23>=$AP$8,AP23,IF($AP$8>=AP24,AP24,$AP$8)) ->  | AW23: H21.8～H22.7 | AX23: 下限 | AY23: 2050 | AZ23: 2060 | BA23: 10 | BB23: =IF($AZ$8<=AZ23,$AZ$8,0) ->  | BC23: =IF(BB23>0,IF(AZ23-BB23>=BA23,BA23,AZ23-BB23),0) ->  | BD23: =IF(BC23>0,BC23,IF(BC24>0,BC24,0)) ->  | BE23: =IF(AY23>=$AZ$8,AY23,IF($AZ$8>=AY24,AY24,$AZ$8)) ->  | BF23: =IF(AZ23>=$AZ$8,AZ23,IF($AZ$8>=AZ24,AZ24,$AZ$8)) ->  | BH23: H21.8～H22.7 | BI23: 下限 | BJ23: 61500 | BK23: 61800 | BL23: 300 | BM23: =IF($BK$8<=BK23,$BK$8,0) -> 0 | BN23: =IF(BM23>0,IF(BK23-BM23>=BL23,BL23,BK23-BM23),0) -> 0 | BO23: =IF(BN23>0,BN23,IF(BN24>0,BN24,0)) -> 0 | BP23: =IF(BJ23>=$BK$8,BJ23,IF($BK$8>=BJ24,BJ24,$BK$8)) -> 61500 | BQ23: 61800
B24: 60歳～64歳 | I24: =IF(AND(4100<=$B$9,$B$9<7476),ROUNDDOWN(0.8*$B$9-0.35*(($B$9-4100)/(10640-4100)*$B$9),0),IF(AND(7476<=$B$9,$B$9<10640),ROUNDDOWN(0.05*$B$9+4256,0),0)) ->  | J24: =IF(AND(4120<=$B$9,$B$9<7534),ROUNDDOWN(0.8*$B$9-0.35*(($B$9-4120)/(10710-4120)*$B$9),0),IF(AND(7534<=$B$9,$B$9<10640),ROUNDDOWN(0.05*$B$9+4284,0),0)) ->  | L24: =IF(AND(10640<=$B$9,$B$9<10710),ROUNDDOWN($B$9*0.45,0),0) ->  | M24: =IF(AND(10640<=$B$9,$B$9<10710),ROUNDDOWN(0.05*$B$9+4284,0),0) ->  | N24: =M24-L24 ->  | O24: =IF($B$9>=15130,6808,IF(AND(10710<=$B$9,$B$9<15130),ROUNDDOWN($B$9*0.45,0),0)) ->  | P24: =IF($B$9>=15230,6853,IF(AND(10710<=$B$9,$B$9<15230),ROUNDDOWN($B$9*0.45,0),0)) ->  | AD24: =Y21 -> 0 | AE24: =IF(AD24>=4788,4788,AD24) -> 0 | AF24: =AC21 -> 0 | AG24: =IF(AF24>=4819,4819,AF24) -> 0 | AH24: =AG24-AE24 -> 0 | AN24: 上限 | AO24: 13980 | AP24: 14060 | AQ24: 80 | AR24: =IF(AO24<=$AP$8,$AP$8,0) ->  | AS24: =IF(AR24>0,IF(AR24-AO24>=AQ24,AQ24,AR24-AO24),0) ->  | AX24: 上限 | AY24: 13980 | AZ24: 14060 | BA24: 80 | BB24: =IF(AY24<=$AZ$8,$AZ$8,0) ->  | BC24: =IF(BB24>0,IF(BB24-AY24>=BA24,BA24,BB24-AY24),0) ->  | BI24: 上限 | BJ24: 446700 | BK24: 449700 | BL24: 3000 | BM24: =IF(BJ24<=$BK$8,$BK$8,0) -> 0 | BN24: =IF(BM24>0,IF(BM24-BJ24>=BL24,BL24,BM24-BJ24),0) -> 0
A25: H19.8～H20.7 | B25: ～29歳または65歳～ | C25: =IF(AND(0<$B$9,$B$9<2070),1656,IF(AND(2070<=$B$9,$B$9<4080),ROUNDDOWN($B$9*0.8,0),0)) ->  | D25: =IF(AND(0<$B$9,$B$9<2080),1664,IF(AND(2080<=$B$9,$B$9<4080),ROUNDDOWN($B$9*0.8,0),0)) ->  | E25: =D25-C25 ->  | F25: =IF(AND(4080<=$B$9,$B$9<4100),ROUNDDOWN(0.8*$B$9-0.3*(($B$9-4080)/(11820-4080)*$B$9),0),0) ->  | G25: =IF(AND(4080<=$B$9,$B$9<4100),ROUNDDOWN($B$9*0.8,0),0) ->  | H25: =G25-F25 ->  | I25: =IF(AND(4100<=$B$9,$B$9<11820),ROUNDDOWN(0.8*$B$9-0.3*(($B$9-4080)/(11820-4080)*$B$9),0),0) ->  | J25: =IF(AND(4100<=$B$9,$B$9<11820),ROUNDDOWN(0.8*$B$9-0.3*(($B$9-4100)/(11890-4100)*$B$9),0),0) ->  | L25: =IF(AND(11820<=$B$9,$B$9<11890),ROUNDDOWN($B$9*0.5,0),0) ->  | M25: =IF(AND(11820<=$B$9,$B$9<11890),ROUNDDOWN(0.8*$B$9-0.3*(($B$9-4100)/(11890-4100)*$B$9),0),0) ->  | N25: =M25-L25 ->  | O25: =IF($B$9>=12730,6365,IF(AND(11890<=$B$9,$B$9<12730),ROUNDDOWN($B$9*0.5,0),0)) ->  | P25: =IF($B$9>=12810,6405,IF(AND(11890<=$B$9,$B$9<12810),ROUNDDOWN($B$9*0.5,0),0)) ->  | R25: =IF(計算表!$B$10=B25,IF($B$9<4080,E25,IF(AND($B$9>=4080,$B$9<4100),H25,IF(AND($B$9>=4100,$B$9<11820),K25,IF(AND($B$9>=11820,$B$9<11890),N25,IF($B$9>=11890,Q25))))),0) -> 0 | S25: =IF(計算表!$B$10=B26,IF($B$9<4080,E25,IF(AND($B$9>=4080,$B$9<4100),H25,IF(AND($B$9>=4100,$B$9<11820),K25,IF(AND($B$9>=11820,$B$9<11890),N26,IF($B$9>=11890,Q26))))),0) -> 0 | T25: =IF(計算表!$B$10=B27,IF($B$9<4080,E25,IF(AND($B$9>=4080,$B$9<4100),H25,IF(AND($B$9>=4100,$B$9<11820),K25,IF(AND($B$9>=11820,$B$9<11890),N27,IF($B$9>=11890,Q27))))),0) -> 0 | U25: =IF(計算表!$B$10=B28,IF($B$9<4080,E25,IF(AND($B$9>=4080,$B$9<4100),H25,IF(AND($B$9>=4100,$B$9<10590),K28,IF(AND($B$9>=10590,$B$9<10660),N28,IF($B$9>=10660,Q28))))),0) -> 0 | V25: =IF(計算表!$B$10=B25,IF($B$9<4080,C25,IF(AND($B$9>=4080,$B$9<4100),F25,IF(AND($B$9>=4100,$B$9<11820),I25,IF(AND($B$9>=11820,$B$9<11890),L25,IF($B$9>=11890,O25))))),0) -> 0 | W25: =IF(計算表!$B$10=B26,IF($B$9<4080,C25,IF(AND($B$9>=4080,$B$9<4100),F25,IF(AND($B$9>=4100,$B$9<11820),I25,IF(AND($B$9>=11820,$B$9<11890),L25,IF($B$9>=11890,O26))))),0) -> 0 | X25: =IF(計算表!$B$10=B27,IF($B$9<4080,C25,IF(AND($B$9>=4080,$B$9<4100),F25,IF(AND($B$9>=4100,$B$9<11820),I25,IF(AND($B$9>=11820,$B$9<11890),L25,IF($B$9>=11890,O27))))),0) -> 0 | Y25: =IF(計算表!$B$10=B28,IF($B$9<4080,C25,IF(AND($B$9>=4080,$B$9<4100),F25,IF(AND($B$9>=4100,$B$9<10590),I28,IF(AND($B$9>=10590,$B$9<10660),L28,IF($B$9>=10660,O28))))),0) -> 0 | Z25: =IF(計算表!$B$10=B25,IF($B$9<4080,D25,IF(AND($B$9>=4080,$B$9<4100),G25,IF(AND($B$9>=4100,$B$9<11820),J25,IF(AND($B$9>=11820,$B$9<11890),M25,IF($B$9>=11890,P25))))),0) -> 0 | AA25: =IF(計算表!$B$10=B26,IF($B$9<4080,D25,IF(AND($B$9>=4080,$B$9<4100),G25,IF(AND($B$9>=4100,$B$9<11820),J25,IF(AND($B$9>=11820,$B$9<11890),M25,IF($B$9>=11890,P26))))),0) -> 0 | AB25: =IF(計算表!$B$10=B27,IF($B$9<4080,D25,IF(AND($B$9>=4080,$B$9<4100),G25,IF(AND($B$9>=4100,$B$9<11820),J25,IF(AND($B$9>=11820,$B$9<11890),M25,IF($B$9>=11890,P27))))),0) -> 0 | AC25: =IF(計算表!$B$10=B28,IF($B$9<4080,D25,IF(AND($B$9>=4080,$B$9<4100),G25,IF(AND($B$9>=4100,$B$9<10590),J28,IF(AND($B$9>=10590,$B$9<10660),M28,IF($B$9>=10660,P28))))),0) -> 0 | AD25: =SUM(V25:X28) -> 0 | AE25: =IF(AD25>=5910,5910,AD25) -> 0 | AF25: =SUM(Z25:AB28) -> 0 | AG25: =IF(AF25>=5945,5945,AF25) -> 0 | AH25: =AG25-AE25 -> 0 | AI25: 1341 | AJ25: 1350 | AK25: =AJ25-AI25 -> 9 | AL25: =総合計算!K11 ->  | AM25: =A37 -> H22.8～H23.7 | AN25: 下限 | AO25: 2000 | AP25: 2010 | AQ25: 10 | AR25: =IF($AP$8<=AP25,$AP$8,0) ->  | AS25: =IF(AR25>0,IF(AP25-AR25>=AQ25,AQ25,AP25-AR25),0) ->  | AT25: =IF(AS25>0,AS25,IF(AS26>0,AS26,0)) ->  | AU25: =IF(AO25>=$AP$8,AO25,IF($AP$8>=AO26,AO26,$AP$8)) ->  | AV25: =IF(AP25>=$AP$8,AP25,IF($AP$8>=AP26,AP26,$AP$8)) ->  | AW25: H22.8～H23.7 | AX25: 下限 | AY25: 2000 | AZ25: 2010 | BA25: 10 | BB25: =IF($AZ$8<=AZ25,$AZ$8,0) ->  | BC25: =IF(BB25>0,IF(AZ25-BB25>=BA25,BA25,AZ25-BB25),0) ->  | BD25: =IF(BC25>0,BC25,IF(BC26>0,BC26,0)) ->  | BE25: =IF(AY25>=$AZ$8,AY25,IF($AZ$8>=AY26,AY26,$AZ$8)) ->  | BF25: =IF(AZ25>=$AZ$8,AZ25,IF($AZ$8>=AZ26,AZ26,$AZ$8)) ->  | BH25: H22.8～H23.7 | BI25: 下限 | BJ25: 60000 | BK25: 60300 | BL25: 300 | BM25: =IF($BK$8<=BK25,$BK$8,0) -> 0 | BN25: =IF(BM25>0,IF(BK25-BM25>=BL25,BL25,BK25-BM25),0) -> 0 | BO25: =IF(BN25>0,BN25,IF(BN26>0,BN26,0)) -> 0 | BP25: =IF(BJ25>=$BK$8,BJ25,IF($BK$8>=BJ26,BJ26,$BK$8)) -> 60000 | BQ25: 60300
B26: 30歳～44歳 | N26: =M25-L25 ->  | O26: =IF($B$9>=14140,7070,IF(AND(11890<=$B$9,$B$9<14140),ROUNDDOWN($B$9*0.5,0),0)) ->  | P26: =IF($B$9>=14220,7110,IF(AND(11890<=$B$9,$B$9<14220),ROUNDDOWN($B$9*0.5,0),0)) ->  | AN26: 上限 | AO26: 13650 | AP26: 13730 | AQ26: 80 | AR26: =IF(AO26<=$AP$8,$AP$8,0) ->  | AS26: =IF(AR26>0,IF(AR26-AO26>=AQ26,AQ26,AR26-AO26),0) ->  | AX26: 上限 | AY26: 13650 | AZ26: 13730 | BA26: 80 | BB26: =IF(AY26<=$AZ$8,$AZ$8,0) ->  | BC26: =IF(BB26>0,IF(BB26-AY26>=BA26,BA26,BB26-AY26),0) ->  | BI26: 上限 | BJ26: 436200 | BK26: 439200 | BL26: 3000 | BM26: =IF(BJ26<=$BK$8,$BK$8,0) -> 0 | BN26: =IF(BM26>0,IF(BM26-BJ26>=BL26,BL26,BM26-BJ26),0) -> 0
B27: 45歳～59歳 | N27: =M25-L25 ->  | O27: =IF($B$9>=15550,7775,IF(AND(11890<=$B$9,$B$9<15550),ROUNDDOWN($B$9*0.5,0),0)) ->  | P27: =IF($B$9>=15650,7825,IF(AND(11890<=$B$9,$B$9<15650),ROUNDDOWN($B$9*0.5,0),0)) ->  | AL27: =総合計算!K12 ->  | AM27: =A41 -> H23.8～H24.7 | AN27: 下限 | AO27: 2330 | AP27: 2330 | AQ27: 0 | AR27: =IF($AP$8<=AP27,$AP$8,0) ->  | AS27: =IF(AR27>0,IF(AP27-AR27>=AQ27,AQ27,AP27-AR27),0) ->  | AT27: =IF(AS27>0,AS27,IF(AS28>0,AS28,0)) ->  | AU27: =IF(AO27>=$AP$8,AO27,IF($AP$8>=AO28,AO28,$AP$8)) ->  | AV27: =IF(AP27>=$AP$8,AP27,IF($AP$8>=AP28,AP28,$AP$8)) ->  | AW27: H23.8～H24.7 | AX27: 下限 | AY27: 2330 | AZ27: 2330 | BA27: 0 | BB27: =IF($AZ$8<=AZ27,$AZ$8,0) ->  | BC27: =IF(BB27>0,IF(AZ27-BB27>=BA27,BA27,AZ27-BB27),0) ->  | BD27: =IF(BC27>0,BC27,IF(BC28>0,BC28,0)) ->  | BE27: =IF(AY27>=$AZ$8,AY27,IF($AZ$8>=AY28,AY28,$AZ$8)) ->  | BF27: =IF(AZ27>=$AZ$8,AZ27,IF($AZ$8>=AZ28,AZ28,$AZ$8)) ->  | BH27: H23.8～H24.7 | BI27: 下限 | BJ27: 69900 | BK27: 69900 | BL27: 0 | BM27: =IF($BK$8<=BK27,$BK$8,0) -> 0 | BN27: =IF(BM27>0,IF(BK27-BM27>=BL27,BL27,BK27-BM27),0) -> 0 | BO27: =IF(BN27>0,BN27,IF(BN28>0,BN28,0)) -> 0 | BP27: =IF(BJ27>=$BK$8,BJ27,IF($BK$8>=BJ28,BJ28,$BK$8)) -> 69900 | BQ27: 69900
B28: 60歳～64歳 | I28: =IF(AND(4100<=$B$9,$B$9<7445),ROUNDDOWN(0.8*$B$9-0.35*(($B$9-4080)/(10590-4080)*$B$9),0),IF(AND(7445<=$B$9,$B$9<10590),ROUNDDOWN(0.05*$B$9+4236,0),0)) ->  | J28: =IF(AND(4100<=$B$9,$B$9<7498),ROUNDDOWN(0.8*$B$9-0.35*(($B$9-4100)/(10660-4100)*$B$9),0),IF(AND(7498<=$B$9,$B$9<10590),ROUNDDOWN(0.05*$B$9+4264,0),0)) ->  | L28: =IF(AND(10590<=$B$9,$B$9<10660),ROUNDDOWN($B$9*0.45,0),0) ->  | M28: =IF(AND(10590<=$B$9,$B$9<10660),ROUNDDOWN(0.05*$B$9+4264,0),0) ->  | O28: =IF($B$9>=15060,6777,IF(AND(10660<=$B$9,$B$9<15060),ROUNDDOWN($B$9*0.45,0),0)) ->  | P28: =IF($B$9>=15160,6822,IF(AND(10660<=$B$9,$B$9<15160),ROUNDDOWN($B$9*0.45,0),0)) ->  | AD28: =Y25 -> 0 | AE28: =IF(AD28>=4765,4765,AD28) -> 0 | AF28: =AC25 -> 0 | AG28: =IF(AF28>=4797,4797,AF28) -> 0 | AH28: =AG28-AE28 -> 0 | AN28: 上限 | AO28: 14340 | AP28: 14340 | AQ28: 0 | AR28: =IF(AO28<=$AP$8,$AP$8,0) ->  | AS28: =IF(AR28>0,IF(AR28-AO28>=AQ28,AQ28,AR28-AO28),0) ->  | AX28: 上限 | AY28: 14340 | AZ28: 14340 | BA28: 0 | BB28: =IF(AY28<=$AZ$8,$AZ$8,0) ->  | BC28: =IF(BB28>0,IF(BB28-AY28>=BA28,BA28,BB28-AY28),0) ->  | BI28: 上限 | BJ28: 451800 | BK28: 452100 | BL28: 300 | BM28: =IF(BJ28<=$BK$8,$BK$8,0) -> 0 | BN28: =IF(BM28>0,IF(BM28-BJ28>=BL28,BL28,BM28-BJ28),0) -> 0
A29: H20.8～H21.7 | B29: ～29歳または65歳～ | C29: =IF(AND(0<$B$9,$B$9<2060),1648,IF(AND(2060<=$B$9,$B$9<4060),ROUNDDOWN($B$9*0.8,0),0)) ->  | D29: =IF(AND(0<$B$9,$B$9<2070),1656,IF(AND(2070<=$B$9,$B$9<4060),ROUNDDOWN($B$9*0.8,0),0)) ->  | E29: =D29-C29 ->  | F29: =IF(AND(4060<=$B$9,$B$9<4080),ROUNDDOWN(0.8*$B$9-0.3*(($B$9-4060)/(11750-4060)*$B$9),0),0) ->  | G29: =IF(AND(4060<=$B$9,$B$9<4080),ROUNDDOWN($B$9*0.8,0),0) ->  | H29: =G29-F29 ->  | I29: =IF(AND(4080<=$B$9,$B$9<11750),ROUNDDOWN(0.8*$B$9-0.3*(($B$9-4060)/(11750-4060)*$B$9),0),0) ->  | J29: =IF(AND(4080<=$B$9,$B$9<11750),ROUNDDOWN(0.8*$B$9-0.3*(($B$9-4080)/(11830-4080)*$B$9),0),0) ->  | L29: =IF(AND(11750<=$B$9,$B$9<11830),ROUNDDOWN($B$9*0.5,0),0) ->  | M29: =IF(AND(11750<=$B$9,$B$9<11830),ROUNDDOWN(0.8*$B$9-0.3*(($B$9-4080)/(11830-4080)*$B$9),0),0) ->  | O29: =IF($B$9>=12660,6330,IF(AND(11830<=$B$9,$B$9<12660),ROUNDDOWN($B$9*0.5,0),0)) ->  | P29: =IF($B$9>=12740,6370,IF(AND(11830<=$B$9,$B$9<12740),ROUNDDOWN($B$9*0.5,0),0)) ->  | R29: =IF(計算表!$B$10=B29,IF($B$9<4060,E29,IF(AND($B$9>=4060,$B$9<4080),H29,IF(AND($B$9>=4080,$B$9<11750),K29,IF(AND($B$9>=11750,$B$9<11830),N29,IF($B$9>=11830,Q29))))),0) -> 0 | S29: =IF(計算表!$B$10=B30,IF($B$9<4060,E29,IF(AND($B$9>=4060,$B$9<4080),H29,IF(AND($B$9>=4080,$B$9<11750),K29,IF(AND($B$9>=11750,$B$9<11830),N30,IF($B$9>=11830,Q30))))),0) -> 0 | T29: =IF(計算表!$B$10=B31,IF($B$9<4060,E29,IF(AND($B$9>=4060,$B$9<4080),H29,IF(AND($B$9>=4080,$B$9<11750),K29,IF(AND($B$9>=11750,$B$9<11830),N31,IF($B$9>=11830,Q31))))),0) -> 0 | U29: =IF(計算表!$B$10=B32,IF($B$9<4060,E29,IF(AND($B$9>=4060,$B$9<4080),H29,IF(AND($B$9>=4080,$B$9<10530),K32,IF(AND($B$9>=10530,$B$9<10600),N32,IF($B$9>=10600,Q32))))),0) -> 0 | V29: =IF(計算表!$B$10=B29,IF($B$9<4060,C29,IF(AND($B$9>=4060,$B$9<4080),F29,IF(AND($B$9>=4080,$B$9<11750),I29,IF(AND($B$9>=11750,$B$9<11830),L29,IF($B$9>=11830,O29))))),0) -> 0 | W29: =IF(計算表!$B$10=B30,IF($B$9<4060,C29,IF(AND($B$9>=4060,$B$9<4080),F29,IF(AND($B$9>=4080,$B$9<11750),I29,IF(AND($B$9>=11750,$B$9<11830),L29,IF($B$9>=11830,O30))))),0) -> 0 | X29: =IF(計算表!$B$10=B31,IF($B$9<4060,C29,IF(AND($B$9>=4060,$B$9<4080),F29,IF(AND($B$9>=4080,$B$9<11750),I29,IF(AND($B$9>=11750,$B$9<11830),L29,IF($B$9>=11830,O31))))),0) -> 0 | Y29: =IF(計算表!$B$10=B32,IF($B$9<4060,C29,IF(AND($B$9>=4060,$B$9<4080),F29,IF(AND($B$9>=4080,$B$9<10530),I32,IF(AND($B$9>=10530,$B$9<10600),L32,IF($B$9>=10600,O32))))),0) -> 0 | Z29: =IF(計算表!$B$10=B29,IF($B$9<4060,D29,IF(AND($B$9>=4060,$B$9<4080),G29,IF(AND($B$9>=4080,$B$9<11750),J29,IF(AND($B$9>=11750,$B$9<11830),M29,IF($B$9>=11830,P29))))),0) -> 0 | AA29: =IF(計算表!$B$10=B30,IF($B$9<4060,D29,IF(AND($B$9>=4060,$B$9<4080),G29,IF(AND($B$9>=4080,$B$9<11750),J29,IF(AND($B$9>=11750,$B$9<11830),M29,IF($B$9>=11830,P30))))),0) -> 0 | AB29: =IF(計算表!$B$10=B31,IF($B$9<4060,D29,IF(AND($B$9>=4060,$B$9<4080),G29,IF(AND($B$9>=4080,$B$9<11750),J29,IF(AND($B$9>=11750,$B$9<11830),M29,IF($B$9>=11830,P31))))),0) -> 0 | AC29: =IF(計算表!$B$10=B32,IF($B$9<4060,D29,IF(AND($B$9>=4060,$B$9<4080),G29,IF(AND($B$9>=4080,$B$9<10530),J32,IF(AND($B$9>=10530,$B$9<10600),M32,IF($B$9>=10600,P32))))),0) -> 0 | AD29: =SUM(V29:X32) -> 0 | AE29: =IF(AD29>=5875,5875,AD29) -> 0 | AF29: =SUM(Z29:AB32) -> 0 | AG29: =IF(AF29>=5915,5915,AF29) -> 0 | AH29: =AG29-AE29 -> 0 | AI29: 1334 | AJ29: 1343 | AK29: =AJ29-AI29 -> 9 | AL29: =総合計算!K13 ->  | AM29: =A45 -> H24.8～H25.7 | AN29: 下限 | AO29: 2320 | AP29: 2320 | AQ29: 0 | AR29: =IF($AP$8<=AP29,$AP$8,0) ->  | AS29: =IF(AR29>0,IF(AP29-AR29>=AQ29,AQ29,AP29-AR29),0) ->  | AT29: =IF(AS29>0,AS29,IF(AS30>0,AS30,0)) ->  | AU29: =IF(AO29>=$AP$8,AO29,IF($AP$8>=AO30,AO30,$AP$8)) ->  | AV29: =IF(AP29>=$AP$8,AP29,IF($AP$8>=AP30,AP30,$AP$8)) ->  | AW29: H24.8～H25.7 | AX29: 下限 | AY29: 2320 | AZ29: 2320 | BA29: 0 | BB29: =IF($AZ$8<=AZ29,$AZ$8,0) ->  | BC29: =IF(BB29>0,IF(AZ29-BB29>=BA29,BA29,AZ29-BB29),0) ->  | BD29: =IF(BC29>0,BC29,IF(BC30>0,BC30,0)) ->  | BE29: =IF(AY29>=$AZ$8,AY29,IF($AZ$8>=AY30,AY30,$AZ$8)) ->  | BF29: =IF(AZ29>=$AZ$8,AZ29,IF($AZ$8>=AZ30,AZ30,$AZ$8)) ->  | BH29: H24.8～H25.7 | BI29: 下限 | BJ29: 69600 | BK29: 69600 | BL29: 0 | BM29: =IF($BK$8<=BK29,$BK$8,0) -> 0 | BN29: =IF(BM29>0,IF(BK29-BM29>=BL29,BL29,BK29-BM29),0) -> 0 | BO29: =IF(BN29>0,BN29,IF(BN30>0,BN30,0)) -> 0 | BP29: =IF(BJ29>=$BK$8,BJ29,IF($BK$8>=BJ30,BJ30,$BK$8)) -> 69600 | BQ29: 69600
B30: 30歳～44歳 | N30: =M29-L29 ->  | O30: =IF($B$9>=14060,7030,IF(AND(11830<=$B$9,$B$9<14060),ROUNDDOWN($B$9*0.5,0),0)) ->  | P30: =IF($B$9>=14140,7070,IF(AND(11830<=$B$9,$B$9<14140),ROUNDDOWN($B$9*0.5,0),0)) ->  | AN30: 上限 | AO30: 14310 | AP30: 14310 | AQ30: 0 | AR30: =IF(AO30<=$AP$8,$AP$8,0) ->  | AS30: =IF(AR30>0,IF(AR30-AO30>=AQ30,AQ30,AR30-AO30),0) ->  | AX30: 上限 | AY30: 14310 | AZ30: 14310 | BA30: 0 | BB30: =IF(AY30<=$AZ$8,$AZ$8,0) ->  | BC30: =IF(BB30>0,IF(BB30-AY30>=BA30,BA30,BB30-AY30),0) ->  | BI30: 上限 | BJ30: 450600 | BK30: 450900 | BL30: 300 | BM30: =IF(BJ30<=$BK$8,$BK$8,0) -> 0 | BN30: =IF(BM30>0,IF(BM30-BJ30>=BL30,BL30,BM30-BJ30),0) -> 0
B31: 45歳～59歳 | N31: =M29-L29 ->  | O31: =IF($B$9>=15460,7730,IF(AND(11830<=$B$9,$B$9<15460),ROUNDDOWN($B$9*0.5,0),0)) ->  | P31: =IF($B$9>=15570,7785,IF(AND(11830<=$B$9,$B$9<15570),ROUNDDOWN($B$9*0.5,0),0)) ->  | AL31: =総合計算!K14 ->  | AM31: =A49 -> H25.8～H26.7 | AN31: 下限 | AO31: 2310 | AP31: 2310 | AQ31: 0 | AR31: =IF($AP$8<=AP31,$AP$8,0) ->  | AS31: =IF(AR31>0,IF(AP31-AR31>=AQ31,AQ31,AP31-AR31),0) ->  | AT31: =IF(AS31>0,AS31,IF(AS32>0,AS32,0)) ->  | AU31: =IF(AO31>=$AP$8,AO31,IF($AP$8>=AO32,AO32,$AP$8)) ->  | AV31: =IF(AP31>=$AP$8,AP31,IF($AP$8>=AP32,AP32,$AP$8)) ->  | AW31: H25.8～H26.7 | AX31: 下限 | AY31: 2310 | AZ31: 2310 | BA31: 0 | BB31: =IF($AZ$8<=AZ31,$AZ$8,0) ->  | BC31: =IF(BB31>0,IF(AZ31-BB31>=BA31,BA31,AZ31-BB31),0) ->  | BD31: =IF(BC31>0,BC31,IF(BC32>0,BC32,0)) ->  | BE31: =IF(AY31>=$AZ$8,AY31,IF($AZ$8>=AY32,AY32,$AZ$8)) ->  | BF31: =IF(AZ31>=$AZ$8,AZ31,IF($AZ$8>=AZ32,AZ32,$AZ$8)) ->  | BH31: H25.8～H26.7 | BI31: 下限 | BJ31: 69300 | BK31: 69300 | BL31: 0 | BM31: =IF($BK$8<=BK31,$BK$8,0) -> 0 | BN31: =IF(BM31>0,IF(BK31-BM31>=BL31,BL31,BK31-BM31),0) -> 0 | BO31: =IF(BN31>0,BN31,IF(BN32>0,BN32,0)) -> 0 | BP31: =IF(BJ31>=$BK$8,BJ31,IF($BK$8>=BJ32,BJ32,$BK$8)) -> 69300 | BQ31: 69300
B32: 60歳～64歳 | I32: =IF(AND(4080<=$B$9,$B$9<7396),ROUNDDOWN(0.8*$B$9-0.35*(($B$9-4060)/(10530-4060)*$B$9),0),IF(AND(7396<=$B$9,$B$9<10530),ROUNDDOWN(0.05*$B$9+4212,0),0)) ->  | J32: =IF(AND(4080<=$B$9,$B$9<7454),ROUNDDOWN(0.8*$B$9-0.35*(($B$9-4080)/(10600-4080)*$B$9),0),IF(AND(7454<=$B$9,$B$9<10530),ROUNDDOWN(0.05*$B$9+4240,0),0)) ->  | L32: =IF(AND(10530<=$B$9,$B$9<10600),ROUNDDOWN($B$9*0.45,0),0) ->  | M32: =IF(AND(10530<=$B$9,$B$9<10600),ROUNDDOWN(0.05*$B$9+4240,0),0) ->  | O32: =IF($B$9>=14980,6741,IF(AND(10600<=$B$9,$B$9<14980),ROUNDDOWN($B$9*0.45,0),0)) ->  | P32: =IF($B$9>=15080,6786,IF(AND(10600<=$B$9,$B$9<15080),ROUNDDOWN($B$9*0.45,0),0)) ->  | AD32: =Y29 -> 0 | AE32: =IF(AD32>=4738,4738,AD32) -> 0 | AF32: =AC29 -> 0 | AG32: =IF(AF32>=4770,4770,AF32) -> 0 | AH32: =AG32-AE32 -> 0 | AN32: 上限 | AO32: 14230 | AP32: 14230 | AQ32: 0 | AR32: =IF(AO32<=$AP$8,$AP$8,0) ->  | AS32: =IF(AR32>0,IF(AR32-AO32>=AQ32,AQ32,AR32-AO32),0) ->  | AX32: 上限 | AY32: 14230 | AZ32: 14230 | BA32: 0 | BB32: =IF(AY32<=$AZ$8,$AZ$8,0) ->  | BC32: =IF(BB32>0,IF(BB32-AY32>=BA32,BA32,BB32-AY32),0) ->  | BI32: 上限 | BJ32: 448200 | BK32: 448500 | BL32: 300 | BM32: =IF(BJ32<=$BK$8,$BK$8,0) -> 0 | BN32: =IF(BM32>0,IF(BM32-BJ32>=BL32,BL32,BM32-BJ32),0) -> 0
A33: H21.8～H22.7 | B33: ～29歳または65歳～ | C33: =IF(AND(0<$B$9,$B$9<2050),1640,IF(AND(2050<=$B$9,$B$9<4040),ROUNDDOWN($B$9*0.8,0),0)) ->  | D33: =IF(AND(0<$B$9,$B$9<2060),1648,IF(AND(2060<=$B$9,$B$9<4040),ROUNDDOWN($B$9*0.8,0),0)) ->  | E33: =D33-C33 ->  | F33: =IF(AND(4040<=$B$9,$B$9<4060),ROUNDDOWN(0.8*$B$9-0.3*(($B$9-4040)/(11680-4040)*$B$9),0),0) ->  | G33: =IF(AND(4040<=$B$9,$B$9<4060),ROUNDDOWN($B$9*0.8,0),0) ->  | H33: =G33-F33 ->  | I33: =IF(AND(4060<=$B$9,$B$9<11680),ROUNDDOWN(0.8*$B$9-0.3*(($B$9-4040)/(11680-4040)*$B$9),0),0) ->  | J33: =IF(AND(4060<=$B$9,$B$9<11680),ROUNDDOWN(0.8*$B$9-0.3*(($B$9-4060)/(11760-4060)*$B$9),0),0) ->  | L33: =IF(AND(11680<=$B$9,$B$9<11760),ROUNDDOWN($B$9*0.5,0),0) ->  | M33: =IF(AND(11680<=$B$9,$B$9<11760),ROUNDDOWN(0.8*$B$9-0.3*(($B$9-4060)/(11760-4060)*$B$9),0),0) ->  | N33: =M33-L33 ->  | O33: =IF($B$9>=12580,6290,IF(AND(11760<=$B$9,$B$9<12580),ROUNDDOWN($B$9*0.5,0),0)) ->  | P33: =IF($B$9>=12660,6330,IF(AND(11760<=$B$9,$B$9<12660),ROUNDDOWN($B$9*0.5,0),0)) ->  | R33: =IF(計算表!$B$10=B33,IF($B$9<4040,E33,IF(AND($B$9>=4040,$B$9<4060),H33,IF(AND($B$9>=4060,$B$9<11680),K33,IF(AND($B$9>=11680,$B$9<11760),N33,IF($B$9>=11760,Q33))))),0) -> 0 | S33: =IF(計算表!$B$10=B34,IF($B$9<4040,E33,IF(AND($B$9>=4040,$B$9<4060),H33,IF(AND($B$9>=4060,$B$9<11680),K33,IF(AND($B$9>=11680,$B$9<11760),N34,IF($B$9>=11760,Q34))))),0) -> 0 | T33: =IF(計算表!$B$10=B35,IF($B$9<4040,E33,IF(AND($B$9>=4040,$B$9<4060),H33,IF(AND($B$9>=4060,$B$9<11680),K33,IF(AND($B$9>=11680,$B$9<11760),N35,IF($B$9>=11760,Q35))))),0) -> 0 | U33: =IF(計算表!$B$10=B36,IF($B$9<4040,E33,IF(AND($B$9>=4040,$B$9<4060),H33,IF(AND($B$9>=4060,$B$9<10470),K36,IF(AND($B$9>=10470,$B$9<10540),N36,IF($B$9>=10540,Q36))))),0) -> 0 | V33: =IF(計算表!$B$10=B33,IF($B$9<4040,C33,IF(AND($B$9>=4040,$B$9<4060),F33,IF(AND($B$9>=4060,$B$9<11680),I33,IF(AND($B$9>=11680,$B$9<11760),L33,IF($B$9>=11760,O33))))),0) -> 0 | W33: =IF(計算表!$B$10=B34,IF($B$9<4040,C33,IF(AND($B$9>=4040,$B$9<4060),F33,IF(AND($B$9>=4060,$B$9<11680),I33,IF(AND($B$9>=11680,$B$9<11760),L33,IF($B$9>=11760,O34))))),0) -> 0 | X33: =IF(計算表!$B$10=B35,IF($B$9<4040,C33,IF(AND($B$9>=4040,$B$9<4060),F33,IF(AND($B$9>=4060,$B$9<11680),I33,IF(AND($B$9>=11680,$B$9<11760),L33,IF($B$9>=11760,O35))))),0) -> 0 | Y33: =IF(計算表!$B$10=B36,IF($B$9<4040,C33,IF(AND($B$9>=4040,$B$9<4060),F33,IF(AND($B$9>=4060,$B$9<10470),I36,IF(AND($B$9>=10470,$B$9<10540),L36,IF($B$9>=10540,O36))))),0) -> 0 | Z33: =IF(計算表!$B$10=B33,IF($B$9<4040,D33,IF(AND($B$9>=4040,$B$9<4060),G33,IF(AND($B$9>=4060,$B$9<11680),J33,IF(AND($B$9>=11680,$B$9<11760),M33,IF($B$9>=11760,P33))))),0) -> 0 | AA33: =IF(計算表!$B$10=B34,IF($B$9<4040,D33,IF(AND($B$9>=4040,$B$9<4060),G33,IF(AND($B$9>=4060,$B$9<11680),J33,IF(AND($B$9>=11680,$B$9<11760),M33,IF($B$9>=11760,P34))))),0) -> 0 | AB33: =IF(計算表!$B$10=B35,IF($B$9<4040,D33,IF(AND($B$9>=4040,$B$9<4060),G33,IF(AND($B$9>=4060,$B$9<11680),J33,IF(AND($B$9>=11680,$B$9<11760),M33,IF($B$9>=11760,P35))))),0) -> 0 | AC33: =IF(計算表!$B$10=B36,IF($B$9<4040,D33,IF(AND($B$9>=4040,$B$9<4060),G33,IF(AND($B$9>=4060,$B$9<10470),J36,IF(AND($B$9>=10470,$B$9<10540),M36,IF($B$9>=10540,P36))))),0) -> 0 | AD33: =SUM(V33:X36) -> 0 | AE33: =IF(AD33>=5840,5840,AD33) -> 0 | AF33: =SUM(Z33:AB36) -> 0 | AG33: =IF(AF33>=5880,5880,AF33) -> 0 | AH33: =AG33-AE33 -> 0 | AI33: 1326 | AJ33: 1335 | AK33: =AJ33-AI33 -> 9 | AL33: =総合計算!K15 ->  | AM33: =A53 -> H26.8～H27.7 | AN33: 下限 | AO33: 2300 | AP33: 2310 | AQ33: 10 | AR33: =IF($AP$8<=AP33,$AP$8,0) ->  | AS33: =IF(AR33>0,IF(AP33-AR33>=AQ33,AQ33,AP33-AR33),0) ->  | AT33: =IF(AS33>0,AS33,IF(AS34>0,AS34,0)) ->  | AU33: =IF(AO33>=$AP$8,AO33,IF($AP$8>=AO34,AO34,$AP$8)) ->  | AV33: =IF(AP33>=$AP$8,AP33,IF($AP$8>=AP34,AP34,$AP$8)) ->  | AW33: H26.8～H27.7 | AX33: 下限 | AY33: 2300 | AZ33: 2310 | BA33: 10 | BB33: =IF($AZ$8<=AZ33,$AZ$8,0) ->  | BC33: =IF(BB33>0,IF(AZ33-BB33>=BA33,BA33,AZ33-BB33),0) ->  | BD33: =IF(BC33>0,BC33,IF(BC34>0,BC34,0)) ->  | BE33: =IF(AY33>=$AZ$8,AY33,IF($AZ$8>=AY34,AY34,$AZ$8)) ->  | BF33: =IF(AZ33>=$AZ$8,AZ33,IF($AZ$8>=AZ34,AZ34,$AZ$8)) ->  | BH33: H26.8～H27.7 | BI33: 下限 | BJ33: 69000 | BK33: 69300 | BL33: 300 | BM33: =IF($BK$8<=BK33,$BK$8,0) -> 0 | BN33: =IF(BM33>0,IF(BK33-BM33>=BL33,BL33,BK33-BM33),0) -> 0 | BO33: =IF(BN33>0,BN33,IF(BN34>0,BN34,0)) -> 0 | BP33: =IF(BJ33>=$BK$8,BJ33,IF($BK$8>=BJ34,BJ34,$BK$8)) -> 69000 | BQ33: 69300
B34: 30歳～44歳 | N34: =M33-L33 ->  | O34: =IF($B$9>=13980,6990,IF(AND(11760<=$B$9,$B$9<13980),ROUNDDOWN($B$9*0.5,0),0)) ->  | P34: =IF($B$9>=14060,7030,IF(AND(11760<=$B$9,$B$9<14060),ROUNDDOWN($B$9*0.5,0),0)) ->  | AN34: 上限 | AO34: 14200 | AP34: 14220 | AQ34: 20 | AR34: =IF(AO34<=$AP$8,$AP$8,0) ->  | AS34: =IF(AR34>0,IF(AR34-AO34>=AQ34,AQ34,AR34-AO34),0) ->  | AX34: 上限 | AY34: 14200 | AZ34: 14220 | BA34: 20 | BB34: =IF(AY34<=$AZ$8,$AZ$8,0) ->  | BC34: =IF(BB34>0,IF(BB34-AY34>=BA34,BA34,BB34-AY34),0) ->  | BI34: 上限 | BJ34: 447300 | BK34: 448200 | BL34: 900 | BM34: =IF(BJ34<=$BK$8,$BK$8,0) -> 0 | BN34: =IF(BM34>0,IF(BM34-BJ34>=BL34,BL34,BM34-BJ34),0) -> 0
B35: 45歳～59歳 | N35: =M33-L33 ->  | O35: =IF($B$9>=15370,7685,IF(AND(11760<=$B$9,$B$9<15370),ROUNDDOWN($B$9*0.5,0),0)) ->  | P35: =IF($B$9>=15480,7740,IF(AND(11760<=$B$9,$B$9<15480),ROUNDDOWN($B$9*0.5,0),0)) ->  | AL35: =総合計算!K16 ->  | AM35: =A57 -> H27.8～H28.7 | AN35: 下限 | AO35: 2300 | AP35: 2310 | AQ35: 10 | AR35: =IF($AP$8<=AP35,$AP$8,0) ->  | AS35: =IF(AR35>0,IF(AP35-AR35>=AQ35,AQ35,AP35-AR35),0) ->  | AT35: =IF(AS35>0,AS35,IF(AS36>0,AS36,0)) ->  | AU35: =IF(AO35>=$AP$8,AO35,IF($AP$8>=AO36,AO36,$AP$8)) ->  | AV35: =IF(AP35>=$AP$8,AP35,IF($AP$8>=AP36,AP36,$AP$8)) ->  | AW35: H27.8～H28.7 | AX35: 下限 | AY35: 2300 | AZ35: 2310 | BA35: 10 | BB35: =IF($AZ$8<=AZ35,$AZ$8,0) ->  | BC35: =IF(BB35>0,IF(AZ35-BB35>=BA35,BA35,AZ35-BB35),0) ->  | BD35: =IF(BC35>0,BC35,IF(BC36>0,BC36,0)) ->  | BE35: =IF(AY35>=$AZ$8,AY35,IF($AZ$8>=AY36,AY36,$AZ$8)) ->  | BF35: =IF(AZ35>=$AZ$8,AZ35,IF($AZ$8>=AZ36,AZ36,$AZ$8)) ->  | BH35: H27.8～H28.7 | BI35: 下限 | BJ35: 69000 | BK35: 69300 | BL35: 300 | BM35: =IF($BK$8<=BK35,$BK$8,0) -> 0 | BN35: =IF(BM35>0,IF(BK35-BM35>=BL35,BL35,BK35-BM35),0) -> 0 | BO35: =IF(BN35>0,BN35,IF(BN36>0,BN36,0)) -> 0 | BP35: =IF(BJ35>=$BK$8,BJ35,IF($BK$8>=BJ36,BJ36,$BK$8)) -> 69000 | BQ35: 69300
B36: 60歳～64歳 | I36: =IF(AND(4060<=$B$9,$B$9<7352),ROUNDDOWN(0.8*$B$9-0.35*(($B$9-4040)/(10470-4040)*$B$9),0),IF(AND(7352<=$B$9,$B$9<10470),ROUNDDOWN(0.05*$B$9+4188,0),0)) ->  | J36: =IF(AND(4060<=$B$9,$B$9<7409),ROUNDDOWN(0.8*$B$9-0.35*(($B$9-4060)/(10540-4060)*$B$9),0),IF(AND(7409<=$B$9,$B$9<10470),ROUNDDOWN(0.05*$B$9+4216,0),0)) ->  | L36: =IF(AND(10470<=$B$9,$B$9<10540),ROUNDDOWN($B$9*0.45,0),0) ->  | M36: =IF(AND(10470<=$B$9,$B$9<10540),ROUNDDOWN(0.05*$B$9+4216,0),0) ->  | O36: =IF($B$9>=14890,6700,IF(AND(10540<=$B$9,$B$9<14890),ROUNDDOWN($B$9*0.45,0),0)) ->  | P36: =IF($B$9>=14990,6745,IF(AND(10540<=$B$9,$B$9<14990),ROUNDDOWN($B$9*0.45,0),0)) ->  | AD36: =Y33 -> 0 | AE36: =IF(AD36>=4711,4711,AD36) -> 0 | AF36: =AC33 -> 0 | AG36: =IF(AF36>=4743,4743,AF36) -> 0 | AH36: =AG36-AE36 -> 0 | AN36: 上限 | AO36: 14210 | AP36: 14240 | AQ36: 30 | AR36: =IF(AO36<=$AP$8,$AP$8,0) ->  | AS36: =IF(AR36>0,IF(AR36-AO36>=AQ36,AQ36,AR36-AO36),0) ->  | AX36: 上限 | AY36: 14210 | AZ36: 14240 | BA36: 30 | BB36: =IF(AY36<=$AZ$8,$AZ$8,0) ->  | BC36: =IF(BB36>0,IF(BB36-AY36>=BA36,BA36,BB36-AY36),0) ->  | BI36: 上限 | BJ36: 447600 | BK36: 448800 | BL36: 1200 | BM36: =IF(BJ36<=$BK$8,$BK$8,0) -> 0 | BN36: =IF(BM36>0,IF(BM36-BJ36>=BL36,BL36,BM36-BJ36),0) -> 0
A37: H22.8～H23.7 | B37: ～29歳または65歳～ | C37: =IF(AND(0<$B$9,$B$9<2000),1600,IF(AND(2000<=$B$9,$B$9<3950),ROUNDDOWN($B$9*0.8,0),0)) ->  | D37: =IF(AND(0<$B$9,$B$9<2010),1608,IF(AND(2010<=$B$9,$B$9<3950),ROUNDDOWN($B$9*0.8,0),0)) ->  | E37: =D37-C37 ->  | F37: =IF(AND(3950<=$B$9,$B$9<3970),ROUNDDOWN(0.8*$B$9-0.3*(($B$9-3950)/(11410-3950)*$B$9),0),0) ->  | G37: =IF(AND(3950<=$B$9,$B$9<3970),ROUNDDOWN($B$9*0.8,0),0) ->  | H37: =G37-F37 ->  | I37: =IF(AND(3970<=$B$9,$B$9<11410),ROUNDDOWN(0.8*$B$9-0.3*(($B$9-3950)/(11410-3950)*$B$9),0),0) ->  | J37: =IF(AND(3970<=$B$9,$B$9<11410),ROUNDDOWN(0.8*$B$9-0.3*(($B$9-3970)/(11490-3970)*$B$9),0),0) ->  | L37: =IF(AND(11410<=$B$9,$B$9<11490),ROUNDDOWN($B$9*0.5,0),0) ->  | M37: =IF(AND(11410<=$B$9,$B$9<11490),ROUNDDOWN(0.8*$B$9-0.3*(($B$9-3970)/(11490-3970)*$B$9),0),0) ->  | N37: =M37-L37 ->  | O37: =IF($B$9>=12290,6145,IF(AND(11490<=$B$9,$B$9<12290),ROUNDDOWN($B$9*0.5,0),0)) ->  | P37: =IF($B$9>=12360,6180,IF(AND(11490<=$B$9,$B$9<12360),ROUNDDOWN($B$9*0.5,0),0)) ->  | R37: =IF(計算表!$B$10=B37,IF($B$9<3950,E37,IF(AND($B$9>=3950,$B$9<3970),H37,IF(AND($B$9>=3970,$B$9<11410),K37,IF(AND($B$9>=11410,$B$9<11490),N37,IF($B$9>=11490,Q37))))),0) -> 0 | S37: =IF(計算表!$B$10=B38,IF($B$9<3950,E37,IF(AND($B$9>=3950,$B$9<3970),H37,IF(AND($B$9>=3970,$B$9<11410),K37,IF(AND($B$9>=11410,$B$9<11490),N38,IF($B$9>=11490,Q38))))),0) -> 0 | T37: =IF(計算表!$B$10=B39,IF($B$9<3950,E37,IF(AND($B$9>=3950,$B$9<3970),H37,IF(AND($B$9>=3970,$B$9<11410),K37,IF(AND($B$9>=11410,$B$9<11490),N39,IF($B$9>=11490,Q39))))),0) -> 0 | U37: =IF(計算表!$B$10=B40,IF($B$9<3950,E37,IF(AND($B$9>=3950,$B$9<3970),H37,IF(AND($B$9>=3970,$B$9<10230),K40,IF(AND($B$9>=10230,$B$9<10290),N40,IF($B$9>=10290,Q40))))),0) -> 0 | V37: =IF(計算表!$B$10=B37,IF($B$9<3950,C37,IF(AND($B$9>=3950,$B$9<3970),F37,IF(AND($B$9>=3970,$B$9<11410),I37,IF(AND($B$9>=11410,$B$9<11490),L37,IF($B$9>=11490,O37))))),0) -> 0 | W37: =IF(計算表!$B$10=B38,IF($B$9<3950,C37,IF(AND($B$9>=3950,$B$9<3970),F37,IF(AND($B$9>=3970,$B$9<11410),I37,IF(AND($B$9>=11410,$B$9<11490),L37,IF($B$9>=11490,O38))))),0) -> 0 | X37: =IF(計算表!$B$10=B39,IF($B$9<3950,C37,IF(AND($B$9>=3950,$B$9<3970),F37,IF(AND($B$9>=3970,$B$9<11410),I37,IF(AND($B$9>=11410,$B$9<11490),L37,IF($B$9>=11490,O39))))),0) -> 0 | Y37: =IF(計算表!$B$10=B40,IF($B$9<3950,C37,IF(AND($B$9>=3950,$B$9<3970),F37,IF(AND($B$9>=3970,$B$9<10230),I40,IF(AND($B$9>=10230,$B$9<10290),L40,IF($B$9>=10290,O40))))),0) -> 0 | Z37: =IF(計算表!$B$10=B37,IF($B$9<3950,D37,IF(AND($B$9>=3950,$B$9<3970),G37,IF(AND($B$9>=3970,$B$9<11410),J37,IF(AND($B$9>=11410,$B$9<11490),M37,IF($B$9>=11490,P37))))),0) -> 0 | AA37: =IF(計算表!$B$10=B38,IF($B$9<3950,D37,IF(AND($B$9>=3950,$B$9<3970),G37,IF(AND($B$9>=3970,$B$9<11410),J37,IF(AND($B$9>=11410,$B$9<11490),M37,IF($B$9>=11490,P38))))),0) -> 0 | AB37: =IF(計算表!$B$10=B39,IF($B$9<3950,D37,IF(AND($B$9>=3950,$B$9<3970),G37,IF(AND($B$9>=3970,$B$9<11410),J37,IF(AND($B$9>=11410,$B$9<11490),M37,IF($B$9>=11490,P39))))),0) -> 0 | AC37: =IF(計算表!$B$10=B40,IF($B$9<3950,D37,IF(AND($B$9>=3950,$B$9<3970),G37,IF(AND($B$9>=3970,$B$9<10230),J40,IF(AND($B$9>=10230,$B$9<10290),M40,IF($B$9>=10290,P40))))),0) -> 0 | AD37: =SUM(V37:X40) -> 0 | AE37: =IF(AD37>=5705,5705,AD37) -> 0 | AF37: =SUM(Z37:AB40) -> 0 | AG37: =IF(AF37>=5745,5745,AF37) -> 0 | AH37: =AG37-AE37 -> 0 | AI37: 1295 | AJ37: 1304 | AK37: =AJ37-AI37 -> 9 | AL37: =総合計算!K17 ->  | AM37: =A61 -> H28.8～H29.7 | AN37: 下限 | AO37: 2290 | AP37: 2300 | AQ37: 10 | AR37: =IF($AP$8<=AP37,$AP$8,0) ->  | AS37: =IF(AR37>0,IF(AP37-AR37>=AQ37,AQ37,AP37-AR37),0) ->  | AT37: =IF(AS37>0,AS37,IF(AS38>0,AS38,0)) ->  | AU37: =IF(AO37>=$AP$8,AO37,IF($AP$8>=AO38,AO38,$AP$8)) ->  | AV37: =IF(AP37>=$AP$8,AP37,IF($AP$8>=AP38,AP38,$AP$8)) ->  | AW37: H28.8～H29.7 | AX37: 下限 | AY37: 2290 | AZ37: 2300 | BA37: 10 | BB37: =IF($AZ$8<=AZ37,$AZ$8,0) ->  | BC37: =IF(BB37>0,IF(AZ37-BB37>=BA37,BA37,AZ37-BB37),0) ->  | BD37: =IF(BC37>0,BC37,IF(BC38>0,BC38,0)) ->  | BE37: =IF(AY37>=$AZ$8,AY37,IF($AZ$8>=AY38,AY38,$AZ$8)) ->  | BF37: =IF(AZ37>=$AZ$8,AZ37,IF($AZ$8>=AZ38,AZ38,$AZ$8)) ->  | BH37: H28.8～H29.7 | BI37: 下限 | BJ37: 68700 | BK37: 69000 | BL37: 300 | BM37: =IF($BK$8<=BK37,$BK$8,0) -> 0 | BN37: =IF(BM37>0,IF(BK37-BM37>=BL37,BL37,BK37-BM37),0) -> 0 | BO37: =IF(BN37>0,BN37,IF(BN38>0,BN38,0)) -> 0 | BP37: =IF(BJ37>=$BK$8,BJ37,IF($BK$8>=BJ38,BJ38,$BK$8)) -> 68700 | BQ37: 69000
B38: 30歳～44歳 | N38: =M37-L37 ->  | O38: =IF($B$9>=13650,6825,IF(AND(11490<=$B$9,$B$9<13650),ROUNDDOWN($B$9*0.5,0),0)) ->  | P38: =IF($B$9>=13730,6865,IF(AND(11490<=$B$9,$B$9<13730),ROUNDDOWN($B$9*0.5,0),0)) ->  | AN38: 上限 | AO38: 14150 | AP38: 14160 | AQ38: 10 | AR38: =IF(AO38<=$AP$8,$AP$8,0) ->  | AS38: =IF(AR38>0,IF(AR38-AO38>=AQ38,AQ38,AR38-AO38),0) ->  | AX38: 上限 | AY38: 15550 | AZ38: 15570 | BA38: 20 | BB38: =IF(AY38<=$AZ$8,$AZ$8,0) ->  | BC38: =IF(BB38>0,IF(BB38-AY38>=BA38,BA38,BB38-AY38),0) ->  | BI38: 上限 | BJ38: 445800 | BK38: 446100 | BL38: 300 | BM38: =IF(BJ38<=$BK$8,$BK$8,0) -> 0 | BN38: =IF(BM38>0,IF(BM38-BJ38>=BL38,BL38,BM38-BJ38),0) -> 0
B39: 45歳～59歳 | N39: =M37-L37 ->  | O39: =IF($B$9>=15010,7505,IF(AND(11490<=$B$9,$B$9<15010),ROUNDDOWN($B$9*0.5,0),0)) ->  | P39: =IF($B$9>=15120,7560,IF(AND(11490<=$B$9,$B$9<15120),ROUNDDOWN($B$9*0.5,0),0)) ->  | AL39: =総合計算!K18 ->  | AM39: =A65 -> H29.8～H30.7 | AN39: 下限 | AO39: 2470 | AP39: 2470 | AQ39: 0 | AR39: =IF($AP$8<=AP39,$AP$8,0) ->  | AS39: =IF(AR39>0,IF(AP39-AR39>=AQ39,AQ39,AP39-AR39),0) ->  | AT39: =IF(AS39>0,AS39,IF(AS40>0,AS40,0)) ->  | AU39: =IF(AO39>=$AP$8,AO39,IF($AP$8>=AO40,AO40,$AP$8)) ->  | AV39: =IF(AP39>=$AP$8,AP39,IF($AP$8>=AP40,AP40,$AP$8)) ->  | AW39: H29.8～H30.7 | AX39: 下限 | AY39: 2470 | AZ39: 2470 | BA39: 0 | BB39: =IF($AZ$8<=AZ39,$AZ$8,0) ->  | BC39: =IF(BB39>0,IF(AZ39-BB39>=BA39,BA39,AZ39-BB39),0) ->  | BD39: =IF(BC39>0,BC39,IF(BC40>0,BC40,0)) ->  | BE39: =IF(AY39>=$AZ$8,AY39,IF($AZ$8>=AY40,AY40,$AZ$8)) ->  | BF39: =IF(AZ39>=$AZ$8,AZ39,IF($AZ$8>=AZ40,AZ40,$AZ$8)) ->  | BH39: H29.8～H30.7 | BI39: 下限 | BJ39: 74100 | BK39: 74100 | BL39: 0 | BM39: =IF($BK$8<=BK39,$BK$8,0) -> 0 | BN39: =IF(BM39>0,IF(BK39-BM39>=BL39,BL39,BK39-BM39),0) -> 0 | BO39: =IF(BN39>0,BN39,IF(BN40>0,BN40,0)) -> 0 | BP39: =IF(BJ39>=$BK$8,BJ39,IF($BK$8>=BJ40,BJ40,$BK$8)) -> 74100 | BQ39: =IF(BK39>=$BK$8,BK39,IF($BK$8>=BK40,BK40,$BK$8)) -> 74100
B40: 60歳～64歳 | I40: =IF(AND(3970<=$B$9,$B$9<7183),ROUNDDOWN(0.8*$B$9-0.35*(($B$9-3950)/(10230-3950)*$B$9),0),IF(AND(7183<=$B$9,$B$9<10230),ROUNDDOWN(0.05*$B$9+4092,0),0)) ->  | J40: =IF(AND(3970<=$B$9,$B$9<7227),ROUNDDOWN(0.8*$B$9-0.35*(($B$9-3970)/(10290-3970)*$B$9),0),IF(AND(7227<=$B$9,$B$9<10230),ROUNDDOWN(0.05*$B$9+4116,0),0)) ->  | L40: =IF(AND(10230<=$B$9,$B$9<10290),ROUNDDOWN($B$9*0.45,0),0) ->  | M40: =IF(AND(10230<=$B$9,$B$9<10290),ROUNDDOWN(0.05*$B$9+4116,0),0) ->  | O40: =IF($B$9>=14540,6543,IF(AND(10290<=$B$9,$B$9<14540),ROUNDDOWN($B$9*0.45,0),0)) ->  | P40: =IF($B$9>=14640,6588,IF(AND(10290<=$B$9,$B$9<14640),ROUNDDOWN($B$9*0.45,0),0)) ->  | AD40: =Y37 -> 0 | AE40: =IF(AD40>=4603,4603,AD40) -> 0 | AF40: =AC37 -> 0 | AG40: =IF(AF40>=4630,4630,AF40) -> 0 | AH40: =AG40-AE40 -> 0 | AN40: 上限 | AO40: 14910 | AP40: 14920 | AQ40: 10 | AR40: =IF(AO40<=$AP$8,$AP$8,0) ->  | AS40: =IF(AR40>0,IF(AR40-AO40>=AQ40,AQ40,AR40-AO40),0) ->  | AX40: 上限 | AY40: 16410 | AZ40: 16420 | BA40: 10 | BB40: =IF(AY40<=$AZ$8,$AZ$8,0) ->  | BC40: =IF(BB40>0,IF(BB40-AY40>=BA40,BA40,BB40-AY40),0) ->  | BI40: 上限 | BJ40: 469500 | BK40: 469800 | BL40: 300 | BM40: =IF(BJ40<=$BK$8,$BK$8,0) -> 0 | BN40: =IF(BM40>0,IF(BM40-BJ40>=BL40,BL40,BM40-BJ40),0) -> 0
A41: H23.8～H24.7 | B41: ～29歳または65歳～ | C41: =IF(AND(0<$B$9,$B$9<2330),1864,IF(AND(2330<=$B$9,$B$9<4650),ROUNDDOWN($B$9*0.8,0),0)) ->  | D41: =IF(AND(0<$B$9,$B$9<2330),1864,IF(AND(2330<=$B$9,$B$9<4650),ROUNDDOWN($B$9*0.8,0),0)) ->  | E41: =D41-C41 ->  | I41: =IF(AND(4650<=$B$9,$B$9<11770),ROUNDDOWN(0.8*$B$9-0.3*(($B$9-4650)/(11770-4650)*$B$9),0),0) ->  | J41: =IF(AND(4650<=$B$9,$B$9<11770),ROUNDDOWN(0.8*$B$9-0.3*(($B$9-4650)/(11780-4650)*$B$9),0),0) ->  | L41: =IF(AND(11770<=$B$9,$B$9<11780),ROUNDDOWN($B$9*0.5,0),0) ->  | M41: =IF(AND(11770<=$B$9,$B$9<11780),ROUNDDOWN(0.8*$B$9-0.3*(($B$9-4650)/(11780-4650)*$B$9),0),0) ->  | N41: =M41-L41 ->  | O41: =IF($B$9>=12910,6455,IF(AND(11780<=$B$9,$B$9<12910),ROUNDDOWN($B$9*0.5,0),0)) ->  | P41: =IF($B$9>=12910,6455,IF(AND(11780<=$B$9,$B$9<12910),ROUNDDOWN($B$9*0.5,0),0)) ->  | R41: =IF(計算表!$B$10=B41,IF($B$9<4650,E41,IF(AND($B$9>=4650,$B$9<11770),K41,IF(AND($B$9>=11770,$B$9<11780),N41,IF($B$9>=11780,Q41)))),0) -> 0 | S41: =IF(計算表!$B$10=B42,IF($B$9<4650,E41,IF(AND($B$9>=4650,$B$9<11770),K41,IF(AND($B$9>=11770,$B$9<11780),N42,IF($B$9>=11780,Q42)))),0) -> 0 | T41: =IF(計算表!$B$10=B43,IF($B$9<4650,E41,IF(AND($B$9>=4650,$B$9<11770),K41,IF(AND($B$9>=11770,$B$9<11780),N43,IF($B$9>=11780,Q43)))),0) -> 0 | U41: =IF(計算表!$B$10=B44,IF($B$9<4650,E41,IF(AND($B$9>=4650,$B$9<10600),K44,IF($B$9>=10600,Q44))),0) -> 0 | V41: =IF(計算表!$B$10=B41,IF($B$9<4650,C41,IF(AND($B$9>=4650,$B$9<11770),I41,IF(AND($B$9>=11770,$B$9<11780),L41,IF($B$9>=11780,O41)))),0) -> 0 | W41: =IF(計算表!$B$10=B42,IF($B$9<4650,C41,IF(AND($B$9>=4650,$B$9<11770),I41,IF(AND($B$9>=11770,$B$9<11780),L41,IF($B$9>=11780,O42)))),0) -> 0 | X41: =IF(計算表!$B$10=B43,IF($B$9<4650,C41,IF(AND($B$9>=4650,$B$9<11770),I41,IF(AND($B$9>=11770,$B$9<11780),L41,IF($B$9>=11780,O43)))),0) -> 0 | Y41: =IF(計算表!$B$10=B44,IF($B$9<4650,C41,IF(AND($B$9>=4650,$B$9<10600),I44,IF($B$9>=10600,O44))),0) -> 0 | Z41: =IF(計算表!$B$10=B41,IF($B$9<4650,D41,IF(AND($B$9>=4650,$B$9<11770),J41,IF(AND($B$9>=11770,$B$9<11780),M41,IF($B$9>=11780,P41)))),0) -> 0 | AA41: =IF(計算表!$B$10=B42,IF($B$9<4650,D41,IF(AND($B$9>=4650,$B$9<11770),J41,IF(AND($B$9>=11770,$B$9<11780),M41,IF($B$9>=11780,P42)))),0) -> 0 | AB41: =IF(計算表!$B$10=B43,IF($B$9<4650,D41,IF(AND($B$9>=4650,$B$9<11770),J41,IF(AND($B$9>=11770,$B$9<11780),M41,IF($B$9>=11780,P43)))),0) -> 0 | AC41: =IF(計算表!$B$10=B44,IF($B$9<4650,D41,IF(AND($B$9>=4650,$B$9<10600),J44,IF($B$9>=10600,P44))),0) -> 0 | AD41: =SUM(V41:X44) -> 0 | AE41: =IF(AD41>=5885,5885,AD41) -> 0 | AF41: =SUM(Z41:AB44) -> 0 | AG41: =IF(AF41>=5890,5890,AF41) -> 0 | AH41: =AG41-AE41 -> 0 | AI41: 1299 | AJ41: 1299 | AK41: =AJ41-AI41 -> 0 | AL41: =総合計算!K19 ->  | AM41: =A69 -> H30.8～H31.7 | AN41: 下限 | AO41: 2480 | AP41: 2480 | AQ41: 0 | AR41: =IF($AP$8<=AP41,$AP$8,0) ->  | AS41: =IF(AR41>0,IF(AP41-AR41>=AQ41,AQ41,AP41-AR41),0) ->  | AT41: =IF(AS41>0,AS41,IF(AS42>0,AS42,0)) ->  | AU41: =IF(AO41>=$AP$8,AO41,IF($AP$8>=AO42,AO42,$AP$8)) ->  | AV41: =IF(AP41>=$AP$8,AP41,IF($AP$8>=AP42,AP42,$AP$8)) ->  | AW41: H30.8～H31.7 | AX41: 下限 | AY41: 2480 | AZ41: 2480 | BA41: 0 | BB41: =IF($AZ$8<=AZ41,$AZ$8,0) ->  | BC41: =IF(BB41>0,IF(AZ41-BB41>=BA41,BA41,AZ41-BB41),0) ->  | BD41: =IF(BC41>0,BC41,IF(BC42>0,BC42,0)) ->  | BE41: =IF(AY41>=$AZ$8,AY41,IF($AZ$8>=AY42,AY42,$AZ$8)) ->  | BF41: =IF(AZ41>=$AZ$8,AZ41,IF($AZ$8>=AZ42,AZ42,$AZ$8)) ->  | BH41: H30.8～H31.7 | BI41: 下限 | BJ41: 74400 | BK41: 74400 | BL41: 0 | BM41: =IF($BK$8<=BK41,$BK$8,0) -> 0 | BN41: =IF(BM41>0,IF(BK41-BM41>=BL41,BL41,BK41-BM41),0) -> 0 | BO41: =IF(BN41>0,BN41,IF(BN42>0,BN42,0)) -> 0 | BP41: =IF(BJ41>=$BK$8,BJ41,IF($BK$8>=BJ42,BJ42,$BK$8)) -> 74400 | BQ41: =IF(BK41>=$BK$8,BK41,IF($BK$8>=BK42,BK42,$BK$8)) -> 74400
B42: 30歳～44歳 | N42: =M41-L41 ->  | O42: =IF($B$9>=14340,7170,IF(AND(11780<=$B$9,$B$9<14340),ROUNDDOWN($B$9*0.5,0),0)) ->  | P42: =IF($B$9>=14340,7170,IF(AND(11780<=$B$9,$B$9<14340),ROUNDDOWN($B$9*0.5,0),0)) ->  | AN42: 上限 | AO42: 14990 | AP42: 15010 | AQ42: 20 | AR42: =IF(AO42<=$AP$8,$AP$8,0) ->  | AS42: =IF(AR42>0,IF(AR42-AO42>=AQ42,AQ42,AR42-AO42),0) ->  | AX42: 上限 | AY42: 16500 | AZ42: 16520 | BA42: 20 | BB42: =IF(AY42<=$AZ$8,$AZ$8,0) ->  | BC42: =IF(BB42>0,IF(BB42-AY42>=BA42,BA42,BB42-AY42),0) ->  | BI42: 上限 | BJ42: 472200 | BK42: 472500 | BL42: 300 | BM42: =IF(BJ42<=$BK$8,$BK$8,0) -> 0 | BN42: =IF(BM42>0,IF(BM42-BJ42>=BL42,BL42,BM42-BJ42),0) -> 0
B43: 45歳～59歳 | N43: =M41-L41 ->  | O43: =IF($B$9>=15780,7890,IF(AND(11780<=$B$9,$B$9<15780),ROUNDDOWN($B$9*0.5,0),0)) ->  | P43: =IF($B$9>=15780,7890,IF(AND(11780<=$B$9,$B$9<15780),ROUNDDOWN($B$9*0.5,0),0)) -> 
B44: 60歳～64歳 | I44: =IF(AND(4650<=$B$9,$B$9<6804),ROUNDDOWN(0.8*$B$9-0.35*(($B$9-4650)/(10600-4650)*$B$9),0),IF(AND(6804<=$B$9,$B$9<10600),ROUNDDOWN(0.05*$B$9+4240,0),0)) ->  | J44: =IF(AND(4650<=$B$9,$B$9<6804),ROUNDDOWN(0.8*$B$9-0.35*(($B$9-4650)/(10600-4650)*$B$9),0),IF(AND(6804<=$B$9,$B$9<10600),ROUNDDOWN(0.05*$B$9+4240,0),0)) ->  | O44: =IF($B$9>=15060,6777,IF(AND(10600<=$B$9,$B$9<15060),ROUNDDOWN($B$9*0.45,0),0)) ->  | P44: =IF($B$9>=15070,6781,IF(AND(10600<=$B$9,$B$9<15070),ROUNDDOWN($B$9*0.45,0),0)) ->  | AD44: =Y41 -> 0 | AE44: =IF(AD44>=4770,4770,AD44) -> 0 | AF44: =AC41 -> 0 | AG44: =IF(AF44>=4770,4770,AF44) -> 0 | AH44: =AG44-AE44 -> 0 | BH44: ○高齢継続 | BK44: =IF(計算表!B4=総合計算!A8,計算表!B12,0) -> 0 | BL44: 支給月額上下限
A45: H24.8～H25.7 | B45: ～29歳または65歳～ | C45: =IF(AND(0<$B$9,$B$9<2320),1856,IF(AND(2320<=$B$9,$B$9<4640),ROUNDDOWN($B$9*0.8,0),0)) ->  | D45: =IF(AND(0<$B$9,$B$9<2320),1856,IF(AND(2320<=$B$9,$B$9<4640),ROUNDDOWN($B$9*0.8,0),0)) ->  | E45: =D45-C45 ->  | I45: =IF(AND(4640<=$B$9,$B$9<11740),ROUNDDOWN(0.8*$B$9-0.3*(($B$9-4640)/(11740-4640)*$B$9),0),0) ->  | J45: =IF(AND(4640<=$B$9,$B$9<11740),ROUNDDOWN(0.8*$B$9-0.3*(($B$9-4640)/(11750-4640)*$B$9),0),0) ->  | L45: =IF(AND(11740<=$B$9,$B$9<11750),ROUNDDOWN($B$9*0.5,0),0) ->  | M45: =IF(AND(11740<=$B$9,$B$9<11750),ROUNDDOWN(0.8*$B$9-0.3*(($B$9-4640)/(11750-4640)*$B$9),0),0) ->  | N45: =M45-L45 ->  | O45: =IF($B$9>=12880,6440,IF(AND(11750<=$B$9,$B$9<12880),ROUNDDOWN($B$9*0.5,0),0)) ->  | P45: =IF($B$9>=12880,6440,IF(AND(11750<=$B$9,$B$9<12880),ROUNDDOWN($B$9*0.5,0),0)) ->  | R45: =IF(計算表!$B$10=B45,IF($B$9<4640,E45,IF(AND($B$9>=4640,$B$9<11740),K45,IF(AND($B$9>=11740,$B$9<11750),N45,IF($B$9>=11750,Q45)))),0) -> 0 | S45: =IF(計算表!$B$10=B46,IF($B$9<4640,E45,IF(AND($B$9>=4640,$B$9<11740),K45,IF(AND($B$9>=11740,$B$9<11750),N46,IF($B$9>=11750,Q46)))),0) -> 0 | T45: =IF(計算表!$B$10=B47,IF($B$9<4640,E45,IF(AND($B$9>=4640,$B$9<11740),K45,IF(AND($B$9>=11740,$B$9<11750),N47,IF($B$9>=11750,Q47)))),0) -> 0 | U45: =IF(計算表!$B$10=B48,IF($B$9<4640,E45,IF(AND($B$9>=4640,$B$9<10570),K48,IF($B$9>=10570,Q48))),0) -> 0 | V45: =IF(計算表!$B$10=B45,IF($B$9<4640,C45,IF(AND($B$9>=4640,$B$9<11740),I45,IF(AND($B$9>=11740,$B$9<11750),L45,IF($B$9>=11750,O45)))),0) -> 0 | W45: =IF(計算表!$B$10=B46,IF($B$9<4640,C45,IF(AND($B$9>=4640,$B$9<11740),I45,IF(AND($B$9>=11740,$B$9<11750),L45,IF($B$9>=11750,O46)))),0) -> 0 | X45: =IF(計算表!$B$10=B47,IF($B$9<4640,C45,IF(AND($B$9>=4640,$B$9<11740),I45,IF(AND($B$9>=11740,$B$9<11750),L45,IF($B$9>=11750,O47)))),0) -> 0 | Y45: =IF(計算表!$B$10=B48,IF($B$9<4640,C45,IF(AND($B$9>=4640,$B$9<10570),I48,IF($B$9>=10570,O48))),0) -> 0 | Z45: =IF(計算表!$B$10=B45,IF($B$9<4640,D45,IF(AND($B$9>=4640,$B$9<11740),J45,IF(AND($B$9>=11740,$B$9<11750),M45,IF($B$9>=11750,P45)))),0) -> 0 | AA45: =IF(計算表!$B$10=B46,IF($B$9<4640,D45,IF(AND($B$9>=4640,$B$9<11740),J45,IF(AND($B$9>=11740,$B$9<11750),M45,IF($B$9>=11750,P46)))),0) -> 0 | AB45: =IF(計算表!$B$10=B47,IF($B$9<4640,D45,IF(AND($B$9>=4640,$B$9<11740),J45,IF(AND($B$9>=11740,$B$9<11750),M45,IF($B$9>=11750,P47)))),0) -> 0 | AC45: =IF(計算表!$B$10=B48,IF($B$9<4640,D45,IF(AND($B$9>=4640,$B$9<10570),J48,IF($B$9>=10570,P48))),0) -> 0 | AD45: =SUM(V45:X48) -> 0 | AE45: =IF(AD45>=5870,5870,AD45) -> 0 | AF45: =SUM(Z45:AB48) -> 0 | AG45: =IF(AF45>=5875,5875,AF45) -> 0 | AH45: =AG45-AE45 -> 0 | AI45: 1296 | AJ45: 1296 | AK45: =AJ45-AI45 -> 0 | AM45: ○高齢継続 期間仕訳表 | AO45: 初日→ | AP45: =総合計算!H22&総合計算!I23 ->  | AV45: ○高齢継続支給率計算（総合BDの計算）
B46: 30歳～44歳 | N46: =M45-L45 ->  | O46: =IF($B$9>=14310,7155,IF(AND(11750<=$B$9,$B$9<14310),ROUNDDOWN($B$9*0.5,0),0)) ->  | P46: =IF($B$9>=14310,7155,IF(AND(11750<=$B$9,$B$9<14310),ROUNDDOWN($B$9*0.5,0),0)) ->  | AM46: 支給月数計 | AN46: 計 | AO46: 給付日数 仕訳 | AV46: 旧支給率 | AW46: 新支給率 | BH46: 期間 | BI46: 区分 | BJ46: 旧 | BK46: 新 | BL46: 差 | BM46: 入力額 | BN46: 旧との差額 | BO46: 差額（BDへ） | BP46: 月額（旧） | BQ46: 月額（新）
B47: 45歳～59歳 | N47: =M45-L45 ->  | O47: =IF($B$9>=15740,7870,IF(AND(11750<=$B$9,$B$9<15740),ROUNDDOWN($B$9*0.5,0),0)) ->  | P47: =IF($B$9>=15740,7870,IF(AND(11750<=$B$9,$B$9<15740),ROUNDDOWN($B$9*0.5,0),0)) ->  | AO47: =計算表!B14 -> 0 | AP47: =MAX(AO47-AO63,0) ->  | AQ47: =MAX(AP47-AP63,0) ->  | AR47: =MAX(AQ47-AQ63,0) ->  | AV47: =ROUND((-183*総合計算!K46+13725)/280*100/総合計算!K46,2) -> 1770.52 | AW47: =ROUND((-183*総合計算!N46+13725)/280*100/総合計算!N46,2) -> 1770.52
B48: 60歳～64歳 | I48: =IF(AND(4640<=$B$9,$B$9<6778),ROUNDDOWN(0.8*$B$9-0.35*(($B$9-4640)/(10570-4640)*$B$9),0),IF(AND(6778<=$B$9,$B$9<10570),ROUNDDOWN(0.05*$B$9+4228,0),0)) ->  | J48: =IF(AND(4640<=$B$9,$B$9<6778),ROUNDDOWN(0.8*$B$9-0.35*(($B$9-4640)/(10570-4640)*$B$9),0),IF(AND(6778<=$B$9,$B$9<10570),ROUNDDOWN(0.05*$B$9+4228,0),0)) ->  | O48: =IF($B$9>=15020,6759,IF(AND(10570<=$B$9,$B$9<15020),ROUNDDOWN($B$9*0.45,0),0)) ->  | P48: =IF($B$9>=15030,6763,IF(AND(10570<=$B$9,$B$9<15030),ROUNDDOWN($B$9*0.45,0),0)) ->  | AD48: =Y45 -> 0 | AE48: =IF(AD48>=4756,4756,AD48) -> 0 | AF48: =AC45 -> 0 | AG48: =IF(AF48>=4756,4756,AF48) -> 0 | AH48: =AG48-AE48 -> 0 | AM48: H16 | AN48: =SUM(AO48:AT48) ->  | AO48: =IF(AND("1608"<=AP45,AP45<="1707",計算表!B14<=12),計算表!B14,IF($AP$45="1608",12,IF($AP$45="1609",11,IF($AP$45="1610",10,IF($AP$45="1611",9,IF($AP$45="1612",8,IF($AP$45="1701",7,IF($AP$45="1702",6,IF($AP$45="1703",5,IF($AP$45="1704",4,IF($AP$45="1705",3,IF($AP$45="1706",2,IF($AP$45="1707",1,0))))))))))))) ->  | AV48: =ROUND((-183*総合計算!K47+13725)/280*100/総合計算!K47,2) -> 1770.52 | AW48: =ROUND((-183*総合計算!N47+13725)/280*100/総合計算!N47,2) -> 1770.52 | BH48: H16.8～H17.7 | BI48: 下限 | BJ48: 1688 | BK48: 1688 | BL48: =BK48-BJ48 -> 0 | BM48: =IF($BK$44<=BK48,$BK$44,0) -> 0 | BN48: =IF(BM48>0,IF(BK48-BM48>=BL48,BL48,BK48-BM48),0) -> 0 | BO48: =IF(BN48>0,BN48,IF(BN49>0,BN49,0)) -> 0 | BP48: =IF(BJ48>=$BK$44,BJ48,IF($BK$44>=BJ49,BJ49,$BK$44)) -> 1688 | BQ48: =IF(BK48>=$BK$44,BK48,IF($BK$44>=BK49,BK49,$BK$44)) -> 1688
A49: H25.8～H26.7 | B49: ～29歳または65歳～ | C49: =IF(AND(0<$B$9,$B$9<2310),1848,IF(AND(2310<=$B$9,$B$9<4610),ROUNDDOWN($B$9*0.8,0),0)) ->  | D49: =IF(AND(0<$B$9,$B$9<2310),1848,IF(AND(2310<=$B$9,$B$9<4610),ROUNDDOWN($B$9*0.8,0),0)) ->  | E49: =D49-C49 ->  | I49: =IF(AND(4610<=$B$9,$B$9<11680),ROUNDDOWN(0.8*$B$9-0.3*(($B$9-4610)/(11680-4610)*$B$9),0),0) ->  | J49: =IF(AND(4610<=$B$9,$B$9<11680),ROUNDDOWN(0.8*$B$9-0.3*(($B$9-4610)/(11690-4610)*$B$9),0),0) ->  | L49: =IF(AND(11680<=$B$9,$B$9<11690),ROUNDDOWN($B$9*0.5,0),0) ->  | M49: =IF(AND(11680<=$B$9,$B$9<11690),ROUNDDOWN(0.8*$B$9-0.3*(($B$9-4610)/(11690-4610)*$B$9),0),0) ->  | N49: =M49-L49 ->  | O49: =IF($B$9>=12810,6405,IF(AND(11690<=$B$9,$B$9<12810),ROUNDDOWN($B$9*0.5,0),0)) ->  | P49: =IF($B$9>=12810,6405,IF(AND(11690<=$B$9,$B$9<12810),ROUNDDOWN($B$9*0.5,0),0)) ->  | R49: =IF(計算表!$B$10=B49,IF($B$9<4610,E49,IF(AND($B$9>=4610,$B$9<11680),K49,IF(AND($B$9>=11680,$B$9<11690),N49,IF($B$9>=11690,Q49)))),0) -> 0 | S49: =IF(計算表!$B$10=B50,IF($B$9<4610,E49,IF(AND($B$9>=4610,$B$9<11680),K49,IF(AND($B$9>=11680,$B$9<11690),N50,IF($B$9>=11690,Q50)))),0) -> 0 | T49: =IF(計算表!$B$10=B51,IF($B$9<4610,E49,IF(AND($B$9>=4610,$B$9<11680),K49,IF(AND($B$9>=11680,$B$9<11690),N51,IF($B$9>=11690,Q51)))),0) -> 0 | U49: =IF(計算表!$B$10=B52,IF($B$9<4610,E49,IF(AND($B$9>=4610,$B$9<10510),K52,IF($B$9>=10510,Q52))),0) -> 0 | V49: =IF(計算表!$B$10=B49,IF($B$9<4610,C49,IF(AND($B$9>=4610,$B$9<11680),I49,IF(AND($B$9>=11680,$B$9<11690),L49,IF($B$9>=11690,O49)))),0) -> 0 | W49: =IF(計算表!$B$10=B50,IF($B$9<4610,C49,IF(AND($B$9>=4610,$B$9<11680),I49,IF(AND($B$9>=11680,$B$9<11690),L49,IF($B$9>=11690,O50)))),0) -> 0 | X49: =IF(計算表!$B$10=B51,IF($B$9<4610,C49,IF(AND($B$9>=4610,$B$9<11680),I49,IF(AND($B$9>=11680,$B$9<11690),L49,IF($B$9>=11690,O51)))),0) -> 0 | Y49: =IF(計算表!$B$10=B52,IF($B$9<4610,C49,IF(AND($B$9>=4610,$B$9<10510),I52,IF($B$9>=10510,O52))),0) -> 0 | Z49: =IF(計算表!$B$10=B49,IF($B$9<4610,D49,IF(AND($B$9>=4610,$B$9<11680),J49,IF(AND($B$9>=11680,$B$9<11690),M49,IF($B$9>=11690,P49)))),0) -> 0 | AA49: =IF(計算表!$B$10=B50,IF($B$9<4610,D49,IF(AND($B$9>=4610,$B$9<11680),J49,IF(AND($B$9>=11680,$B$9<11690),M49,IF($B$9>=11690,P50)))),0) -> 0 | AB49: =IF(計算表!$B$10=B51,IF($B$9<4610,D49,IF(AND($B$9>=4610,$B$9<11680),J49,IF(AND($B$9>=11680,$B$9<11690),M49,IF($B$9>=11690,P51)))),0) -> 0 | AC49: =IF(計算表!$B$10=B52,IF($B$9<4610,D49,IF(AND($B$9>=4610,$B$9<10510),J52,IF($B$9>=10510,P52))),0) -> 0 | AD49: =SUM(V49:X52) -> 0 | AE49: =IF(AD49>=5840,5840,AD49) -> 0 | AF49: =SUM(Z49:AB52) -> 0 | AG49: =IF(AF49>=5845,5845,AF49) -> 0 | AH49: =AG49-AE49 -> 0 | AI49: 1289 | AJ49: 1289 | AK49: =AJ49-AI49 -> 0 | AM49: H17 | AN49: =SUM(AO49:AT49) ->  | AO49: =IF(AND("1708"<=AP45,AP45<="1807",計算表!B14<=12),計算表!B14,IF($AP$45="1708",12,IF($AP$45="1709",11,IF($AP$45="1710",10,IF($AP$45="1711",9,IF($AP$45="1712",8,IF($AP$45="1801",7,IF($AP$45="1802",6,IF($AP$45="1803",5,IF($AP$45="1804",4,IF($AP$45="1805",3,IF($AP$45="1806",2,IF($AP$45="1807",1,0))))))))))))) ->  | AP49: =IF(AO48>0,IF($AO$47-AO48>=12,12,MAX($AO$47-AO48,0)),0) ->  | AV49: =ROUND((-183*総合計算!K48+13725)/280*100/総合計算!K48,2) -> 1770.52 | AW49: =ROUND((-183*総合計算!N48+13725)/280*100/総合計算!N48,2) -> 1770.52 | BI49: 上限 | BJ49: 346224 | BK49: 346760 | BL49: =BK49-BJ49 -> 536 | BM49: =IF(BJ49<=$BK$44,$BK$44,0) -> 0 | BN49: =IF(BM49>0,IF(BM49-BJ49>=BL49,BL49,BM49-BJ49),0) -> 0
B50: 30歳～44歳 | N50: =M49-L49 ->  | O50: =IF($B$9>=14230,7115,IF(AND(11690<=$B$9,$B$9<14230),ROUNDDOWN($B$9*0.5,0),0)) ->  | P50: =IF($B$9>=14230,7115,IF(AND(11690<=$B$9,$B$9<14230),ROUNDDOWN($B$9*0.5,0),0)) ->  | AM50: H18 | AO50: =IF(AND("1808"<=AP45,AP45<="1907",計算表!B14<=12),計算表!B14,IF($AP$45="1808",12,IF($AP$45="1809",11,IF($AP$45="1810",10,IF($AP$45="1811",9,IF($AP$45="1812",8,IF($AP$45="1901",7,IF($AP$45="1902",6,IF($AP$45="1903",5,IF($AP$45="1904",4,IF($AP$45="1905",3,IF($AP$45="1906",2,IF($AP$45="1907",1,0))))))))))))) ->  | AP50: =IF(AO49>0,IF($AO$47-AO49>=12,12,MAX($AO$47-AO49,0)),0) ->  | AQ50: =IF(AP49>0,IF($AP$47-AP49>=12,12,MAX($AP$47-AP49,0)),0) ->  | AV50: =ROUND((-183*総合計算!K49+13725)/280*100/総合計算!K49,2) -> 1770.52 | AW50: =ROUND((-183*総合計算!N49+13725)/280*100/総合計算!N49,2) -> 1770.52 | BH50: H17.8～H18.7 | BI50: 下限 | BJ50: 1656 | BK50: 1664 | BL50: 8 | BM50: =IF($BK$44<=BK50,$BK$44,0) -> 0 | BN50: =IF(BM50>0,IF(BK50-BM50>=BL50,BL50,BK50-BM50),0) -> 0 | BO50: =IF(BN50>0,BN50,IF(BN51>0,BN51,0)) -> 0 | BP50: =IF(BJ50>=$BK$44,BJ50,IF($BK$44>=BJ51,BJ51,$BK$44)) -> 1656 | BQ50: =IF(BK50>=$BK$44,BK50,IF($BK$44>=BK51,BK51,$BK$44)) -> 1664
B51: 45歳～59歳 | N51: =M49-L49 ->  | O51: =IF($B$9>=15660,7825,IF(AND(11690<=$B$9,$B$9<15660),ROUNDDOWN($B$9*0.5,0),0)) ->  | P51: =IF($B$9>=15660,7825,IF(AND(11690<=$B$9,$B$9<15660),ROUNDDOWN($B$9*0.5,0),0)) ->  | AM51: H19 | AO51: =IF(AND("1908"<=AP45,AP45<="2007",計算表!B14<=12),計算表!B14,IF($AP$45="1908",12,IF($AP$45="1909",11,IF($AP$45="1910",10,IF($AP$45="1911",9,IF($AP$45="1912",8,IF($AP$45="2001",7,IF($AP$45="2002",6,IF($AP$45="2003",5,IF($AP$45="2004",4,IF($AP$45="2005",3,IF($AP$45="2006",2,IF($AP$45="2007",1,0))))))))))))) ->  | AQ51: =IF(AP50>0,IF($AP$47-AP50>=12,12,MAX($AP$47-AP50,0)),0) ->  | AR51: =IF(AQ50>0,IF($AQ$47-AQ50>=12,12,MAX($AQ$47-AQ50,0)),0) ->  | AV51: =ROUND((-183*総合計算!K50+13725)/280*100/総合計算!K50,2) -> 1770.52 | AW51: =ROUND((-183*総合計算!N50+13725)/280*100/総合計算!N50,2) -> 1770.52 | BI51: 上限 | BJ51: 339484 | BK51: 341586 | BL51: 2102 | BM51: =IF(BJ51<=$BK$44,$BK$44,0) -> 0 | BN51: =IF(BM51>0,IF(BM51-BJ51>=BL51,BL51,BM51-BJ51),0) -> 0
B52: 60歳～64歳 | I52: =IF(AND(4610<=$B$9,$B$9<6746),ROUNDDOWN(0.8*$B$9-0.35*(($B$9-4610)/(10510-4610)*$B$9),0),IF(AND(6746<=$B$9,$B$9<10510),ROUNDDOWN(0.05*$B$9+4204,0),0)) ->  | J52: =IF(AND(4610<=$B$9,$B$9<6746),ROUNDDOWN(0.8*$B$9-0.35*(($B$9-4610)/(10510-4610)*$B$9),0),IF(AND(6746<=$B$9,$B$9<10510),ROUNDDOWN(0.05*$B$9+4204,0),0)) ->  | O52: =IF($B$9>=14940,6723,IF(AND(10510<=$B$9,$B$9<14940),ROUNDDOWN($B$9*0.45,0),0)) ->  | P52: =IF($B$9>=14950,6727,IF(AND(10510<=$B$9,$B$9<14950),ROUNDDOWN($B$9*0.45,0),0)) ->  | AD52: =Y49 -> 0 | AE52: =IF(AD52>=4729,4729,AD52) -> 0 | AF52: =AC49 -> 0 | AG52: =IF(AF52>=4729,4729,AF52) -> 0 | AH52: =AG52-AE52 -> 0 | AM52: H20 | AO52: =IF(AND("2008"<=AP45,AP45<="2107",計算表!B14<=12),計算表!B14,IF($AP$45="2008",12,IF($AP$45="2009",11,IF($AP$45="2010",10,IF($AP$45="2011",9,IF($AP$45="2012",8,IF($AP$45="2101",7,IF($AP$45="2102",6,IF($AP$45="2103",5,IF($AP$45="2104",4,IF($AP$45="2105",3,IF($AP$45="2106",2,IF($AP$45="2107",1,0))))))))))))) ->  | AP52: =IF(AO51>0,IF($AO$47-AO51>=12,12,MAX($AO$47-AO51,0)),0) ->  | AQ52: =IF(AP51>0,IF($AP$47-AP51>=12,12,MAX($AP$47-AP51,0)),0) ->  | AR52: =IF(AQ51>0,IF($AQ$47-AQ51>=12,12,MAX($AQ$47-AQ51,0)),0) ->  | AS52: =IF(AR51>0,IF($AR$47-AR51>=12,12,MAX($AR$47-AR51,0)),0) ->  | AV52: =ROUND((-183*総合計算!K51+13725)/280*100/総合計算!K51,2) -> 1770.52 | AW52: =ROUND((-183*総合計算!N51+13725)/280*100/総合計算!N51,2) -> 1770.52 | BH52: H18.8～H19.7 | BI52: 下限 | BJ52: 1664 | BK52: 1672 | BL52: 8 | BM52: =IF($BK$44<=BK52,$BK$44,0) -> 0 | BN52: =IF(BM52>0,IF(BK52-BM52>=BL52,BL52,BK52-BM52),0) -> 0 | BO52: =IF(BN52>0,BN52,IF(BN53>0,BN53,0)) -> 0 | BP52: =IF(BJ52>=$BK$44,BJ52,IF($BK$44>=BJ53,BJ53,$BK$44)) -> 1664 | BQ52: 1672
A53: H26.8～H27.7 | B53: ～29歳または65歳～ | C53: =IF(AND(0<$B$9,$B$9<2300),1840,IF(AND(2300<=$B$9,$B$9<4600),ROUNDDOWN($B$9*0.8,0),0)) ->  | D53: =IF(AND(0<$B$9,$B$9<2310),1848,IF(AND(2310<=$B$9,$B$9<4600),ROUNDDOWN($B$9*0.8,0),0)) ->  | E53: =D53-C53 ->  | F53: =IF(AND(4600<=$B$9,$B$9<4610),ROUNDDOWN(0.8*$B$9-0.3*(($B$9-4600)/(11650-4600)*$B$9),0),0) ->  | G53: =IF(AND(4600<=$B$9,$B$9<4610),ROUNDDOWN($B$9*0.8,0),0) ->  | H53: =G53-F53 ->  | I53: =IF(AND(4610<=$B$9,$B$9<11650),ROUNDDOWN(0.8*$B$9-0.3*(($B$9-4600)/(11650-4600)*$B$9),0),0) ->  | J53: =IF(AND(4610<=$B$9,$B$9<11650),ROUNDDOWN(0.8*$B$9-0.3*(($B$9-4610)/(11690-4610)*$B$9),0),0) ->  | L53: =IF(AND(11650<=$B$9,$B$9<11690),ROUNDDOWN($B$9*0.5,0),0) ->  | M53: =IF(AND(11650<=$B$9,$B$9<11690),ROUNDDOWN(0.8*$B$9-0.3*(($B$9-4610)/(11690-4610)*$B$9),0),0) ->  | N53: =M53-L53 ->  | O53: =IF($B$9>=12780,6390,IF(AND(11690<=$B$9,$B$9<12780),ROUNDDOWN($B$9*0.5,0),0)) ->  | P53: =IF($B$9>=12810,6405,IF(AND(11690<=$B$9,$B$9<12810),ROUNDDOWN($B$9*0.5,0),0)) ->  | R53: =IF(計算表!$B$10=B53,IF($B$9<4600,E53,IF(AND($B$9>=4600,$B$9<4610),H53,IF(AND($B$9>=4610,$B$9<11650),K53,IF(AND($B$9>=11650,$B$9<11690),N53,IF($B$9>=11690,Q53))))),0) -> 0 | S53: =IF(計算表!$B$10=B54,IF($B$9<4600,E53,IF(AND($B$9>=4600,$B$9<4610),H53,IF(AND($B$9>=4610,$B$9<11650),K53,IF(AND($B$9>=11650,$B$9<11690),N54,IF($B$9>=11690,Q54))))),0) -> 0 | T53: =IF(計算表!$B$10=B55,IF($B$9<4600,E53,IF(AND($B$9>=4600,$B$9<4610),H53,IF(AND($B$9>=4610,$B$9<11650),K53,IF(AND($B$9>=11650,$B$9<11690),N55,IF($B$9>=11690,Q55))))),0) -> 0 | U53: =IF(計算表!$B$10=B56,IF($B$9<4600,E53,IF(AND($B$9>=4600,$B$9<4610),H53,IF(AND($B$9>=4610,$B$9<10490),K56,IF(AND($B$9>=10490,$B$9<10510),N56,IF($B$9>=10510,Q56))))),0) -> 0 | V53: =IF(計算表!$B$10=B53,IF($B$9<4600,C53,IF(AND($B$9>=4600,$B$9<4610),F53,IF(AND($B$9>=4610,$B$9<11650),I53,IF(AND($B$9>=11650,$B$9<11690),L53,IF($B$9>=11690,O53))))),0) -> 0 | W53: =IF(計算表!$B$10=B54,IF($B$9<4600,C53,IF(AND($B$9>=4600,$B$9<4610),F53,IF(AND($B$9>=4610,$B$9<11650),I53,IF(AND($B$9>=11650,$B$9<11690),L53,IF($B$9>=11690,O54))))),0) -> 0 | X53: =IF(計算表!$B$10=B55,IF($B$9<4600,C53,IF(AND($B$9>=4600,$B$9<4610),F53,IF(AND($B$9>=4610,$B$9<11650),I53,IF(AND($B$9>=11650,$B$9<11690),L53,IF($B$9>=11690,O55))))),0) -> 0 | Y53: =IF(計算表!$B$10=B56,IF($B$9<4600,C53,IF(AND($B$9>=4600,$B$9<4610),F53,IF(AND($B$9>=4610,$B$9<10490),I56,IF(AND($B$9>=10490,$B$9<10510),L56,IF($B$9>=10510,O56))))),0) -> 0 | Z53: =IF(計算表!$B$10=B53,IF($B$9<4600,D53,IF(AND($B$9>=4600,$B$9<4610),G53,IF(AND($B$9>=4610,$B$9<11650),J53,IF(AND($B$9>=11650,$B$9<11690),M53,IF($B$9>=11690,P53))))),0) -> 0 | AA53: =IF(計算表!$B$10=B54,IF($B$9<4600,D53,IF(AND($B$9>=4600,$B$9<4610),G53,IF(AND($B$9>=4610,$B$9<11650),J53,IF(AND($B$9>=11650,$B$9<11690),M53,IF($B$9>=11690,P54))))),0) -> 0 | AB53: =IF(計算表!$B$10=B55,IF($B$9<4600,D53,IF(AND($B$9>=4600,$B$9<4610),G53,IF(AND($B$9>=4610,$B$9<11650),J53,IF(AND($B$9>=11650,$B$9<11690),M53,IF($B$9>=11690,P55))))),0) -> 0 | AC53: =IF(計算表!$B$10=B56,IF($B$9<4600,D53,IF(AND($B$9>=4600,$B$9<4610),G53,IF(AND($B$9>=4610,$B$9<10490),J56,IF(AND($B$9>=10490,$B$9<10510),M56,IF($B$9>=10510,P56))))),0) -> 0 | AD53: =SUM(V53:X56) -> 0 | AE53: =IF(AD53>=5825,5825,AD53) -> 0 | AF53: =SUM(Z53:AB56) -> 0 | AG53: =IF(AF53>=5845,5845,AF53) -> 0 | AH53: =AG53-AE53 -> 0 | AI53: 1286 | AJ53: 1289 | AK53: =AJ53-AI53 -> 3 | AM53: H21 | AO53: =IF(AND("2108"<=AP45,AP45<="2207",計算表!B14<=12),計算表!B14,IF($AP$45="2108",12,IF($AP$45="2109",11,IF($AP$45="2110",10,IF($AP$45="2111",9,IF($AP$45="2112",8,IF($AP$45="2201",7,IF($AP$45="2202",6,IF($AP$45="2203",5,IF($AP$45="2204",4,IF($AP$45="2205",3,IF($AP$45="2206",2,IF($AP$45="2207",1,0))))))))))))) ->  | AQ53: =IF(AP52>0,IF($AP$47-AP52>=12,12,MAX($AP$47-AP52,0)),0) ->  | AS53: =IF(AR52>0,IF($AR$47-AR52>=12,12,MAX($AR$47-AR52,0)),0) ->  | AT53: =IF(AS52>0,IF($AS$47-AS52>=12,12,MAX($AS$47-AS52,0)),0) ->  | AV53: =ROUND((-183*総合計算!K52+13725)/280*100/総合計算!K52,2) -> 1770.52 | AW53: =ROUND((-183*総合計算!N52+13725)/280*100/総合計算!N52,2) -> 1770.52 | BI53: 上限 | BJ53: 340733 | BK53: 342868 | BL53: 2135 | BM53: =IF(BJ53<=$BK$44,$BK$44,0) -> 0 | BN53: =IF(BM53>0,IF(BM53-BJ53>=BL53,BL53,BM53-BJ53),0) -> 0
B54: 30歳～44歳 | N54: =M53-L53 ->  | O54: =IF($B$9>=14200,7100,IF(AND(11690<=$B$9,$B$9<14200),ROUNDDOWN($B$9*0.5,0),0)) ->  | P54: =IF($B$9>=14220,7110,IF(AND(11690<=$B$9,$B$9<14220),ROUNDDOWN($B$9*0.5,0),0)) ->  | AM54: H22 | AO54: =IF(AND("2208"<=AP45,AP45<="2307",計算表!B14<=12),計算表!B14,IF($AP$45="2208",12,IF($AP$45="2209",11,IF($AP$45="2210",10,IF($AP$45="2211",9,IF($AP$45="2212",8,IF($AP$45="2301",7,IF($AP$45="2302",6,IF($AP$45="2303",5,IF($AP$45="2304",4,IF($AP$45="2305",3,IF($AP$45="2306",2,IF($AP$45="2307",1,0))))))))))))) ->  | AR54: =IF(AQ53>0,IF($AQ$47-AQ53>=12,12,MAX($AQ$47-AQ53,0)),0) ->  | AT54: =IF(AS53>0,IF($AS$47-AS53>=12,12,MAX($AS$47-AS53,0)),0) ->  | AV54: =ROUND((-183*総合計算!K53+13725)/280*100/総合計算!K53,2) -> 1770.52 | AW54: =ROUND((-183*総合計算!N53+13725)/280*100/総合計算!N53,2) -> 1770.52 | BH54: H19.8～H20.7 | BI54: 下限 | BJ54: 1656 | BK54: 1664 | BL54: 8 | BM54: =IF($BK$44<=BK54,$BK$44,0) -> 0 | BN54: =IF(BM54>0,IF(BK54-BM54>=BL54,BL54,BK54-BM54),0) -> 0 | BO54: =IF(BN54>0,BN54,IF(BN55>0,BN55,0)) -> 0 | BP54: =IF(BJ54>=$BK$44,BJ54,IF($BK$44>=BJ55,BJ55,$BK$44)) -> 1656 | BQ54: 1664
B55: 45歳～59歳 | N55: =M53-L53 ->  | O55: =IF($B$9>=15610,7805,IF(AND(11690<=$B$9,$B$9<15610),ROUNDDOWN($B$9*0.5,0),0)) ->  | P55: =IF($B$9>=15640,7820,IF(AND(11690<=$B$9,$B$9<15640),ROUNDDOWN($B$9*0.5,0),0)) ->  | AM55: H23 | AO55: =IF(AND("2308"<=AP45,AP45<="2407",計算表!B14<=12),計算表!B14,IF($AP$45="2308",12,IF($AP$45="2309",11,IF($AP$45="2310",10,IF($AP$45="2311",9,IF($AP$45="2312",8,IF($AP$45="2401",7,IF($AP$45="2402",6,IF($AP$45="2403",5,IF($AP$45="2404",4,IF($AP$45="2405",3,IF($AP$45="2406",2,IF($AP$45="2407",1,0))))))))))))) ->  | AS55: =IF(AR54>0,IF($AR$47-AR54>=12,12,MAX($AR$47-AR54,0)),0) ->  | AV55: =ROUND((-183*総合計算!K54+13725)/280*100/総合計算!K54,2) -> 1770.52 | AW55: =ROUND((-183*総合計算!N54+13725)/280*100/総合計算!N54,2) -> 1770.52 | BI55: 上限 | BJ55: 339235 | BK55: 341328 | BL55: 2093 | BM55: =IF(BJ55<=$BK$44,$BK$44,0) -> 0 | BN55: =IF(BM55>0,IF(BM55-BJ55>=BL55,BL55,BM55-BJ55),0) -> 0
B56: 60歳～64歳 | I56: =IF(AND(4610<=$B$9,$B$9<6733),ROUNDDOWN(0.8*$B$9-0.35*(($B$9-4600)/(10490-4600)*$B$9),0),IF(AND(6733<=$B$9,$B$9<10490),ROUNDDOWN(0.05*$B$9+4196,0),0)) ->  | J56: =IF(AND(4610<=$B$9,$B$9<6746),ROUNDDOWN(0.8*$B$9-0.35*(($B$9-4610)/(10510-4610)*$B$9),0),IF(AND(6746<=$B$9,$B$9<10490),ROUNDDOWN(0.05*$B$9+4204,0),0)) ->  | L56: =IF(AND(10490<=$B$9,$B$9<10510),ROUNDDOWN($B$9*0.45,0),0) ->  | M56: =IF(AND(10490<=$B$9,$B$9<10510),ROUNDDOWN(0.05*$B$9+4204,0),0) ->  | O56: =IF($B$9>=14910,6709,IF(AND(10510<=$B$9,$B$9<14910),ROUNDDOWN($B$9*0.45,0),0)) ->  | P56: =IF($B$9>=14940,6723,IF(AND(10510<=$B$9,$B$9<14940),ROUNDDOWN($B$9*0.45,0),0)) ->  | AD56: =Y53 -> 0 | AE56: =IF(AD56>=4720,4720,AD56) -> 0 | AF56: =AC53 -> 0 | AG56: =IF(AF56>=4729,4729,AF56) -> 0 | AH56: =AG56-AE56 -> 0 | AM56: H24 | AO56: =IF(AND("2408"<=AP45,AP45<="2507",計算表!B14<=12),計算表!B14,IF($AP$45="2408",12,IF($AP$45="2409",11,IF($AP$45="2410",10,IF($AP$45="2411",9,IF($AP$45="2412",8,IF($AP$45="2501",7,IF($AP$45="2502",6,IF($AP$45="2503",5,IF($AP$45="2504",4,IF($AP$45="2505",3,IF($AP$45="2506",2,IF($AP$45="2507",1,0))))))))))))) ->  | AV56: =ROUND((-183*総合計算!K55+13725)/280*100/総合計算!K55,2) -> 1770.52 | AW56: =ROUND((-183*総合計算!N55+13725)/280*100/総合計算!N55,2) -> 1770.52 | BH56: H20.8～H21.7 | BI56: 下限 | BJ56: 1648 | BK56: 1656 | BL56: 8 | BM56: =IF($BK$44<=BK56,$BK$44,0) -> 0 | BN56: =IF(BM56>0,IF(BK56-BM56>=BL56,BL56,BK56-BM56),0) -> 0 | BO56: =IF(BN56>0,BN56,IF(BN57>0,BN57,0)) -> 0 | BP56: =IF(BJ56>=$BK$44,BJ56,IF($BK$44>=BJ57,BJ57,$BK$44)) -> 1648 | BQ56: 1656
A57: H27.8～H28.7 | B57: ～29歳または65歳～ | C57: =IF(AND(0<$B$9,$B$9<2300),1840,IF(AND(2300<=$B$9,$B$9<4600),ROUNDDOWN($B$9*0.8,0),0)) ->  | D57: =IF(AND(0<$B$9,$B$9<2310),1848,IF(AND(2310<=$B$9,$B$9<4600),ROUNDDOWN($B$9*0.8,0),0)) ->  | E57: =D57-C57 ->  | F57: =IF(AND(4600<=$B$9,$B$9<4620),ROUNDDOWN(0.8*$B$9-0.3*(($B$9-4600)/(11660-4600)*$B$9),0),0) ->  | G57: =IF(AND(4600<=$B$9,$B$9<4620),ROUNDDOWN($B$9*0.8,0),0) ->  | H57: =G57-F57 ->  | I57: =IF(AND(4620<=$B$9,$B$9<11660),ROUNDDOWN(0.8*$B$9-0.3*(($B$9-4600)/(11660-4600)*$B$9),0),0) ->  | J57: =IF(AND(4620<=$B$9,$B$9<11660),ROUNDDOWN(0.8*$B$9-0.3*(($B$9-4620)/(11710-4620)*$B$9),0),0) ->  | L57: =IF(AND(11660<=$B$9,$B$9<11710),ROUNDDOWN($B$9*0.5,0),0) ->  | M57: =IF(AND(11660<=$B$9,$B$9<11710),ROUNDDOWN(0.8*$B$9-0.3*(($B$9-4620)/(11710-4620)*$B$9),0),0) ->  | N57: =M57-L57 ->  | O57: =IF($B$9>=12790,6395,IF(AND(11710<=$B$9,$B$9<12790),ROUNDDOWN($B$9*0.5,0),0)) ->  | P57: =IF($B$9>=12830,6415,IF(AND(11710<=$B$9,$B$9<12830),ROUNDDOWN($B$9*0.5,0),0)) ->  | R57: =IF(計算表!$B$10=B57,IF($B$9<4600,E57,IF(AND($B$9>=4600,$B$9<4620),H57,IF(AND($B$9>=4620,$B$9<11660),K57,IF(AND($B$9>=11660,$B$9<11710),N57,IF($B$9>=11710,Q57))))),0) -> 0 | S57: =IF(計算表!$B$10=B58,IF($B$9<4600,E57,IF(AND($B$9>=4600,$B$9<4620),H57,IF(AND($B$9>=4620,$B$9<11660),K57,IF(AND($B$9>=11660,$B$9<11710),N58,IF($B$9>=11710,Q58))))),0) -> 0 | T57: =IF(計算表!$B$10=B59,IF($B$9<4600,E57,IF(AND($B$9>=4600,$B$9<4620),H57,IF(AND($B$9>=4620,$B$9<11660),K57,IF(AND($B$9>=11660,$B$9<11710),N59,IF($B$9>=11710,Q59))))),0) -> 0 | U57: =IF(計算表!$B$10=B60,IF($B$9<4600,E57,IF(AND($B$9>=4600,$B$9<4620),H57,IF(AND($B$9>=4620,$B$9<10500),K60,IF(AND($B$9>=10500,$B$9<10530),N60,IF($B$9>=10530,Q60))))),0) -> 0 | V57: =IF(計算表!$B$10=B57,IF($B$9<4600,C57,IF(AND($B$9>=4600,$B$9<4620),F57,IF(AND($B$9>=4620,$B$9<11660),I57,IF(AND($B$9>=11660,$B$9<11710),L57,IF($B$9>=11710,O57))))),0) -> 0 | W57: =IF(計算表!$B$10=B58,IF($B$9<4600,C57,IF(AND($B$9>=4600,$B$9<4620),F57,IF(AND($B$9>=4620,$B$9<11660),I57,IF(AND($B$9>=11660,$B$9<11710),L57,IF($B$9>=11710,O58))))),0) -> 0 | X57: =IF(計算表!$B$10=B59,IF($B$9<4600,C57,IF(AND($B$9>=4600,$B$9<4620),F57,IF(AND($B$9>=4620,$B$9<11660),I57,IF(AND($B$9>=11660,$B$9<11710),L57,IF($B$9>=11710,O59))))),0) -> 0 | Y57: =IF(計算表!$B$10=B60,IF($B$9<4600,C57,IF(AND($B$9>=4600,$B$9<4620),F57,IF(AND($B$9>=4620,$B$9<10500),I60,IF(AND($B$9>=10500,$B$9<10530),L60,IF($B$9>=10530,O60))))),0) -> 0 | Z57: =IF(計算表!$B$10=B57,IF($B$9<4600,D57,IF(AND($B$9>=4600,$B$9<4620),G57,IF(AND($B$9>=4620,$B$9<11660),J57,IF(AND($B$9>=11660,$B$9<11710),M57,IF($B$9>=11710,P57))))),0) -> 0 | AA57: =IF(計算表!$B$10=B58,IF($B$9<4600,D57,IF(AND($B$9>=4600,$B$9<4620),G57,IF(AND($B$9>=4620,$B$9<11660),J57,IF(AND($B$9>=11660,$B$9<11710),M57,IF($B$9>=11710,P58))))),0) -> 0 | AB57: =IF(計算表!$B$10=B59,IF($B$9<4600,D57,IF(AND($B$9>=4600,$B$9<4620),G57,IF(AND($B$9>=4620,$B$9<11660),J57,IF(AND($B$9>=11660,$B$9<11710),M57,IF($B$9>=11710,P59))))),0) -> 0 | AC57: =IF(計算表!$B$10=B60,IF($B$9<4600,D57,IF(AND($B$9>=4600,$B$9<4620),G57,IF(AND($B$9>=4620,$B$9<10500),J60,IF(AND($B$9>=10500,$B$9<10530),M60,IF($B$9>=10530,P60))))),0) -> 0 | AD57: =SUM(V57:X60) -> 0 | AE57: =IF(AD57>=5830,5830,AD57) -> 0 | AF57: =SUM(Z57:AB60) -> 0 | AG57: =IF(AF57>=5855,5855,AF57) -> 0 | AH57: =AG57-AE57 -> 0 | AI57: 1287 | AJ57: 1291 | AK57: =AJ57-AI57 -> 4 | AM57: H25 | AO57: =IF(AND("2508"<=AP45,AP45<="2607",計算表!B14<=12),計算表!B14,IF($AP$45="2508",12,IF($AP$45="2509",11,IF($AP$45="2510",10,IF($AP$45="2511",9,IF($AP$45="2512",8,IF($AP$45="2601",7,IF($AP$45="2602",6,IF($AP$45="2603",5,IF($AP$45="2604",4,IF($AP$45="2605",3,IF($AP$45="2606",2,IF($AP$45="2607",1,0))))))))))))) ->  | AV57: =ROUND((-183*総合計算!K56+13725)/280*100/総合計算!K56,2) -> 1770.52 | AW57: =ROUND((-183*総合計算!N56+13725)/280*100/総合計算!N56,2) -> 1770.52 | BI57: 上限 | BJ57: 337343 | BK57: 339482 | BL57: 2139 | BM57: =IF(BJ57<=$BK$44,$BK$44,0) -> 0 | BN57: =IF(BM57>0,IF(BM57-BJ57>=BL57,BL57,BM57-BJ57),0) -> 0
B58: 30歳～44歳 | N58: =M57-L57 ->  | O58: =IF($B$9>=14210,7105,IF(AND(11710<=$B$9,$B$9<14210),ROUNDDOWN($B$9*0.5,0),0)) ->  | P58: =IF($B$9>=14240,7120,IF(AND(11710<=$B$9,$B$9<14240),ROUNDDOWN($B$9*0.5,0),0)) ->  | AM58: H26 | AO58: =IF(AND("2608"<=AP45,AP45<="2707",計算表!B14<=12),計算表!B14,IF($AP$45="2608",12,IF($AP$45="2609",11,IF($AP$45="2610",10,IF($AP$45="2611",9,IF($AP$45="2612",8,IF($AP$45="2701",7,IF($AP$45="2702",6,IF($AP$45="2703",5,IF($AP$45="2704",4,IF($AP$45="2705",3,IF($AP$45="2706",2,IF($AP$45="2707",1,0))))))))))))) ->  | AV58: =ROUND((-183*総合計算!K57+13725)/280*100/総合計算!K57,2) -> 1770.52 | AW58: =ROUND((-183*総合計算!N57+13725)/280*100/総合計算!N57,2) -> 1770.52 | BH58: H21.8～H22.7 | BI58: 下限 | BJ58: 1640 | BK58: 1648 | BL58: 8 | BM58: =IF($BK$44<=BK58,$BK$44,0) -> 0 | BN58: =IF(BM58>0,IF(BK58-BM58>=BL58,BL58,BK58-BM58),0) -> 0 | BO58: =IF(BN58>0,BN58,IF(BN59>0,BN59,0)) -> 0 | BP58: =IF(BJ58>=$BK$44,BJ58,IF($BK$44>=BJ59,BJ59,$BK$44)) -> 1640 | BQ58: 1648
B59: 45歳～59歳 | N59: =M57-L57 ->  | O59: =IF($B$9>=15620,7810,IF(AND(11710<=$B$9,$B$9<15620),ROUNDDOWN($B$9*0.5,0),0)) ->  | P59: =IF($B$9>=15660,7830,IF(AND(11710<=$B$9,$B$9<15660),ROUNDDOWN($B$9*0.5,0),0)) ->  | AM59: H27 | AO59: =IF(AND("2708"<=AP45,AP45<="2807",計算表!B14<=12),計算表!B14,IF($AP$45="2708",12,IF($AP$45="2709",11,IF($AP$45="2710",10,IF($AP$45="2711",9,IF($AP$45="2712",8,IF($AP$45="2801",7,IF($AP$45="2802",6,IF($AP$45="2803",5,IF($AP$45="2804",4,IF($AP$45="2805",3,IF($AP$45="2806",2,IF($AP$45="2807",1,0))))))))))))) ->  | AV59: =ROUND((-183*総合計算!K58+13725)/280*100/総合計算!K58,2) -> 1770.52 | AW59: =ROUND((-183*総合計算!N58+13725)/280*100/総合計算!N58,2) -> 1770.52 | BI59: 上限 | BJ59: 335316 | BK59: 337467 | BL59: 2151 | BM59: =IF(BJ59<=$BK$44,$BK$44,0) -> 0 | BN59: =IF(BM59>0,IF(BM59-BJ59>=BL59,BL59,BM59-BJ59),0) -> 0
B60: 60歳～64歳 | I60: =IF(AND(4620<=$B$9,$B$9<6747),ROUNDDOWN(0.8*$B$9-0.35*(($B$9-4600)/(10500-4600)*$B$9),0),IF(AND(6747<=$B$9,$B$9<10500),ROUNDDOWN(0.05*$B$9+4200,0),0)) ->  | J60: =IF(AND(4620<=$B$9,$B$9<6756),ROUNDDOWN(0.8*$B$9-0.35*(($B$9-4620)/(10530-4620)*$B$9),0),IF(AND(6756<=$B$9,$B$9<10500),ROUNDDOWN(0.05*$B$9+4212,0),0)) ->  | L60: =IF(AND(10500<=$B$9,$B$9<10530),ROUNDDOWN($B$9*0.45,0),0) ->  | M60: =IF(AND(10500<=$B$9,$B$9<10530),ROUNDDOWN(0.05*$B$9+4212,0),0) ->  | O60: =IF($B$9>=14920,6714,IF(AND(10530<=$B$9,$B$9<14920),ROUNDDOWN($B$9*0.45,0),0)) ->  | P60: =IF($B$9>=14960,6732,IF(AND(10530<=$B$9,$B$9<14960),ROUNDDOWN($B$9*0.45,0),0)) ->  | AD60: =Y57 -> 0 | AE60: =IF(AD60>=4725,4725,AD60) -> 0 | AF60: =AC57 -> 0 | AG60: =IF(AF60>=4738,4738,AF60) -> 0 | AH60: =AG60-AE60 -> 0 | AM60: H28 | AO60: =IF(AND("2808"<=AP45,AP45<="2907",計算表!B14<=12),計算表!B14,IF($AP$45="2808",12,IF($AP$45="2809",11,IF($AP$45="2810",10,IF($AP$45="2811",9,IF($AP$45="2812",8,IF($AP$45="2901",7,IF($AP$45="2902",6,IF($AP$45="2903",5,IF($AP$45="2904",4,IF($AP$45="2905",3,IF($AP$45="2906",2,IF($AP$45="2907",1,0))))))))))))) ->  | AV60: =ROUND((-183*総合計算!K59+13725)/280*100/総合計算!K59,2) -> 1770.52 | AW60: =ROUND((-183*総合計算!N59+13725)/280*100/総合計算!N59,2) -> 1770.52 | BH60: H22.8～H23.7 | BI60: 下限 | BJ60: 1600 | BK60: 1608 | BL60: 8 | BM60: =IF($BK$44<=BK60,$BK$44,0) -> 0 | BN60: =IF(BM60>0,IF(BK60-BM60>=BL60,BL60,BK60-BM60),0) -> 0 | BO60: =IF(BN60>0,BN60,IF(BN61>0,BN61,0)) -> 0 | BP60: =IF(BJ60>=$BK$44,BJ60,IF($BK$44>=BJ61,BJ61,$BK$44)) -> 1600 | BQ60: =IF(BK60>=$BK$44,BK60,IF($BK$44>=BK61,BK61,$BK$44)) -> 1608
A61: H28.8～H29.7 | B61: ～29歳または65歳～ | C61: =IF(AND(0<$B$9,$B$9<2290),1832,IF(AND(2290<=$B$9,$B$9<4580),ROUNDDOWN($B$9*0.8,0),0)) ->  | D61: =IF(AND(0<$B$9,$B$9<2300),1840,IF(AND(2300<=$B$9,$B$9<4580),ROUNDDOWN($B$9*0.8,0),0)) ->  | E61: =D61-C61 ->  | F61: =IF(AND(4580<=$B$9,$B$9<4590),ROUNDDOWN(0.8*$B$9-0.3*(($B$9-4580)/(11610-4580)*$B$9),0),0) ->  | G61: =IF(AND(4580<=$B$9,$B$9<4590),ROUNDDOWN($B$9*0.8,0),0) ->  | H61: =G61-F61 ->  | I61: =IF(AND(4590<=$B$9,$B$9<11610),ROUNDDOWN(0.8*$B$9-0.3*(($B$9-4580)/(11610-4580)*$B$9),0),0) ->  | J61: =IF(AND(4590<=$B$9,$B$9<11610),ROUNDDOWN(0.8*$B$9-0.3*(($B$9-4590)/(11640-4590)*$B$9),0),0) ->  | L61: =IF(AND(11610<=$B$9,$B$9<11640),ROUNDDOWN($B$9*0.5,0),0) ->  | M61: =IF(AND(11610<=$B$9,$B$9<11640),ROUNDDOWN(0.8*$B$9-0.3*(($B$9-4590)/(11640-4590)*$B$9),0),0) ->  | N61: =M61-L61 ->  | O61: =IF($B$9>=12740,6370,IF(AND(11640<=$B$9,$B$9<12740),ROUNDDOWN($B$9*0.5,0),0)) ->  | P61: =IF($B$9>=12760,6380,IF(AND(11640<=$B$9,$B$9<12760),ROUNDDOWN($B$9*0.5,0),0)) ->  | R61: =IF(計算表!$B$10=B61,IF($B$9<4580,E61,IF(AND($B$9>=4580,$B$9<4590),H61,IF(AND($B$9>=4590,$B$9<11610),K61,IF(AND($B$9>=11610,$B$9<11640),N61,IF($B$9>=11640,Q61))))),0) -> 0 | S61: =IF(計算表!$B$10=B62,IF($B$9<4580,E61,IF(AND($B$9>=4580,$B$9<4590),H61,IF(AND($B$9>=4590,$B$9<11610),K61,IF(AND($B$9>=11610,$B$9<11640),N62,IF($B$9>=11640,Q62))))),0) -> 0 | T61: =IF(計算表!$B$10=B63,IF($B$9<4580,E61,IF(AND($B$9>=4580,$B$9<4590),H61,IF(AND($B$9>=4590,$B$9<11610),K61,IF(AND($B$9>=11610,$B$9<11640),N63,IF($B$9>=11640,Q63))))),0) -> 0 | U61: =IF(計算表!$B$10=B64,IF($B$9<4580,E61,IF(AND($B$9>=4580,$B$9<4590),H61,IF(AND($B$9>=4590,$B$9<10460),K64,IF(AND($B$9>=10460,$B$9<10470),N64,IF($B$9>=10470,Q64))))),0) -> 0 | V61: =IF(計算表!$B$10=B61,IF($B$9<4580,C61,IF(AND($B$9>=4580,$B$9<4590),F61,IF(AND($B$9>=4590,$B$9<11610),I61,IF(AND($B$9>=11610,$B$9<11640),L61,IF($B$9>=11640,O61))))),0) -> 0 | W61: =IF(計算表!$B$10=B62,IF($B$9<4580,C61,IF(AND($B$9>=4580,$B$9<4590),F61,IF(AND($B$9>=4590,$B$9<11610),I61,IF(AND($B$9>=11610,$B$9<11640),L61,IF($B$9>=11640,O62))))),0) -> 0 | X61: =IF(計算表!$B$10=B63,IF($B$9<4580,C61,IF(AND($B$9>=4580,$B$9<4590),F61,IF(AND($B$9>=4590,$B$9<11610),I61,IF(AND($B$9>=11610,$B$9<11640),L61,IF($B$9>=11640,O63))))),0) -> 0 | Y61: =IF(計算表!$B$10=B64,IF($B$9<4580,C61,IF(AND($B$9>=4580,$B$9<4590),F61,IF(AND($B$9>=4590,$B$9<10460),I64,IF(AND($B$9>=10460,$B$9<10470),L64,IF($B$9>=10470,O64))))),0) -> 0 | Z61: =IF(計算表!$B$10=B61,IF($B$9<4580,D61,IF(AND($B$9>=4580,$B$9<4590),G61,IF(AND($B$9>=4590,$B$9<11610),J61,IF(AND($B$9>=11610,$B$9<11640),M61,IF($B$9>=11640,P61))))),0) -> 0 | AA61: =IF(計算表!$B$10=B62,IF($B$9<4580,D61,IF(AND($B$9>=4580,$B$9<4590),G61,IF(AND($B$9>=4590,$B$9<11610),J61,IF(AND($B$9>=11610,$B$9<11640),M61,IF($B$9>=11640,P62))))),0) -> 0 | AB61: =IF(計算表!$B$10=B63,IF($B$9<4580,D61,IF(AND($B$9>=4580,$B$9<4590),G61,IF(AND($B$9>=4590,$B$9<11610),J61,IF(AND($B$9>=11610,$B$9<11640),M61,IF($B$9>=11640,P63))))),0) -> 0 | AC61: =IF(計算表!$B$10=B64,IF($B$9<4580,D61,IF(AND($B$9>=4580,$B$9<4590),G61,IF(AND($B$9>=4590,$B$9<10460),J64,IF(AND($B$9>=10460,$B$9<10470),M64,IF($B$9>=10470,P64))))),0) -> 0 | AD61: =SUM(V61:X64) -> 0 | AE61: =IF(AD61>=5805,5805,AD61) -> 0 | AF61: =SUM(Z61:AB64) -> 0 | AG61: =IF(AF61>=5820,5820,AF61) -> 0 | AH61: =AG61-AE61 -> 0 | AI61: 1282 | AJ61: 1284 | AK61: =AJ61-AI61 -> 2 | AM61: H29 | AO61: =IF(AND("2908"<=AP45,AP45<="3007",計算表!B14<=12),計算表!B14,IF($AP$45="2908",12,IF($AP$45="2909",11,IF($AP$45="2910",10,IF($AP$45="2911",9,IF($AP$45="2912",8,IF($AP$45="3001",7,IF($AP$45="3002",6,IF($AP$45="3003",5,IF($AP$45="3004",4,IF($AP$45="3005",3,IF($AP$45="3006",2,IF($AP$45="3007",1,0))))))))))))) ->  | AV61: =ROUND((-183*総合計算!K60+13725)/280*100/総合計算!K60,2) -> 1770.52 | AW61: =ROUND((-183*総合計算!N60+13725)/280*100/総合計算!N60,2) -> 1770.52 | BI61: 上限 | BJ61: 327486 | BK61: 329592 | BL61: 2106 | BM61: =IF(BJ61<=$BK$44,$BK$44,0) -> 0 | BN61: =IF(BM61>0,IF(BM61-BJ61>=BL61,BL61,BM61-BJ61),0) -> 0
B62: 30歳～44歳 | N62: =M61-L61 ->  | O62: =IF($B$9>=14150,7075,IF(AND(11640<=$B$9,$B$9<14150),ROUNDDOWN($B$9*0.5,0),0)) ->  | P62: =IF($B$9>=14160,7080,IF(AND(11640<=$B$9,$B$9<14160),ROUNDDOWN($B$9*0.5,0),0)) ->  | AM62: H30 | AO62: =IF(AND("3008"<=AP45,AP45<="3107",計算表!B14<=12),計算表!B14,IF($AP$45="3008",12,IF($AP$45="3009",11,IF($AP$45="3010",10,IF($AP$45="3011",9,IF($AP$45="3012",8,IF($AP$45="3101",7,IF($AP$45="3102",6,IF($AP$45="3103",5,IF($AP$45="3104",4,IF($AP$45="3105",3,IF($AP$45="3106",2,IF($AP$45="3107",1,0))))))))))))) ->  | AP62: =IF(AO61>0,IF($AO$47-AO61>=12,12,MAX($AO$47-AO61,0)),0) ->  | AS62: =IF(AR61>0,IF($AR$47-AR61>=12,12,MAX($AR$47-AR61,0)),0) ->  | BH62: H23.8～H24.7 | BI62: 下限 | BJ62: 1864 | BK62: 1864 | BL62: 0 | BM62: =IF($BK$44<=BK62,$BK$44,0) -> 0 | BN62: =IF(BM62>0,IF(BK62-BM62>=BL62,BL62,BK62-BM62),0) -> 0 | BO62: =IF(BN62>0,BN62,IF(BN63>0,BN63,0)) -> 0 | BP62: =IF(BJ62>=$BK$44,BJ62,IF($BK$44>=BJ63,BJ63,$BK$44)) -> 1864 | BQ62: 1864
B63: 45歳～59歳 | N63: =M61-L61 ->  | O63: =IF($B$9>=15550,7775,IF(AND(11640<=$B$9,$B$9<15550),ROUNDDOWN($B$9*0.5,0),0)) ->  | P63: =IF($B$9>=15570,7785,IF(AND(11640<=$B$9,$B$9<15570),ROUNDDOWN($B$9*0.5,0),0)) ->  | AO63: =SUM(AO48:AO62) ->  | AP63: =SUM(AP48:AP62) ->  | BI63: 上限 | BJ63: 344209 | BK63: 344258 | BL63: 49 | BM63: =IF(BJ63<=$BK$44,$BK$44,0) -> 0 | BN63: =IF(BM63>0,IF(BM63-BJ63>=BL63,BL63,BM63-BJ63),0) -> 0
B64: 60歳～64歳 | I64: =IF(AND(4590<=$B$9,$B$9<6724),ROUNDDOWN(0.8*$B$9-0.35*(($B$9-4580)/(10460-4580)*$B$9),0),IF(AND(6724<=$B$9,$B$9<10460),ROUNDDOWN(0.05*$B$9+4184,0),0)) ->  | J64: =IF(AND(4590<=$B$9,$B$9<6724),ROUNDDOWN(0.8*$B$9-0.35*(($B$9-4590)/(10470-4590)*$B$9),0),IF(AND(6724<=$B$9,$B$9<10460),ROUNDDOWN(0.05*$B$9+4188,0),0)) ->  | L64: =IF(AND(10460<=$B$9,$B$9<10470),ROUNDDOWN($B$9*0.45,0),0) ->  | M64: =IF(AND(10460<=$B$9,$B$9<10470),ROUNDDOWN(0.05*$B$9+4188,0),0) ->  | O64: =IF($B$9>=14860,6687,IF(AND(10470<=$B$9,$B$9<14860),ROUNDDOWN($B$9*0.45,0),0)) ->  | P64: =IF($B$9>=14870,6691,IF(AND(10470<=$B$9,$B$9<14870),ROUNDDOWN($B$9*0.45,0),0)) ->  | AD64: =Y61 -> 0 | AE64: =IF(AD64>=4707,4707,AD64) -> 0 | AF64: =AC61 -> 0 | AG64: =IF(AF64>=4711,4711,AF64) -> 0 | AH64: =AG64-AE64 -> 0 | BH64: H24.8～H25.7 | BI64: 下限 | BJ64: 1856 | BK64: 1856 | BL64: 0 | BM64: =IF($BK$44<=BK64,$BK$44,0) -> 0 | BN64: =IF(BM64>0,IF(BK64-BM64>=BL64,BL64,BK64-BM64),0) -> 0 | BO64: =IF(BN64>0,BN64,IF(BN65>0,BN65,0)) -> 0 | BP64: =IF(BJ64>=$BK$44,BJ64,IF($BK$44>=BJ65,BJ65,$BK$44)) -> 1856 | BQ64: 1856
A65: H29.8～H30.7 | B65: ～29歳または65歳～ | C65: =IF(AND(0<$B$9,$B$9<2470),1976,IF(AND(2470<=$B$9,$B$9<4940),ROUNDDOWN($B$9*0.8,0),0)) ->  | D65: =IF(AND(0<$B$9,$B$9<2470),1976,IF(AND(2470<=$B$9,$B$9<4940),ROUNDDOWN($B$9*0.8,0),0)) ->  | E65: =D65-C65 ->  | I65: =IF(AND(4940<=$B$9,$B$9<12140),ROUNDDOWN(0.8*$B$9-0.3*(($B$9-4940)/(12140-4940)*$B$9),0),0) ->  | J65: =IF(AND(4940<=$B$9,$B$9<12140),ROUNDDOWN(0.8*$B$9-0.3*(($B$9-4940)/(12150-4940)*$B$9),0),0) ->  | L65: =IF(AND(12140<=$B$9,$B$9<12150),ROUNDDOWN($B$9*0.5,0),0) ->  | M65: =IF(AND(12140<=$B$9,$B$9<12150),ROUNDDOWN(0.8*$B$9-0.3*(($B$9-4940)/(12150-4940)*$B$9),0),0) ->  | N65: =M65-L65 ->  | O65: =IF($B$9>=13420,6710,IF(AND(12150<=$B$9,$B$9<13420),ROUNDDOWN($B$9*0.5,0),0)) ->  | P65: =IF($B$9>=13430,6715,IF(AND(12150<=$B$9,$B$9<13430),ROUNDDOWN($B$9*0.5,0),0)) ->  | R65: =IF(計算表!$B$10=B65,IF($B$9<4940,E65,IF(AND($B$9>=4940,$B$9<12140),K65,IF(AND($B$9>=12140,$B$9<12150),N65,IF($B$9>=12150,Q65)))),0) -> 0 | S65: =IF(計算表!$B$10=B66,IF($B$9<4940,E65,IF(AND($B$9>=4940,$B$9<12140),K65,IF(AND($B$9>=12140,$B$9<12150),N66,IF($B$9>=12150,Q66)))),0) -> 0 | T65: =IF(計算表!$B$10=B67,IF($B$9<4940,E65,IF(AND($B$9>=4940,$B$9<12140),K65,IF(AND($B$9>=12140,$B$9<12150),N67,IF($B$9>=12150,Q67)))),0) -> 0 | U65: =IF(計算表!$B$10=B68,IF($B$9<4940,E65,IF(AND($B$9>=4940,$B$9<10920),K68,IF(AND($B$9>=10920,$B$9<10930),N68,IF($B$9>=10930,Q68)))),0) -> 0 | V65: =IF(計算表!$B$10=B65,IF($B$9<4940,C65,IF(AND($B$9>=4940,$B$9<12140),I65,IF(AND($B$9>=12140,$B$9<12150),L65,IF($B$9>=12150,O65)))),0) -> 0 | W65: =IF(計算表!$B$10=B66,IF($B$9<4940,C65,IF(AND($B$9>=4940,$B$9<12140),I65,IF(AND($B$9>=12140,$B$9<12150),L65,IF($B$9>=12150,O66)))),0) -> 0 | X65: =IF(計算表!$B$10=B67,IF($B$9<4940,C65,IF(AND($B$9>=4940,$B$9<12140),I65,IF(AND($B$9>=12140,$B$9<12150),L65,IF($B$9>=12150,O67)))),0) -> 0 | Y65: =IF(計算表!$B$10=B68,IF($B$9<4940,C65,IF(AND($B$9>=4940,$B$9<10920),I68,IF(AND($B$9>=10920,$B$9<10930),L68,IF($B$9>=10930,O68)))),0) -> 0 | Z65: =IF(計算表!$B$10=B65,IF($B$9<4940,D65,IF(AND($B$9>=4940,$B$9<12140),J65,IF(AND($B$9>=12140,$B$9<12150),M65,IF($B$9>=12150,P65)))),0) -> 0 | AA65: =IF(計算表!$B$10=B66,IF($B$9<4940,D65,IF(AND($B$9>=4940,$B$9<12140),J65,IF(AND($B$9>=12140,$B$9<12150),M65,IF($B$9>=12150,P66)))),0) -> 0 | AB65: =IF(計算表!$B$10=B67,IF($B$9<4940,D65,IF(AND($B$9>=4940,$B$9<12140),J65,IF(AND($B$9>=12140,$B$9<12150),M65,IF($B$9>=12150,P67)))),0) -> 0 | AC65: =IF(計算表!$B$10=B68,IF($B$9<4940,D65,IF(AND($B$9>=4940,$B$9<10920),J68,IF(AND($B$9>=10920,$B$9<10930),M68,IF($B$9>=10930,P68)))),0) -> 0 | AD65: =SUM(V65:X68) -> 0 | AE65: =IF(AD65>=6070,6070,AD65) -> 0 | AF65: =SUM(Z65:AB68) -> 0 | AG65: =IF(AF65>=6075,6075,AF65) -> 0 | AH65: =AG65-AE65 -> 0 | AI65: 1287 | AJ65: 1288 | AK65: =AJ65-AI65 -> 1 | BI65: 上限 | BJ65: 343395 | BK65: 343424 | BL65: 29 | BM65: =IF(BJ65<=$BK$44,$BK$44,0) -> 0 | BN65: =IF(BM65>0,IF(BM65-BJ65>=BL65,BL65,BM65-BJ65),0) -> 0
B66: 30歳～44歳 | N66: =M65-L65 ->  | O66: =IF($B$9>=14910,7455,IF(AND(12150<=$B$9,$B$9<14910),ROUNDDOWN($B$9*0.5,0),0)) ->  | P66: =IF($B$9>=14920,7460,IF(AND(12150<=$B$9,$B$9<14920),ROUNDDOWN($B$9*0.5,0),0)) ->  | AR66: あまり計算 | AS66: =MOD(総合計算!D64,30) ->  | BH66: H25.8～H26.7 | BI66: 下限 | BJ66: 1848 | BK66: 1848 | BL66: 0 | BM66: =IF($BK$44<=BK66,$BK$44,0) -> 0 | BN66: =IF(BM66>0,IF(BK66-BM66>=BL66,BL66,BK66-BM66),0) -> 0 | BO66: =IF(BN66>0,BN66,IF(BN67>0,BN67,0)) -> 0 | BP66: =IF(BJ66>=$BK$44,BJ66,IF($BK$44>=BJ67,BJ67,$BK$44)) -> 1848 | BQ66: 1848
B67: 45歳～59歳 | N67: =M65-L65 ->  | O67: =IF($B$9>=16410,8205,IF(AND(12150<=$B$9,$B$9<16410),ROUNDDOWN($B$9*0.5,0),0)) ->  | P67: =IF($B$9>=16420,8210,IF(AND(12150<=$B$9,$B$9<16420),ROUNDDOWN($B$9*0.5,0),0)) ->  | AW67: 介護INDEX検索用 | BI67: 上限 | BJ67: 341538 | BK67: 341564 | BL67: 26 | BM67: =IF(BJ67<=$BK$44,$BK$44,0) -> 0 | BN67: =IF(BM67>0,IF(BM67-BJ67>=BL67,BL67,BM67-BJ67),0) -> 0
B68: 60歳～64歳 | I68: =IF(AND(4940<=$B$9,$B$9<6836),ROUNDDOWN(0.8*$B$9-0.35*(($B$9-4940)/(10920-4940)*$B$9),0),IF(AND(6836<=$B$9,$B$9<10920),ROUNDDOWN(0.05*$B$9+4368,0),0)) ->  | J68: =IF(AND(4940<=$B$9,$B$9<6849),ROUNDDOWN(0.8*$B$9-0.35*(($B$9-4940)/(10930-4940)*$B$9),0),IF(AND(6849<=$B$9,$B$9<10920),ROUNDDOWN(0.05*$B$9+4372,0),0)) ->  | L68: =IF(AND(10920<=$B$9,$B$9<10930),ROUNDDOWN($B$9*0.45,0),0) ->  | M68: =IF(AND(10920<=$B$9,$B$9<10930),ROUNDDOWN(0.05*$B$9+4372,0),0) ->  | O68: =IF($B$9>=15650,7042,IF(AND(10930<=$B$9,$B$9<15650),ROUNDDOWN($B$9*0.45,0),0)) ->  | P68: =IF($B$9>=15660,7047,IF(AND(10930<=$B$9,$B$9<15660),ROUNDDOWN($B$9*0.45,0),0)) ->  | AD68: =Y65 -> 0 | AE68: =IF(AD68>=4914,4914,AD68) -> 0 | AF68: =AC65 -> 0 | AG68: =IF(AF68>=4918,4918,AF68) -> 0 | AH68: =AG68-AE68 -> 0 | AM68: 育児INDEX検索用 | AY68: 上限 | BH68: H26.8～H27.7 | BI68: 下限 | BJ68: 1840 | BK68: 1848 | BL68: 8 | BM68: =IF($BK$44<=BK68,$BK$44,0) -> 0 | BN68: =IF(BM68>0,IF(BK68-BM68>=BL68,BL68,BK68-BM68),0) -> 0 | BO68: =IF(BN68>0,BN68,IF(BN69>0,BN69,0)) -> 0 | BP68: =IF(BJ68>=$BK$44,BJ68,IF($BK$44>=BJ69,BJ69,$BK$44)) -> 1840 | BQ68: 1848
A69: H30.8～H31.7 | B69: ～29歳または65歳～ | C69: =IF(AND(0<$B$9,$B$9<2480),1984,IF(AND(2480<=$B$9,$B$9<4970),ROUNDDOWN($B$9*0.8,0),0)) ->  | D69: =IF(AND(0<$B$9,$B$9<2480),1984,IF(AND(2480<=$B$9,$B$9<4970),ROUNDDOWN($B$9*0.8,0),0)) ->  | E69: =D69-C69 ->  | I69: =IF(AND(4970<=$B$9,$B$9<12210),ROUNDDOWN(0.8*$B$9-0.3*(($B$9-4970)/(12210-4970)*$B$9),0),0) ->  | J69: =IF(AND(4970<=$B$9,$B$9<12210),ROUNDDOWN(0.8*$B$9-0.3*(($B$9-4970)/(12220-4970)*$B$9),0),0) ->  | K69: =J69-I69 ->  | L69: =IF(AND(12210<=$B$9,$B$9<12220),ROUNDDOWN($B$9*0.5,0),0) ->  | M69: =IF(AND(12210<=$B$9,$B$9<12220),ROUNDDOWN(0.8*$B$9-0.3*(($B$9-4970)/(12220-4970)*$B$9),0),0) ->  | N69: =M69-L69 ->  | O69: =IF($B$9>=13500,6750,IF(AND(12220<=$B$9,$B$9<13500),ROUNDDOWN($B$9*0.5,0),0)) ->  | P69: =IF($B$9>=13510,6755,IF(AND(12220<=$B$9,$B$9<13510),ROUNDDOWN($B$9*0.5,0),0)) ->  | R69: =IF(計算表!$B$10=B69,IF($B$9<4970,E69,IF(AND($B$9>=4970,$B$9<12210),K69,IF(AND($B$9>=12210,$B$9<12220),N69,IF($B$9>=12220,Q69)))),0) -> 0 | S69: =IF(計算表!$B$10=B70,IF($B$9<4970,E69,IF(AND($B$9>=4970,$B$9<12210),K69,IF(AND($B$9>=12210,$B$9<12220),N70,IF($B$9>=12220,Q70)))),0) -> 0 | T69: =IF(計算表!$B$10=B71,IF($B$9<4970,E69,IF(AND($B$9>=4970,$B$9<12210),K69,IF(AND($B$9>=12210,$B$9<12220),N71,IF($B$9>=12220,Q71)))),0) -> 0 | U69: =IF(計算表!$B$10=B72,IF($B$9<4970,E69,IF(AND($B$9>=4970,$B$9<10980),K72,IF(AND($B$9>=10980,$B$9<10990),N72,IF($B$9>=10990,Q72)))),0) -> 0 | V69: =IF(計算表!$B$10=B69,IF($B$9<4970,C69,IF(AND($B$9>=4970,$B$9<12210),I69,IF(AND($B$9>=12210,$B$9<12220),L69,IF($B$9>=12220,O69)))),0) -> 0 | W69: =IF(計算表!$B$10=B70,IF($B$9<4970,C69,IF(AND($B$9>=4970,$B$9<12210),I69,IF(AND($B$9>=12210,$B$9<12220),L69,IF($B$9>=12220,O70)))),0) -> 0 | X69: =IF(計算表!$B$10=B71,IF($B$9<4970,C69,IF(AND($B$9>=4970,$B$9<12210),I69,IF(AND($B$9>=12210,$B$9<12220),L69,IF($B$9>=12220,O71)))),0) -> 0 | Y69: =IF(計算表!$B$10=B72,IF($B$9<4970,C69,IF(AND($B$9>=4970,$B$9<10980),I72,IF(AND($B$9>=10980,$B$9<10990),L72,IF($B$9>=10990,O72)))),0) -> 0 | Z69: =IF(計算表!$B$10=B69,IF($B$9<4970,D69,IF(AND($B$9>=4970,$B$9<12210),J69,IF(AND($B$9>=12210,$B$9<12220),M69,IF($B$9>=12220,P69)))),0) -> 0 | AA69: =IF(計算表!$B$10=B70,IF($B$9<4970,D69,IF(AND($B$9>=4970,$B$9<12210),J69,IF(AND($B$9>=12210,$B$9<12220),M69,IF($B$9>=12220,P70)))),0) -> 0 | AB69: =IF(計算表!$B$10=B71,IF($B$9<4970,D69,IF(AND($B$9>=4970,$B$9<12210),J69,IF(AND($B$9>=12210,$B$9<12220),M69,IF($B$9>=12220,P71)))),0) -> 0 | AC69: =IF(計算表!$B$10=B72,IF($B$9<4970,D69,IF(AND($B$9>=4970,$B$9<10980),J72,IF(AND($B$9>=10980,$B$9<10990),M72,IF($B$9>=10990,P72)))),0) -> 0 | AD69: =SUM(V69:X72) -> 0 | AE69: =IF(AD69>=6105,6105,AD69) -> 0 | AF69: =SUM(Z69:AB72) -> 0 | AG69: =IF(AF69>=6110,6110,AF69) -> 0 | AH69: =AG69-AE69 -> 0 | AI69: 1294 | AJ69: 1295 | AK69: =AJ69-AI69 -> 1 | AN69: 差額 | AO69: 旧日額 | AP69: 新日額 | AX69: 差額 | AY69: 旧日額 | AZ69: 新日額 | BI69: 上限 | BJ69: 340761 | BK69: 341440 | BL69: 679 | BM69: =IF(BJ69<=$BK$44,$BK$44,0) -> 0 | BN69: =IF(BM69>0,IF(BM69-BJ69>=BL69,BL69,BM69-BJ69),0) -> 0
B70: 30歳～44歳 | N70: =M69-L69 ->  | O70: =IF($B$9>=14990,7495,IF(AND(12220<=$B$9,$B$9<14990),ROUNDDOWN($B$9*0.5,0),0)) ->  | P70: =IF($B$9>=15010,7505,IF(AND(12220<=$B$9,$B$9<15010),ROUNDDOWN($B$9*0.5,0),0)) ->  | AN70: =AT13 ->  | AO70: =AU13 ->  | AP70: =AV13 ->  | AX70: =BD13 ->  | AY70: =BE13 ->  | AZ70: =BF13 ->  | BH70: H27.8～H28.7 | BI70: 下限 | BJ70: 1840 | BK70: 1848 | BL70: 8 | BM70: =IF($BK$44<=BK70,$BK$44,0) -> 0 | BN70: =IF(BM70>0,IF(BK70-BM70>=BL70,BL70,BK70-BM70),0) -> 0 | BO70: =IF(BN70>0,BN70,IF(BN71>0,BN71,0)) -> 0 | BP70: =IF(BJ70>=$BK$44,BJ70,IF($BK$44>=BJ71,BJ71,$BK$44)) -> 1840 | BQ70: 1848
B71: 45歳～59歳 | N71: =M69-L69 ->  | O71: =IF($B$9>=16500,8250,IF(AND(12220<=$B$9,$B$9<16500),ROUNDDOWN($B$9*0.5,0),0)) ->  | P71: =IF($B$9>=16520,8260,IF(AND(12220<=$B$9,$B$9<16520),ROUNDDOWN($B$9*0.5,0),0)) ->  | AN71: =AT15 ->  | AO71: =AU15 ->  | AP71: =AV15 ->  | AX71: =BD15 ->  | AY71: =BE15 ->  | AZ71: =BF15 ->  | BI71: 上限 | BJ71: 341015 | BK71: 341979 | BL71: 964 | BM71: =IF(BJ71<=$BK$44,$BK$44,0) -> 0 | BN71: =IF(BM71>0,IF(BM71-BJ71>=BL71,BL71,BM71-BJ71),0) -> 0
B72: 60歳～64歳 | I72: =IF(AND(4970<=$B$9,$B$9<6871),ROUNDDOWN(0.8*$B$9-0.35*(($B$9-4970)/(10980-4970)*$B$9),0),IF(AND(6871<=$B$9,$B$9<10980),ROUNDDOWN(0.05*$B$9+4392,0),0)) ->  | J72: =IF(AND(4970<=$B$9,$B$9<6884),ROUNDDOWN(0.8*$B$9-0.35*(($B$9-4970)/(10990-4970)*$B$9),0),IF(AND(6884<=$B$9,$B$9<10980),ROUNDDOWN(0.05*$B$9+4396,0),0)) ->  | L72: =IF(AND(10980<=$B$9,$B$9<10990),ROUNDDOWN($B$9*0.45,0),0) ->  | M72: =IF(AND(10980<=$B$9,$B$9<10990),ROUNDDOWN(0.05*$B$9+4396,0),0) ->  | O72: =IF($B$9>=15740,7083,IF(AND(10990<=$B$9,$B$9<15740),ROUNDDOWN($B$9*0.45,0),0)) ->  | P72: =IF($B$9>=15750,7087,IF(AND(10990<=$B$9,$B$9<15750),ROUNDDOWN($B$9*0.45,0),0)) ->  | AD72: =Y69 -> 0 | AE72: =IF(AD72>=4941,4941,AD72) -> 0 | AF72: =AC69 -> 0 | AG72: =IF(AF72>=4945,4945,AF72) -> 0 | AH72: =AG72-AE72 -> 0 | AN72: =AT17 ->  | AO72: =AU17 ->  | AP72: =AV17 ->  | AX72: =BD17 ->  | AY72: =BE17 ->  | AZ72: =BF17 ->  | BH72: H28.8～H29.7 | BI72: 下限 | BJ72: 1832 | BK72: 1840 | BL72: 8 | BM72: =IF($BK$44<=BK72,$BK$44,0) -> 0 | BN72: =IF(BM72>0,IF(BK72-BM72>=BL72,BL72,BK72-BM72),0) -> 0 | BO72: =IF(BN72>0,BN72,IF(BN73>0,BN73,0)) -> 0 | BP72: =IF(BJ72>=$BK$44,BJ72,IF($BK$44>=BJ73,BJ73,$BK$44)) -> 1832 | BQ72: 1840
AN73: =AT19 ->  | AO73: =AU19 ->  | AP73: =AV19 ->  | AX73: =BD19 ->  | AY73: =BE19 ->  | AZ73: =BF19 ->  | BI73: 上限 | BJ73: 339560 | BK73: 340004 | BL73: 444 | BM73: =IF(BJ73<=$BK$44,$BK$44,0) -> 0 | BN73: =IF(BM73>0,IF(BM73-BJ73>=BL73,BL73,BM73-BJ73),0) -> 0
AN74: =AT21 ->  | AO74: =AU21 ->  | AP74: =AV21 ->  | AX74: =BD21 ->  | AY74: =BE21 ->  | AZ74: =BF21 ->  | BH74: H29.8～H30.7 | BI74: 下限 | BJ74: 1976 | BK74: 1976 | BL74: 0 | BM74: =IF($BK$44<=BK74,$BK$44,0) -> 0 | BN74: =IF(BM74>0,IF(BK74-BM74>=BL74,BL74,BK74-BM74),0) -> 0 | BO74: =IF(BN74>0,BN74,IF(BN75>0,BN75,0)) -> 0 | BP74: =IF(BJ74>=$BK$44,BJ74,IF($BK$44>=BJ75,BJ75,$BK$44)) -> 1976 | BQ74: 1976
AN75: =AT23 ->  | AO75: =AU23 ->  | AP75: =AV23 ->  | AX75: =BD23 ->  | AY75: =BE23 ->  | AZ75: =BF23 ->  | BI75: 上限 | BJ75: 357864 | BK75: 358096 | BL75: 232 | BM75: =IF(BJ75<=$BK$44,$BK$44,0) -> 0 | BN75: =IF(BM75>0,IF(BM75-BJ75>=BL75,BL75,BM75-BJ75),0) -> 0
A76: ○就業促進定着手当 | AN76: =AT25 ->  | AO76: =AU25 ->  | AP76: =AV25 ->  | AX76: =BD25 ->  | AY76: =BE25 ->  | AZ76: =BF25 ->  | BH76: H30.8～H31.7 | BI76: 下限 | BJ76: 1984 | BK76: 1984 | BL76: 0 | BM76: =IF($BK$44<=BK76,$BK$44,0) -> 0 | BN76: =IF(BM76>0,IF(BK76-BM76>=BL76,BL76,BK76-BM76),0) -> 0 | BO76: =IF(BN76>0,BN76,IF(BN77>0,BN77,0)) -> 0 | BP76: =IF(BJ76>=$BK$44,BJ76,IF($BK$44>=BJ77,BJ77,$BK$44)) -> 1984 | BQ76: 1984
C77: 下限 | F77: 上限 | I77: 適用額 | AN77: =AT27 ->  | AO77: =AU27 ->  | AP77: =AV27 ->  | AX77: =BD27 ->  | AY77: =BE27 ->  | AZ77: =BF27 ->  | BI77: 上限 | BJ77: 359899 | BK77: 360169 | BL77: =BK77-BJ77 -> 270 | BM77: =IF(BJ77<=$BK$44,$BK$44,0) -> 0 | BN77: =IF(BM77>0,IF(BM77-BJ77>=BL77,BL77,BM77-BJ77),0) -> 0
C78: 旧 | D78: 新 | E78: 差 | F78: 旧 | G78: 新 | H78: 差 | I78: 旧 | J78: 新 | K78: 差 | AN78: =AT29 ->  | AO78: =AU29 ->  | AP78: =AV29 ->  | AX78: =BD29 ->  | AY78: =BE29 ->  | AZ78: =BF29 -> 
A79: H26.8～H27.7 | B79: ～29歳または65歳～ | C79: 2300 | D79: 2310 | E79: =D79-C79 -> 10 | F79: 12780 | G79: 12810 | H79: =G79-F79 -> 30 | I79: =IF($B$9<=$C$79,$C$79,IF($B$9>=F79,F79,$B$9)) ->  | J79: =IF($B$9<=$D$79,$D$79,IF($B$9>=G79,G79,$B$9)) ->  | K79: =J79-I79 ->  | AN79: =AT31 ->  | AO79: =AU31 ->  | AP79: =AV31 ->  | AX79: =BD31 ->  | AY79: =BE31 ->  | AZ79: =BF31 -> 
B80: 30歳～44歳 | F80: 14200 | G80: 14220 | H80: =G80-F80 -> 20 | I80: =IF($B$9<=$C$79,$C$79,IF($B$9>=F80,F80,$B$9)) ->  | J80: =IF($B$9<=$D$79,$D$79,IF($B$9>=G80,G80,$B$9)) ->  | K80: =J80-I80 ->  | AN80: =AT33 ->  | AO80: =AU33 ->  | AP80: =AV33 ->  | AX80: =BD33 ->  | AY80: =BE33 ->  | AZ80: =BF33 -> 
B81: 45歳～59歳 | F81: 15610 | G81: 15640 | H81: 30 | J81: =IF($B$9<=$D$79,$D$79,IF($B$9>=G81,G81,$B$9)) ->  | AN81: =AT35 ->  | AO81: =AU35 ->  | AP81: =AV35 ->  | AX81: =BD35 ->  | AY81: =BE35 ->  | AZ81: =BF35 -> 
B82: 60歳～64歳 | F82: 14910 | G82: 14940 | H82: 30 | J82: =IF($B$9<=$D$79,$D$79,IF($B$9>=G82,G82,$B$9)) ->  | AN82: =AT37 ->  | AO82: =AU37 ->  | AP82: =AV37 ->  | AX82: =BD37 ->  | AY82: =BE37 ->  | AZ82: =BF37 -> 
A83: H27.8～H28.7 | B83: ～29歳または65歳～ | C83: 2300 | D83: 2310 | E83: =D83-C83 -> 10 | F83: 12790 | G83: 12830 | H83: 40 | I83: =IF($B$9<=$C$83,$C$83,IF($B$9>=F83,F83,$B$9)) ->  | J83: =IF($B$9<=$D$83,$D$83,IF($B$9>=G83,G83,$B$9)) ->  | AN83: =AT39 ->  | AO83: =AU39 ->  | AP83: =AV39 ->  | AX83: =BD39 ->  | AY83: =BE39 ->  | AZ83: =BF39 -> 
B84: 30歳～44歳 | F84: 14210 | G84: 14240 | H84: 30 | I84: =IF($B$9<=$C$83,$C$83,IF($B$9>=F84,F84,$B$9)) ->  | J84: =IF($B$9<=$D$83,$D$83,IF($B$9>=G84,G84,$B$9)) ->  | AN84: =AT41 ->  | AO84: =AU41 ->  | AP84: =AV41 ->  | AX84: =BD41 ->  | AY84: =BE41 ->  | AZ84: =BF41 -> 
B85: 45歳～59歳 | F85: 15620 | G85: 15660 | H85: 40 | I85: =IF($B$9<=$C$83,$C$83,IF($B$9>=F85,F85,$B$9)) -> 
B86: 60歳～64歳 | F86: 14920 | G86: 14960 | H86: 40
A87: H28.8～H29.7 | B87: ～29歳または65歳～ | C87: 2290 | D87: 2300 | E87: 10 | F87: 12740 | G87: 12760 | H87: 20 | I87: =IF($B$9<=$C$87,$C$87,IF($B$9>=F87,F87,$B$9)) ->  | J87: =IF($B$9<=$D$87,$D$87,IF($B$9>=G87,G87,$B$9)) -> 
B88: 30歳～44歳 | F88: 14150 | G88: 14160 | H88: 10 | I88: =IF($B$9<=$C$87,$C$87,IF($B$9>=F88,F88,$B$9)) ->  | J88: =IF($B$9<=$D$87,$D$87,IF($B$9>=G88,G88,$B$9)) -> 
B89: 45歳～59歳 | F89: 15550 | G89: 15570 | H89: 20
B90: 60歳～64歳 | F90: 14860 | G90: 14870 | H90: 10
A91: H29.8～H30.7 | B91: ～29歳または65歳～ | C91: 2470 | D91: 2470 | E91: 0 | F91: 13420 | G91: 13430 | H91: 10 | I91: =IF($B$9<=$C$91,$C$91,IF($B$9>=F91,F91,$B$9)) ->  | J91: =IF($B$9<=$D$91,$D$91,IF($B$9>=G91,G91,$B$9)) -> 
B92: 30歳～44歳 | F92: 14910 | G92: 14920 | H92: 10 | I92: =IF($B$9<=$C$91,$C$91,IF($B$9>=F92,F92,$B$9)) ->  | J92: =IF($B$9<=$D$91,$D$91,IF($B$9>=G92,G92,$B$9)) -> 
B93: 45歳～59歳 | F93: 16410 | G93: 16420 | H93: 10
B94: 60歳～64歳 | F94: 15650 | G94: 15660 | H94: 10
A95: H30.8～H31.7 | B95: ～29歳または65歳～ | C95: 2480 | D95: 2480 | E95: 0 | F95: 13500 | G95: 13510 | H95: 10 | I95: =IF($B$9<=$C$95,$C$95,IF($B$9>=F95,F95,$B$9)) ->  | J95: =IF($B$9<=$D$95,$D$95,IF($B$9>=G95,G95,$B$9)) -> 
B96: 30歳～44歳 | F96: 14990 | G96: 15010 | H96: 20 | I96: =IF($B$9<=$C$95,$C$95,IF($B$9>=F96,F96,$B$9)) ->  | J96: =IF($B$9<=$D$95,$D$95,IF($B$9>=G96,G96,$B$9)) -> 
B97: 45歳～59歳 | F97: 16500 | G97: 16520 | H97: 20
B98: 60歳～64歳 | F98: 15740 | G98: 15750 | H98: 10
